Body Name,Date Paid,Transaction Number,Amount,Supplier Name,Supplier Type,Expense Area,Cost Centre Description,Expense Type
Cambridgeshire County Council,16-Oct-17,24233992-16200556,-21612.5,Romsey Mill Trust Ltd,Trust (Other),Control Accounts,Uncleared bank items,Bank Overdraft Expenditure / Payments
Cambridgeshire County Council,19-Oct-17,24376260-16227718,-20400,De Poel Limited,Trade Supplier,LGSS Managed,CD - Strategic Communictations,Other Hired Contract Services
Cambridgeshire County Council,19-Oct-17,23277924-16224070,-20370.33,Park House School,Education,S&C,Placements - Education,Independent School Placements
Cambridgeshire County Council,06-Oct-17,24231224-16149652,-16090.43,Big Green Bus,Trade Supplier,Control Accounts,Uncleared bank items,Bank Overdraft Expenditure / Payments
Cambridgeshire County Council,23-Oct-17,24237113-16241616,-12581.68,Tmp (Uk) Ltd T/A Tmp Worldwide,Trade Supplier,Control Accounts,Uncleared bank items,Bank Overdraft Expenditure / Payments
Cambridgeshire County Council,18-Oct-17,24397883-16215634,-6113.71,Richmond Fellowship,Charity,4 - Commissioning - Mental Health & Supporting People,Hunts Mental Health Team,Residential Independent Sector
Cambridgeshire County Council,31-Oct-17,22986577-16276916,-4714.35,Gretton School,Education,S&C,Placements - Education,Independent School Placements
Cambridgeshire County Council,12-Oct-17,24391761-16191020,-4655,Brookdale Healthcare Limited,Care Establishment,2 - Operations - Learning Disability,LDP Hunts special needs,Respite Independent Sector
Cambridgeshire County Council,12-Oct-17,24391770-16191026,-4655,Brookdale Healthcare Limited,Care Establishment,2 - Operations - Learning Disability,LDP Hunts special needs,Respite Independent Sector
Cambridgeshire County Council,12-Oct-17,24433150-16191041,-4655,Brookdale Healthcare Limited,Care Establishment,2 - Operations - Learning Disability,LDP Hunts special needs,Respite Independent Sector
Cambridgeshire County Council,12-Oct-17,24433151-16191042,-4655,Brookdale Healthcare Limited,Care Establishment,4 - Operations - Providers services,LDP Huntingdonshire Locality - Care,Respite Independent Sector
Cambridgeshire County Council,12-Oct-17,24433149-16191057,-4655,Brookdale Healthcare Limited,Care Establishment,4 - Operations - Providers services,LDP Huntingdonshire Locality - Care,Respite Independent Sector
Cambridgeshire County Council,19-Oct-17,24499308-16227761,-4655,Brookdale Healthcare Limited,Care Establishment,4 - Operations - Providers services,LDP Huntingdonshire Locality - Care,Respite Independent Sector
Cambridgeshire County Council,19-Oct-17,24499317-16227770,-4655,Brookdale Healthcare Limited,Care Establishment,4 - Operations - Providers services,LDP Huntingdonshire Locality - Care,Respite Independent Sector
Cambridgeshire County Council,26-Oct-17,24575514-16263832,-4655,Brookdale Healthcare Limited,Care Establishment,2 - Operations - Learning Disability,LDP Hunts special needs,Respite Independent Sector
Cambridgeshire County Council,26-Oct-17,24575519-16263837,-4655,Brookdale Healthcare Limited,Care Establishment,4 - Operations - Providers services,LDP Huntingdonshire Locality - Care,Respite Independent Sector
Cambridgeshire County Council,26-Oct-17,24575526-16263844,-4655,Brookdale Healthcare Limited,Care Establishment,2 - Operations - Learning Disability,LDP Hunts special needs,Respite Independent Sector
Cambridgeshire County Council,26-Oct-17,24575531-16263849,-4655,Brookdale Healthcare Limited,Care Establishment,2 - Operations - Learning Disability,LDP Hunts special needs,Respite Independent Sector
Cambridgeshire County Council,12-Oct-17,24391763-16191021,-4655,Brookdale Healthcare Limited,Care Establishment,2 - Operations - Learning Disability,LDP Hunts special needs,Respite Independent Sector
Cambridgeshire County Council,12-Oct-17,24391784-16191034,-4655,Brookdale Healthcare Limited,Care Establishment,2 - Operations - Learning Disability,LDP Hunts special needs,Respite Independent Sector
Cambridgeshire County Council,19-Oct-17,24499314-16227767,-4655,Brookdale Healthcare Limited,Care Establishment,2 - Operations - Learning Disability,LDP Hunts special needs,Respite Independent Sector
Cambridgeshire County Council,12-Oct-17,24391777-16191031,-4655,Brookdale Healthcare Limited,Care Establishment,4 - Operations - Providers services,LDP Huntingdonshire Locality - Care,Respite Independent Sector
Cambridgeshire County Council,12-Oct-17,24440192-16191062,-4655,Brookdale Healthcare Limited,Care Establishment,2 - Operations - Learning Disability,LDP Hunts special needs,Respite Independent Sector
Cambridgeshire County Council,26-Oct-17,24575517-16263835,-4655,Brookdale Healthcare Limited,Care Establishment,4 - Operations - Providers services,LDP Huntingdonshire Locality - Care,Respite Independent Sector
Cambridgeshire County Council,26-Oct-17,24575521-16263839,-4655,Brookdale Healthcare Limited,Care Establishment,2 - Operations - Learning Disability,LDP Hunts special needs,Respite Independent Sector
Cambridgeshire County Council,12-Oct-17,24391774-16191028,-4655,Brookdale Healthcare Limited,Care Establishment,2 - Operations - Learning Disability,LDP Hunts special needs,Respite Independent Sector
Cambridgeshire County Council,12-Oct-17,24433141-16191051,-4655,Brookdale Healthcare Limited,Care Establishment,2 - Operations - Learning Disability,LDP Hunts special needs,Respite Independent Sector
Cambridgeshire County Council,19-Oct-17,24499312-16227765,-4655,Brookdale Healthcare Limited,Care Establishment,4 - Operations - Providers services,LDP Huntingdonshire Locality - Care,Respite Independent Sector
Cambridgeshire County Council,19-Oct-17,24499318-16227771,-4655,Brookdale Healthcare Limited,Care Establishment,2 - Operations - Learning Disability,LDP Hunts special needs,Respite Independent Sector
Cambridgeshire County Council,26-Oct-17,24575515-16263833,-4655,Brookdale Healthcare Limited,Care Establishment,4 - Operations - Providers services,LDP Huntingdonshire Locality - Care,Respite Independent Sector
Cambridgeshire County Council,26-Oct-17,24575518-16263836,-4655,Brookdale Healthcare Limited,Care Establishment,4 - Operations - Providers services,LDP Huntingdonshire Locality - Care,Respite Independent Sector
Cambridgeshire County Council,12-Oct-17,24433143-16191052,-4655,Brookdale Healthcare Limited,Care Establishment,2 - Operations - Learning Disability,LDP Hunts special needs,Respite Independent Sector
Cambridgeshire County Council,19-Oct-17,24499323-16227776,-4655,Brookdale Healthcare Limited,Care Establishment,4 - Operations - Providers services,LDP Huntingdonshire Locality - Care,Respite Independent Sector
Cambridgeshire County Council,26-Oct-17,24575516-16263834,-4655,Brookdale Healthcare Limited,Care Establishment,2 - Operations - Learning Disability,LDP Hunts special needs,Respite Independent Sector
Cambridgeshire County Council,12-Oct-17,24391757-16191018,-4655,Brookdale Healthcare Limited,Care Establishment,2 - Operations - Learning Disability,LDP Hunts special needs,Respite Independent Sector
Cambridgeshire County Council,12-Oct-17,24433145-16191054,-4655,Brookdale Healthcare Limited,Care Establishment,2 - Operations - Learning Disability,LDP Hunts special needs,Respite Independent Sector
Cambridgeshire County Council,12-Oct-17,24391759-16191019,-4655,Brookdale Healthcare Limited,Care Establishment,4 - Operations - Providers services,LDP Huntingdonshire Locality - Care,Respite Independent Sector
Cambridgeshire County Council,12-Oct-17,24391783-16191033,-4655,Brookdale Healthcare Limited,Care Establishment,2 - Operations - Learning Disability,LDP Hunts special needs,Respite Independent Sector
Cambridgeshire County Council,12-Oct-17,24433162-16191048,-4655,Brookdale Healthcare Limited,Care Establishment,2 - Operations - Learning Disability,LDP Hunts special needs,Respite Independent Sector
Cambridgeshire County Council,12-Oct-17,24433148-16191056,-4655,Brookdale Healthcare Limited,Care Establishment,2 - Operations - Learning Disability,LDP Hunts special needs,Respite Independent Sector
Cambridgeshire County Council,19-Oct-17,24499311-16227764,-4655,Brookdale Healthcare Limited,Care Establishment,4 - Operations - Providers services,LDP Huntingdonshire Locality - Care,Respite Independent Sector
Cambridgeshire County Council,19-Oct-17,24499319-16227772,-4655,Brookdale Healthcare Limited,Care Establishment,4 - Operations - Providers services,LDP Huntingdonshire Locality - Care,Respite Independent Sector
Cambridgeshire County Council,19-Oct-17,24499327-16227780,-4655,Brookdale Healthcare Limited,Care Establishment,2 - Operations - Learning Disability,LDP Hunts special needs,Respite Independent Sector
Cambridgeshire County Council,17-Oct-17,24402187-16209963,-3617.4,Nemco Utilities Ltd,Trade Supplier,LGSS Managed,Building Maintenance,Building Maintenance - Structural Maintenance - Planned
Cambridgeshire County Council,12-Oct-17,24391756-16191017,-3325,Brookdale Healthcare Limited,Care Establishment,2 - Operations - Learning Disability,LDP Hunts special needs,Respite Independent Sector
Cambridgeshire County Council,19-Oct-17,24499324-16227777,-3325,Brookdale Healthcare Limited,Care Establishment,4 - Operations - Providers services,LDP Huntingdonshire Locality - Care,Respite Independent Sector
Cambridgeshire County Council,12-Oct-17,24433154-16191043,-3325,Brookdale Healthcare Limited,Care Establishment,4 - Operations - Providers services,LDP Huntingdonshire Locality - Care,Respite Independent Sector
Cambridgeshire County Council,26-Oct-17,24575522-16263840,-3325,Brookdale Healthcare Limited,Care Establishment,2 - Operations - Learning Disability,LDP Hunts special needs,Respite Independent Sector
Cambridgeshire County Council,05-Oct-17,24388049-16133185,-2977.44,Decoy Farm,Care Establishment,4 - Operations - Providers services,LDP E Cambs Special Needs,Residential Independent Sector
Cambridgeshire County Council,05-Oct-17,24388061-16133196,-2977.44,Decoy Farm,Care Establishment,4 - Operations - Providers services,LDP E Cambs Special Needs,Residential Independent Sector
Cambridgeshire County Council,05-Oct-17,24388065-16133200,-2977.44,Decoy Farm,Care Establishment,4 - Operations - Providers services,LDP E Cambs Special Needs,Residential Independent Sector
Cambridgeshire County Council,05-Oct-17,24388069-16133204,-2977.44,Decoy Farm,Care Establishment,4 - Operations - Providers services,LDP E Cambs Special Needs,Residential Independent Sector
Cambridgeshire County Council,05-Oct-17,24388074-16133209,-2977.44,Decoy Farm,Care Establishment,4 - Operations - Providers services,LDP E Cambs Special Needs,Residential Independent Sector
Cambridgeshire County Council,05-Oct-17,24388039-16133177,-2977.44,Decoy Farm,Care Establishment,4 - Operations - Providers services,LDP E Cambs Special Needs,Residential Independent Sector
Cambridgeshire County Council,05-Oct-17,24388044-16133180,-2977.44,Decoy Farm,Care Establishment,4 - Operations - Providers services,LDP E Cambs Special Needs,Residential Independent Sector
Cambridgeshire County Council,05-Oct-17,24388045-16133181,-2977.44,Decoy Farm,Care Establishment,4 - Operations - Providers services,LDP E Cambs Special Needs,Residential Independent Sector
Cambridgeshire County Council,05-Oct-17,24388087-16133219,-2977.44,Decoy Farm,Care Establishment,4 - Operations - Providers services,LDP E Cambs Special Needs,Residential Independent Sector
Cambridgeshire County Council,05-Oct-17,24388112-16133243,-2977.44,Decoy Farm,Care Establishment,4 - Operations - Providers services,LDP E Cambs Special Needs,Residential Independent Sector
Cambridgeshire County Council,05-Oct-17,24388941-16133255,-2977.44,Decoy Farm,Care Establishment,4 - Operations - Providers services,LDP E Cambs Special Needs,Residential Independent Sector
Cambridgeshire County Council,05-Oct-17,24391121-16133298,-2977.44,Decoy Farm,Care Establishment,4 - Operations - Providers services,LDP E Cambs Special Needs,Residential Independent Sector
Cambridgeshire County Council,05-Oct-17,24391125-16133302,-2977.44,Decoy Farm,Care Establishment,4 - Operations - Providers services,LDP E Cambs Special Needs,Residential Independent Sector
Cambridgeshire County Council,05-Oct-17,24391132-16133308,-2977.44,Decoy Farm,Care Establishment,4 - Operations - Providers services,LDP E Cambs Special Needs,Residential Independent Sector
Cambridgeshire County Council,05-Oct-17,24391148-16133324,-2977.44,Decoy Farm,Care Establishment,4 - Operations - Providers services,LDP E Cambs Special Needs,Residential Independent Sector
Cambridgeshire County Council,05-Oct-17,24394940-16133340,-2977.44,Decoy Farm,Care Establishment,4 - Operations - Providers services,LDP E Cambs Special Needs,Residential Independent Sector
Cambridgeshire County Council,05-Oct-17,24394949-16133348,-2977.44,Decoy Farm,Care Establishment,4 - Operations - Providers services,LDP E Cambs Special Needs,Residential Independent Sector
Cambridgeshire County Council,05-Oct-17,24394976-16133373,-2977.44,Decoy Farm,Care Establishment,4 - Operations - Providers services,LDP E Cambs Special Needs,Residential Independent Sector
Cambridgeshire County Council,05-Oct-17,24394979-16133376,-2977.44,Decoy Farm,Care Establishment,4 - Operations - Providers services,LDP E Cambs Special Needs,Residential Independent Sector
Cambridgeshire County Council,05-Oct-17,24394994-16133390,-2977.44,Decoy Farm,Care Establishment,4 - Operations - Providers services,LDP E Cambs Special Needs,Residential Independent Sector
Cambridgeshire County Council,05-Oct-17,24395006-16133402,-2977.44,Decoy Farm,Care Establishment,4 - Operations - Providers services,LDP E Cambs Special Needs,Residential Independent Sector
Cambridgeshire County Council,05-Oct-17,24395980-16133404,-2977.44,Decoy Farm,Care Establishment,4 - Operations - Providers services,LDP E Cambs Special Needs,Residential Independent Sector
Cambridgeshire County Council,19-Oct-17,24429614-16218347,-2977.44,Decoy Farm,Care Establishment,4 - Operations - Providers services,LDP E Cambs Special Needs,Residential Independent Sector
Cambridgeshire County Council,19-Oct-17,24430257-16218505,-2977.44,Decoy Farm,Care Establishment,4 - Operations - Providers services,LDP E Cambs Special Needs,Residential Independent Sector
Cambridgeshire County Council,19-Oct-17,24430276-16218524,-2977.44,Decoy Farm,Care Establishment,4 - Operations - Providers services,LDP E Cambs Special Needs,Residential Independent Sector
Cambridgeshire County Council,19-Oct-17,24430278-16218526,-2977.44,Decoy Farm,Care Establishment,4 - Operations - Providers services,LDP E Cambs Special Needs,Residential Independent Sector
Cambridgeshire County Council,19-Oct-17,24430284-16218531,-2977.44,Decoy Farm,Care Establishment,4 - Operations - Providers services,LDP E Cambs Special Needs,Residential Independent Sector
Cambridgeshire County Council,19-Oct-17,24436689-16218410,-2977.44,Decoy Farm,Care Establishment,4 - Operations - Providers services,LDP E Cambs Special Needs,Residential Independent Sector
Cambridgeshire County Council,19-Oct-17,24436698-16218418,-2977.44,Decoy Farm,Care Establishment,4 - Operations - Providers services,LDP E Cambs Special Needs,Residential Independent Sector
Cambridgeshire County Council,19-Oct-17,24438195-16218423,-2977.44,Decoy Farm,Care Establishment,4 - Operations - Providers services,LDP E Cambs Special Needs,Residential Independent Sector
Cambridgeshire County Council,19-Oct-17,24429633-16218430,-2977.44,Decoy Farm,Care Establishment,4 - Operations - Providers services,LDP E Cambs Special Needs,Residential Independent Sector
Cambridgeshire County Council,19-Oct-17,24429638-16218435,-2977.44,Decoy Farm,Care Establishment,4 - Operations - Providers services,LDP E Cambs Special Needs,Residential Independent Sector
Cambridgeshire County Council,19-Oct-17,24429641-16218438,-2977.44,Decoy Farm,Care Establishment,4 - Operations - Providers services,LDP E Cambs Special Needs,Residential Independent Sector
Cambridgeshire County Council,19-Oct-17,24430197-16218450,-2977.44,Decoy Farm,Care Establishment,4 - Operations - Providers services,LDP E Cambs Special Needs,Residential Independent Sector
Cambridgeshire County Council,19-Oct-17,24430199-16218452,-2977.44,Decoy Farm,Care Establishment,4 - Operations - Providers services,LDP E Cambs Special Needs,Residential Independent Sector
Cambridgeshire County Council,19-Oct-17,24430201-16218454,-2977.44,Decoy Farm,Care Establishment,4 - Operations - Providers services,LDP E Cambs Special Needs,Residential Independent Sector
Cambridgeshire County Council,19-Oct-17,24430204-16218457,-2977.44,Decoy Farm,Care Establishment,4 - Operations - Providers services,LDP E Cambs Special Needs,Residential Independent Sector
Cambridgeshire County Council,19-Oct-17,24430218-16218470,-2977.44,Decoy Farm,Care Establishment,4 - Operations - Providers services,LDP E Cambs Special Needs,Residential Independent Sector
Cambridgeshire County Council,19-Oct-17,24498499-16218746,-2977.44,Decoy Farm,Care Establishment,4 - Operations - Providers services,LDP E Cambs Special Needs,Residential Independent Sector
Cambridgeshire County Council,19-Oct-17,24498564-16218808,-2977.44,Decoy Farm,Care Establishment,4 - Operations - Providers services,LDP E Cambs Special Needs,Residential Independent Sector
Cambridgeshire County Council,19-Oct-17,24498574-16218818,-2977.44,Decoy Farm,Care Establishment,4 - Operations - Providers services,LDP E Cambs Special Needs,Residential Independent Sector
Cambridgeshire County Council,19-Oct-17,24498576-16218820,-2977.44,Decoy Farm,Care Establishment,4 - Operations - Providers services,LDP E Cambs Special Needs,Residential Independent Sector
Cambridgeshire County Council,19-Oct-17,24498525-16218772,-2977.44,Decoy Farm,Care Establishment,4 - Operations - Providers services,LDP E Cambs Special Needs,Residential Independent Sector
Cambridgeshire County Council,19-Oct-17,24498532-16218779,-2977.44,Decoy Farm,Care Establishment,4 - Operations - Providers services,LDP E Cambs Special Needs,Residential Independent Sector
Cambridgeshire County Council,19-Oct-17,24430289-16218536,-2977.44,Decoy Farm,Care Establishment,4 - Operations - Providers services,LDP E Cambs Special Needs,Residential Independent Sector
Cambridgeshire County Council,19-Oct-17,24430291-16218538,-2977.44,Decoy Farm,Care Establishment,4 - Operations - Providers services,LDP E Cambs Special Needs,Residential Independent Sector
Cambridgeshire County Council,19-Oct-17,24438220-16218557,-2977.44,Decoy Farm,Care Establishment,4 - Operations - Providers services,LDP E Cambs Special Needs,Residential Independent Sector
Cambridgeshire County Council,19-Oct-17,24490694-16218625,-2977.44,Decoy Farm,Care Establishment,4 - Operations - Providers services,LDP E Cambs Special Needs,Residential Independent Sector
Cambridgeshire County Council,19-Oct-17,24490698-16218629,-2977.44,Decoy Farm,Care Establishment,4 - Operations - Providers services,LDP E Cambs Special Needs,Residential Independent Sector
Cambridgeshire County Council,19-Oct-17,24495547-16218653,-2977.44,Decoy Farm,Care Establishment,4 - Operations - Providers services,LDP E Cambs Special Needs,Residential Independent Sector
Cambridgeshire County Council,19-Oct-17,24495555-16218661,-2977.44,Decoy Farm,Care Establishment,4 - Operations - Providers services,LDP E Cambs Special Needs,Residential Independent Sector
Cambridgeshire County Council,19-Oct-17,24496686-16218680,-2977.44,Decoy Farm,Care Establishment,4 - Operations - Providers services,LDP E Cambs Special Needs,Residential Independent Sector
Cambridgeshire County Council,19-Oct-17,24496731-16218691,-2977.44,Decoy Farm,Care Establishment,4 - Operations - Providers services,LDP E Cambs Special Needs,Residential Independent Sector
Cambridgeshire County Council,19-Oct-17,24496689-16218700,-2977.44,Decoy Farm,Care Establishment,4 - Operations - Providers services,LDP E Cambs Special Needs,Residential Independent Sector
Cambridgeshire County Council,19-Oct-17,24496699-16218710,-2977.44,Decoy Farm,Care Establishment,4 - Operations - Providers services,LDP E Cambs Special Needs,Residential Independent Sector
Cambridgeshire County Council,26-Oct-17,24578794-16257720,-2977.44,Decoy Farm,Care Establishment,4 - Operations - Providers services,LDP E Cambs Special Needs,Residential Independent Sector
Cambridgeshire County Council,26-Oct-17,24580798-16257773,-2977.44,Decoy Farm,Care Establishment,4 - Operations - Providers services,LDP E Cambs Special Needs,Residential Independent Sector
Cambridgeshire County Council,26-Oct-17,24580813-16257788,-2977.44,Decoy Farm,Care Establishment,4 - Operations - Providers services,LDP E Cambs Special Needs,Residential Independent Sector
Cambridgeshire County Council,26-Oct-17,24580830-16257805,-2977.44,Decoy Farm,Care Establishment,4 - Operations - Providers services,LDP E Cambs Special Needs,Residential Independent Sector
Cambridgeshire County Council,26-Oct-17,24580757-16257732,-2977.44,Decoy Farm,Care Establishment,4 - Operations - Providers services,LDP E Cambs Special Needs,Residential Independent Sector
Cambridgeshire County Council,26-Oct-17,24580776-16257751,-2977.44,Decoy Farm,Care Establishment,4 - Operations - Providers services,LDP E Cambs Special Needs,Residential Independent Sector
Cambridgeshire County Council,26-Oct-17,24574894-16257585,-2977.44,Decoy Farm,Care Establishment,4 - Operations - Providers services,LDP E Cambs Special Needs,Residential Independent Sector
Cambridgeshire County Council,26-Oct-17,24574896-16257587,-2977.44,Decoy Farm,Care Establishment,4 - Operations - Providers services,LDP E Cambs Special Needs,Residential Independent Sector
Cambridgeshire County Council,26-Oct-17,24574897-16257588,-2977.44,Decoy Farm,Care Establishment,4 - Operations - Providers services,LDP E Cambs Special Needs,Residential Independent Sector
Cambridgeshire County Council,26-Oct-17,24574927-16257616,-2977.44,Decoy Farm,Care Establishment,4 - Operations - Providers services,LDP E Cambs Special Needs,Residential Independent Sector
Cambridgeshire County Council,26-Oct-17,24574946-16257635,-2977.44,Decoy Farm,Care Establishment,4 - Operations - Providers services,LDP E Cambs Special Needs,Residential Independent Sector
Cambridgeshire County Council,05-Oct-17,24388055-16133190,-2977.44,Decoy Farm,Care Establishment,4 - Operations - Providers services,LDP E Cambs Special Needs,Residential Independent Sector
Cambridgeshire County Council,05-Oct-17,24388064-16133199,-2977.44,Decoy Farm,Care Establishment,4 - Operations - Providers services,LDP E Cambs Special Needs,Residential Independent Sector
Cambridgeshire County Council,05-Oct-17,24388021-16133160,-2977.44,Decoy Farm,Care Establishment,4 - Operations - Providers services,LDP E Cambs Special Needs,Residential Independent Sector
Cambridgeshire County Council,05-Oct-17,24388038-16133176,-2977.44,Decoy Farm,Care Establishment,4 - Operations - Providers services,LDP E Cambs Special Needs,Residential Independent Sector
Cambridgeshire County Council,05-Oct-17,24388086-16133218,-2977.44,Decoy Farm,Care Establishment,4 - Operations - Providers services,LDP E Cambs Special Needs,Residential Independent Sector
Cambridgeshire County Council,05-Oct-17,24391097-16133274,-2977.44,Decoy Farm,Care Establishment,4 - Operations - Providers services,LDP E Cambs Special Needs,Residential Independent Sector
Cambridgeshire County Council,05-Oct-17,24391111-16133288,-2977.44,Decoy Farm,Care Establishment,4 - Operations - Providers services,LDP E Cambs Special Needs,Residential Independent Sector
Cambridgeshire County Council,05-Oct-17,24391115-16133292,-2977.44,Decoy Farm,Care Establishment,4 - Operations - Providers services,LDP E Cambs Special Needs,Residential Independent Sector
Cambridgeshire County Council,05-Oct-17,24391141-16133317,-2977.44,Decoy Farm,Care Establishment,4 - Operations - Providers services,LDP E Cambs Special Needs,Residential Independent Sector
Cambridgeshire County Council,05-Oct-17,24391147-16133323,-2977.44,Decoy Farm,Care Establishment,4 - Operations - Providers services,LDP E Cambs Special Needs,Residential Independent Sector
Cambridgeshire County Council,05-Oct-17,24391156-16133331,-2977.44,Decoy Farm,Care Establishment,4 - Operations - Providers services,LDP E Cambs Special Needs,Residential Independent Sector
Cambridgeshire County Council,05-Oct-17,24394944-16133344,-2977.44,Decoy Farm,Care Establishment,4 - Operations - Providers services,LDP E Cambs Special Needs,Residential Independent Sector
Cambridgeshire County Council,05-Oct-17,24394954-16133353,-2977.44,Decoy Farm,Care Establishment,4 - Operations - Providers services,LDP E Cambs Special Needs,Residential Independent Sector
Cambridgeshire County Council,05-Oct-17,24394999-16133395,-2977.44,Decoy Farm,Care Establishment,4 - Operations - Providers services,LDP E Cambs Special Needs,Residential Independent Sector
Cambridgeshire County Council,05-Oct-17,24395005-16133401,-2977.44,Decoy Farm,Care Establishment,4 - Operations - Providers services,LDP E Cambs Special Needs,Residential Independent Sector
Cambridgeshire County Council,05-Oct-17,24395982-16133406,-2977.44,Decoy Farm,Care Establishment,4 - Operations - Providers services,LDP E Cambs Special Needs,Residential Independent Sector
Cambridgeshire County Council,05-Oct-17,24395984-16133408,-2977.44,Decoy Farm,Care Establishment,4 - Operations - Providers services,LDP E Cambs Special Needs,Residential Independent Sector
Cambridgeshire County Council,19-Oct-17,24429630-16218362,-2977.44,Decoy Farm,Care Establishment,4 - Operations - Providers services,LDP E Cambs Special Needs,Residential Independent Sector
Cambridgeshire County Council,19-Oct-17,24436658-16218366,-2977.44,Decoy Farm,Care Establishment,4 - Operations - Providers services,LDP E Cambs Special Needs,Residential Independent Sector
Cambridgeshire County Council,19-Oct-17,24438201-16218378,-2977.44,Decoy Farm,Care Establishment,4 - Operations - Providers services,LDP E Cambs Special Needs,Residential Independent Sector
Cambridgeshire County Council,19-Oct-17,24430237-16218486,-2977.44,Decoy Farm,Care Establishment,4 - Operations - Providers services,LDP E Cambs Special Needs,Residential Independent Sector
Cambridgeshire County Council,19-Oct-17,24430243-16218492,-2977.44,Decoy Farm,Care Establishment,4 - Operations - Providers services,LDP E Cambs Special Needs,Residential Independent Sector
Cambridgeshire County Council,19-Oct-17,24430256-16218504,-2977.44,Decoy Farm,Care Establishment,4 - Operations - Providers services,LDP E Cambs Special Needs,Residential Independent Sector
Cambridgeshire County Council,19-Oct-17,24430258-16218506,-2977.44,Decoy Farm,Care Establishment,4 - Operations - Providers services,LDP E Cambs Special Needs,Residential Independent Sector
Cambridgeshire County Council,19-Oct-17,24430279-16218527,-2977.44,Decoy Farm,Care Establishment,4 - Operations - Providers services,LDP E Cambs Special Needs,Residential Independent Sector
Cambridgeshire County Council,19-Oct-17,24436675-16218400,-2977.44,Decoy Farm,Care Establishment,4 - Operations - Providers services,LDP E Cambs Special Needs,Residential Independent Sector
Cambridgeshire County Council,19-Oct-17,24436678-16218402,-2977.44,Decoy Farm,Care Establishment,4 - Operations - Providers services,LDP E Cambs Special Needs,Residential Independent Sector
Cambridgeshire County Council,19-Oct-17,24436691-16218412,-2977.44,Decoy Farm,Care Establishment,4 - Operations - Providers services,LDP E Cambs Special Needs,Residential Independent Sector
Cambridgeshire County Council,19-Oct-17,24438197-16218425,-2977.44,Decoy Farm,Care Establishment,4 - Operations - Providers services,LDP E Cambs Special Needs,Residential Independent Sector
Cambridgeshire County Council,19-Oct-17,24429632-16218429,-2977.44,Decoy Farm,Care Establishment,4 - Operations - Providers services,LDP E Cambs Special Needs,Residential Independent Sector
Cambridgeshire County Council,19-Oct-17,24429645-16218442,-2977.44,Decoy Farm,Care Establishment,4 - Operations - Providers services,LDP E Cambs Special Needs,Residential Independent Sector
Cambridgeshire County Council,19-Oct-17,24496714-16218724,-2977.44,Decoy Farm,Care Establishment,4 - Operations - Providers services,LDP E Cambs Special Needs,Residential Independent Sector
Cambridgeshire County Council,19-Oct-17,24498498-16218745,-2977.44,Decoy Farm,Care Establishment,4 - Operations - Providers services,LDP E Cambs Special Needs,Residential Independent Sector
Cambridgeshire County Council,19-Oct-17,24498544-16218790,-2977.44,Decoy Farm,Care Establishment,4 - Operations - Providers services,LDP E Cambs Special Needs,Residential Independent Sector
Cambridgeshire County Council,19-Oct-17,24498546-16218792,-2977.44,Decoy Farm,Care Establishment,4 - Operations - Providers services,LDP E Cambs Special Needs,Residential Independent Sector
Cambridgeshire County Council,19-Oct-17,24498617-16218861,-2977.44,Decoy Farm,Care Establishment,4 - Operations - Providers services,LDP E Cambs Special Needs,Residential Independent Sector
Cambridgeshire County Council,19-Oct-17,24498516-16218763,-2977.44,Decoy Farm,Care Establishment,4 - Operations - Providers services,LDP E Cambs Special Needs,Residential Independent Sector
Cambridgeshire County Council,19-Oct-17,24430305-16218552,-2977.44,Decoy Farm,Care Establishment,4 - Operations - Providers services,LDP E Cambs Special Needs,Residential Independent Sector
Cambridgeshire County Council,19-Oct-17,24438231-16218568,-2977.44,Decoy Farm,Care Establishment,4 - Operations - Providers services,LDP E Cambs Special Needs,Residential Independent Sector
Cambridgeshire County Council,19-Oct-17,24490676-16218607,-2977.44,Decoy Farm,Care Establishment,4 - Operations - Providers services,LDP E Cambs Special Needs,Residential Independent Sector
Cambridgeshire County Council,19-Oct-17,24490678-16218609,-2977.44,Decoy Farm,Care Establishment,4 - Operations - Providers services,LDP E Cambs Special Needs,Residential Independent Sector
Cambridgeshire County Council,19-Oct-17,24490687-16218618,-2977.44,Decoy Farm,Care Establishment,4 - Operations - Providers services,LDP E Cambs Special Needs,Residential Independent Sector
Cambridgeshire County Council,19-Oct-17,24490697-16218628,-2977.44,Decoy Farm,Care Establishment,4 - Operations - Providers services,LDP E Cambs Special Needs,Residential Independent Sector
Cambridgeshire County Council,19-Oct-17,24495526-16218632,-2977.44,Decoy Farm,Care Establishment,4 - Operations - Providers services,LDP E Cambs Special Needs,Residential Independent Sector
Cambridgeshire County Council,19-Oct-17,24495532-16218638,-2977.44,Decoy Farm,Care Establishment,4 - Operations - Providers services,LDP E Cambs Special Needs,Residential Independent Sector
Cambridgeshire County Council,19-Oct-17,24495552-16218658,-2977.44,Decoy Farm,Care Establishment,4 - Operations - Providers services,LDP E Cambs Special Needs,Residential Independent Sector
Cambridgeshire County Council,19-Oct-17,24496673-16218667,-2977.44,Decoy Farm,Care Establishment,4 - Operations - Providers services,LDP E Cambs Special Needs,Residential Independent Sector
Cambridgeshire County Council,19-Oct-17,24496677-16218671,-2977.44,Decoy Farm,Care Establishment,4 - Operations - Providers services,LDP E Cambs Special Needs,Residential Independent Sector
Cambridgeshire County Council,19-Oct-17,24496705-16218715,-2977.44,Decoy Farm,Care Establishment,4 - Operations - Providers services,LDP E Cambs Special Needs,Residential Independent Sector
Cambridgeshire County Council,26-Oct-17,24578775-16257701,-2977.44,Decoy Farm,Care Establishment,4 - Operations - Providers services,LDP E Cambs Special Needs,Residential Independent Sector
Cambridgeshire County Council,26-Oct-17,24578787-16257713,-2977.44,Decoy Farm,Care Establishment,4 - Operations - Providers services,LDP E Cambs Special Needs,Residential Independent Sector
Cambridgeshire County Council,26-Oct-17,24578797-16257723,-2977.44,Decoy Farm,Care Establishment,4 - Operations - Providers services,LDP E Cambs Special Needs,Residential Independent Sector
Cambridgeshire County Council,26-Oct-17,24580752-16257727,-2977.44,Decoy Farm,Care Establishment,4 - Operations - Providers services,LDP E Cambs Special Needs,Residential Independent Sector
Cambridgeshire County Council,26-Oct-17,24580812-16257787,-2977.44,Decoy Farm,Care Establishment,4 - Operations - Providers services,LDP E Cambs Special Needs,Residential Independent Sector
Cambridgeshire County Council,26-Oct-17,24580814-16257789,-2977.44,Decoy Farm,Care Establishment,4 - Operations - Providers services,LDP E Cambs Special Needs,Residential Independent Sector
Cambridgeshire County Council,26-Oct-17,24580761-16257736,-2977.44,Decoy Farm,Care Establishment,4 - Operations - Providers services,LDP E Cambs Special Needs,Residential Independent Sector
Cambridgeshire County Council,26-Oct-17,24580771-16257746,-2977.44,Decoy Farm,Care Establishment,4 - Operations - Providers services,LDP E Cambs Special Needs,Residential Independent Sector
Cambridgeshire County Council,26-Oct-17,24574850-16257541,-2977.44,Decoy Farm,Care Establishment,4 - Operations - Providers services,LDP E Cambs Special Needs,Residential Independent Sector
Cambridgeshire County Council,26-Oct-17,24574853-16257544,-2977.44,Decoy Farm,Care Establishment,4 - Operations - Providers services,LDP E Cambs Special Needs,Residential Independent Sector
Cambridgeshire County Council,26-Oct-17,24574885-16257576,-2977.44,Decoy Farm,Care Establishment,4 - Operations - Providers services,LDP E Cambs Special Needs,Residential Independent Sector
Cambridgeshire County Council,26-Oct-17,24574890-16257581,-2977.44,Decoy Farm,Care Establishment,4 - Operations - Providers services,LDP E Cambs Special Needs,Residential Independent Sector
Cambridgeshire County Council,26-Oct-17,24574891-16257582,-2977.44,Decoy Farm,Care Establishment,4 - Operations - Providers services,LDP E Cambs Special Needs,Residential Independent Sector
Cambridgeshire County Council,26-Oct-17,24574933-16257622,-2977.44,Decoy Farm,Care Establishment,4 - Operations - Providers services,LDP E Cambs Special Needs,Residential Independent Sector
Cambridgeshire County Council,26-Oct-17,24576805-16257663,-2977.44,Decoy Farm,Care Establishment,4 - Operations - Providers services,LDP E Cambs Special Needs,Residential Independent Sector
Cambridgeshire County Council,26-Oct-17,24578770-16257696,-2977.44,Decoy Farm,Care Establishment,4 - Operations - Providers services,LDP E Cambs Special Needs,Residential Independent Sector
Cambridgeshire County Council,05-Oct-17,24388048-16133184,-2977.44,Decoy Farm,Care Establishment,4 - Operations - Providers services,LDP E Cambs Special Needs,Residential Independent Sector
Cambridgeshire County Council,05-Oct-17,24388034-16133172,-2977.44,Decoy Farm,Care Establishment,4 - Operations - Providers services,LDP E Cambs Special Needs,Residential Independent Sector
Cambridgeshire County Council,05-Oct-17,24388084-16133216,-2977.44,Decoy Farm,Care Establishment,4 - Operations - Providers services,LDP E Cambs Special Needs,Residential Independent Sector
Cambridgeshire County Council,05-Oct-17,24388092-16133224,-2977.44,Decoy Farm,Care Establishment,4 - Operations - Providers services,LDP E Cambs Special Needs,Residential Independent Sector
Cambridgeshire County Council,05-Oct-17,24388935-16133249,-2977.44,Decoy Farm,Care Establishment,4 - Operations - Providers services,LDP E Cambs Special Needs,Residential Independent Sector
Cambridgeshire County Council,05-Oct-17,24388940-16133254,-2977.44,Decoy Farm,Care Establishment,4 - Operations - Providers services,LDP E Cambs Special Needs,Residential Independent Sector
Cambridgeshire County Council,05-Oct-17,24391113-16133290,-2977.44,Decoy Farm,Care Establishment,4 - Operations - Providers services,LDP E Cambs Special Needs,Residential Independent Sector
Cambridgeshire County Council,05-Oct-17,24391140-16133316,-2977.44,Decoy Farm,Care Establishment,4 - Operations - Providers services,LDP E Cambs Special Needs,Residential Independent Sector
Cambridgeshire County Council,05-Oct-17,24394961-16133359,-2977.44,Decoy Farm,Care Establishment,4 - Operations - Providers services,LDP E Cambs Special Needs,Residential Independent Sector
Cambridgeshire County Council,05-Oct-17,24394966-16133364,-2977.44,Decoy Farm,Care Establishment,4 - Operations - Providers services,LDP E Cambs Special Needs,Residential Independent Sector
Cambridgeshire County Council,05-Oct-17,24394970-16133367,-2977.44,Decoy Farm,Care Establishment,4 - Operations - Providers services,LDP E Cambs Special Needs,Residential Independent Sector
Cambridgeshire County Council,05-Oct-17,24394984-16133380,-2977.44,Decoy Farm,Care Establishment,4 - Operations - Providers services,LDP E Cambs Special Needs,Residential Independent Sector
Cambridgeshire County Council,05-Oct-17,24395000-16133396,-2977.44,Decoy Farm,Care Establishment,4 - Operations - Providers services,LDP E Cambs Special Needs,Residential Independent Sector
Cambridgeshire County Council,05-Oct-17,24395007-16133403,-2977.44,Decoy Farm,Care Establishment,4 - Operations - Providers services,LDP E Cambs Special Needs,Residential Independent Sector
Cambridgeshire County Council,19-Oct-17,24430234-16218485,-2977.44,Decoy Farm,Care Establishment,4 - Operations - Providers services,LDP E Cambs Special Needs,Residential Independent Sector
Cambridgeshire County Council,19-Oct-17,24430265-16218513,-2977.44,Decoy Farm,Care Establishment,4 - Operations - Providers services,LDP E Cambs Special Needs,Residential Independent Sector
Cambridgeshire County Council,19-Oct-17,24438214-16218390,-2977.44,Decoy Farm,Care Establishment,4 - Operations - Providers services,LDP E Cambs Special Needs,Residential Independent Sector
Cambridgeshire County Council,19-Oct-17,24436671-16218396,-2977.44,Decoy Farm,Care Establishment,4 - Operations - Providers services,LDP E Cambs Special Needs,Residential Independent Sector
Cambridgeshire County Council,19-Oct-17,24429639-16218436,-2977.44,Decoy Farm,Care Establishment,4 - Operations - Providers services,LDP E Cambs Special Needs,Residential Independent Sector
Cambridgeshire County Council,19-Oct-17,24430210-16218462,-2977.44,Decoy Farm,Care Establishment,4 - Operations - Providers services,LDP E Cambs Special Needs,Residential Independent Sector
Cambridgeshire County Council,19-Oct-17,24496741-16218733,-2977.44,Decoy Farm,Care Establishment,4 - Operations - Providers services,LDP E Cambs Special Needs,Residential Independent Sector
Cambridgeshire County Council,19-Oct-17,24498542-16218789,-2977.44,Decoy Farm,Care Establishment,4 - Operations - Providers services,LDP E Cambs Special Needs,Residential Independent Sector
Cambridgeshire County Council,19-Oct-17,24498575-16218819,-2977.44,Decoy Farm,Care Establishment,4 - Operations - Providers services,LDP E Cambs Special Needs,Residential Independent Sector
Cambridgeshire County Council,19-Oct-17,24498580-16218824,-2977.44,Decoy Farm,Care Establishment,4 - Operations - Providers services,LDP E Cambs Special Needs,Residential Independent Sector
Cambridgeshire County Council,19-Oct-17,24498584-16218828,-2977.44,Decoy Farm,Care Establishment,4 - Operations - Providers services,LDP E Cambs Special Needs,Residential Independent Sector
Cambridgeshire County Council,19-Oct-17,24498588-16218832,-2977.44,Decoy Farm,Care Establishment,4 - Operations - Providers services,LDP E Cambs Special Needs,Residential Independent Sector
Cambridgeshire County Council,19-Oct-17,24498595-16218839,-2977.44,Decoy Farm,Care Establishment,4 - Operations - Providers services,LDP E Cambs Special Needs,Residential Independent Sector
Cambridgeshire County Council,19-Oct-17,24498596-16218840,-2977.44,Decoy Farm,Care Establishment,4 - Operations - Providers services,LDP E Cambs Special Needs,Residential Independent Sector
Cambridgeshire County Council,19-Oct-17,24498605-16218849,-2977.44,Decoy Farm,Care Establishment,4 - Operations - Providers services,LDP E Cambs Special Needs,Residential Independent Sector
Cambridgeshire County Council,19-Oct-17,24498606-16218850,-2977.44,Decoy Farm,Care Establishment,4 - Operations - Providers services,LDP E Cambs Special Needs,Residential Independent Sector
Cambridgeshire County Council,19-Oct-17,24498528-16218775,-2977.44,Decoy Farm,Care Establishment,4 - Operations - Providers services,LDP E Cambs Special Needs,Residential Independent Sector
Cambridgeshire County Council,19-Oct-17,24430295-16218542,-2977.44,Decoy Farm,Care Establishment,4 - Operations - Providers services,LDP E Cambs Special Needs,Residential Independent Sector
Cambridgeshire County Council,19-Oct-17,24430306-16218553,-2977.44,Decoy Farm,Care Establishment,4 - Operations - Providers services,LDP E Cambs Special Needs,Residential Independent Sector
Cambridgeshire County Council,19-Oct-17,24438239-16218574,-2977.44,Decoy Farm,Care Establishment,4 - Operations - Providers services,LDP E Cambs Special Needs,Residential Independent Sector
Cambridgeshire County Council,19-Oct-17,24438246-16218581,-2977.44,Decoy Farm,Care Establishment,4 - Operations - Providers services,LDP E Cambs Special Needs,Residential Independent Sector
Cambridgeshire County Council,19-Oct-17,24438256-16218590,-2977.44,Decoy Farm,Care Establishment,4 - Operations - Providers services,LDP E Cambs Special Needs,Residential Independent Sector
Cambridgeshire County Council,19-Oct-17,24438258-16218592,-2977.44,Decoy Farm,Care Establishment,4 - Operations - Providers services,LDP E Cambs Special Needs,Residential Independent Sector
Cambridgeshire County Council,19-Oct-17,24490685-16218616,-2977.44,Decoy Farm,Care Establishment,4 - Operations - Providers services,LDP E Cambs Special Needs,Residential Independent Sector
Cambridgeshire County Council,19-Oct-17,24495554-16218660,-2977.44,Decoy Farm,Care Establishment,4 - Operations - Providers services,LDP E Cambs Special Needs,Residential Independent Sector
Cambridgeshire County Council,19-Oct-17,24496681-16218675,-2977.44,Decoy Farm,Care Establishment,4 - Operations - Providers services,LDP E Cambs Special Needs,Residential Independent Sector
Cambridgeshire County Council,19-Oct-17,24496721-16218681,-2977.44,Decoy Farm,Care Establishment,4 - Operations - Providers services,LDP E Cambs Special Needs,Residential Independent Sector
Cambridgeshire County Council,19-Oct-17,24496728-16218688,-2977.44,Decoy Farm,Care Establishment,4 - Operations - Providers services,LDP E Cambs Special Needs,Residential Independent Sector
Cambridgeshire County Council,26-Oct-17,24578771-16257697,-2977.44,Decoy Farm,Care Establishment,4 - Operations - Providers services,LDP E Cambs Special Needs,Residential Independent Sector
Cambridgeshire County Council,26-Oct-17,24578776-16257702,-2977.44,Decoy Farm,Care Establishment,4 - Operations - Providers services,LDP E Cambs Special Needs,Residential Independent Sector
Cambridgeshire County Council,26-Oct-17,24578789-16257715,-2977.44,Decoy Farm,Care Establishment,4 - Operations - Providers services,LDP E Cambs Special Needs,Residential Independent Sector
Cambridgeshire County Council,26-Oct-17,24578791-16257717,-2977.44,Decoy Farm,Care Establishment,4 - Operations - Providers services,LDP E Cambs Special Needs,Residential Independent Sector
Cambridgeshire County Council,26-Oct-17,24578792-16257718,-2977.44,Decoy Farm,Care Establishment,4 - Operations - Providers services,LDP E Cambs Special Needs,Residential Independent Sector
Cambridgeshire County Council,26-Oct-17,24578793-16257719,-2977.44,Decoy Farm,Care Establishment,4 - Operations - Providers services,LDP E Cambs Special Needs,Residential Independent Sector
Cambridgeshire County Council,26-Oct-17,24580832-16257807,-2977.44,Decoy Farm,Care Establishment,4 - Operations - Providers services,LDP E Cambs Special Needs,Residential Independent Sector
Cambridgeshire County Council,26-Oct-17,24580753-16257728,-2977.44,Decoy Farm,Care Establishment,4 - Operations - Providers services,LDP E Cambs Special Needs,Residential Independent Sector
Cambridgeshire County Council,26-Oct-17,24580769-16257744,-2977.44,Decoy Farm,Care Establishment,4 - Operations - Providers services,LDP E Cambs Special Needs,Residential Independent Sector
Cambridgeshire County Council,26-Oct-17,24574858-16257549,-2977.44,Decoy Farm,Care Establishment,4 - Operations - Providers services,LDP E Cambs Special Needs,Residential Independent Sector
Cambridgeshire County Council,26-Oct-17,24574863-16257554,-2977.44,Decoy Farm,Care Establishment,4 - Operations - Providers services,LDP E Cambs Special Needs,Residential Independent Sector
Cambridgeshire County Council,26-Oct-17,24574881-16257572,-2977.44,Decoy Farm,Care Establishment,4 - Operations - Providers services,LDP E Cambs Special Needs,Residential Independent Sector
Cambridgeshire County Council,26-Oct-17,24574905-16257594,-2977.44,Decoy Farm,Care Establishment,4 - Operations - Providers services,LDP E Cambs Special Needs,Residential Independent Sector
Cambridgeshire County Council,26-Oct-17,24574907-16257596,-2977.44,Decoy Farm,Care Establishment,4 - Operations - Providers services,LDP E Cambs Special Needs,Residential Independent Sector
Cambridgeshire County Council,26-Oct-17,24574913-16257602,-2977.44,Decoy Farm,Care Establishment,4 - Operations - Providers services,LDP E Cambs Special Needs,Residential Independent Sector
Cambridgeshire County Council,26-Oct-17,24574915-16257604,-2977.44,Decoy Farm,Care Establishment,4 - Operations - Providers services,LDP E Cambs Special Needs,Residential Independent Sector
Cambridgeshire County Council,26-Oct-17,24574929-16257618,-2977.44,Decoy Farm,Care Establishment,4 - Operations - Providers services,LDP E Cambs Special Needs,Residential Independent Sector
Cambridgeshire County Council,26-Oct-17,24574936-16257625,-2977.44,Decoy Farm,Care Establishment,4 - Operations - Providers services,LDP E Cambs Special Needs,Residential Independent Sector
Cambridgeshire County Council,26-Oct-17,24576796-16257655,-2977.44,Decoy Farm,Care Establishment,4 - Operations - Providers services,LDP E Cambs Special Needs,Residential Independent Sector
Cambridgeshire County Council,26-Oct-17,24576808-16257666,-2977.44,Decoy Farm,Care Establishment,4 - Operations - Providers services,LDP E Cambs Special Needs,Residential Independent Sector
Cambridgeshire County Council,26-Oct-17,24576822-16257679,-2977.44,Decoy Farm,Care Establishment,4 - Operations - Providers services,LDP E Cambs Special Needs,Residential Independent Sector
Cambridgeshire County Council,05-Oct-17,24388060-16133195,-2977.44,Decoy Farm,Care Establishment,4 - Operations - Providers services,LDP E Cambs Special Needs,Residential Independent Sector
Cambridgeshire County Council,05-Oct-17,24388070-16133205,-2977.44,Decoy Farm,Care Establishment,4 - Operations - Providers services,LDP E Cambs Special Needs,Residential Independent Sector
Cambridgeshire County Council,05-Oct-17,24388006-16133147,-2977.44,Decoy Farm,Care Establishment,4 - Operations - Providers services,LDP E Cambs Special Needs,Residential Independent Sector
Cambridgeshire County Council,05-Oct-17,24388011-16133152,-2977.44,Decoy Farm,Care Establishment,4 - Operations - Providers services,LDP E Cambs Special Needs,Residential Independent Sector
Cambridgeshire County Council,05-Oct-17,24388012-16133153,-2977.44,Decoy Farm,Care Establishment,4 - Operations - Providers services,LDP E Cambs Special Needs,Residential Independent Sector
Cambridgeshire County Council,05-Oct-17,24388016-16133157,-2977.44,Decoy Farm,Care Establishment,4 - Operations - Providers services,LDP E Cambs Special Needs,Residential Independent Sector
Cambridgeshire County Council,05-Oct-17,24388022-16133161,-2977.44,Decoy Farm,Care Establishment,4 - Operations - Providers services,LDP E Cambs Special Needs,Residential Independent Sector
Cambridgeshire County Council,05-Oct-17,24388100-16133232,-2977.44,Decoy Farm,Care Establishment,4 - Operations - Providers services,LDP E Cambs Special Needs,Residential Independent Sector
Cambridgeshire County Council,05-Oct-17,24388104-16133236,-2977.44,Decoy Farm,Care Establishment,4 - Operations - Providers services,LDP E Cambs Special Needs,Residential Independent Sector
Cambridgeshire County Council,05-Oct-17,24388933-16133247,-2977.44,Decoy Farm,Care Establishment,4 - Operations - Providers services,LDP E Cambs Special Needs,Residential Independent Sector
Cambridgeshire County Council,05-Oct-17,24391119-16133296,-2977.44,Decoy Farm,Care Establishment,4 - Operations - Providers services,LDP E Cambs Special Needs,Residential Independent Sector
Cambridgeshire County Council,05-Oct-17,24391128-16133304,-2977.44,Decoy Farm,Care Establishment,4 - Operations - Providers services,LDP E Cambs Special Needs,Residential Independent Sector
Cambridgeshire County Council,05-Oct-17,24391154-16133329,-2977.44,Decoy Farm,Care Establishment,4 - Operations - Providers services,LDP E Cambs Special Needs,Residential Independent Sector
Cambridgeshire County Council,05-Oct-17,24394945-16133345,-2977.44,Decoy Farm,Care Establishment,4 - Operations - Providers services,LDP E Cambs Special Needs,Residential Independent Sector
Cambridgeshire County Council,05-Oct-17,24395003-16133399,-2977.44,Decoy Farm,Care Establishment,4 - Operations - Providers services,LDP E Cambs Special Needs,Residential Independent Sector
Cambridgeshire County Council,05-Oct-17,24395983-16133407,-2977.44,Decoy Farm,Care Establishment,4 - Operations - Providers services,LDP E Cambs Special Needs,Residential Independent Sector
Cambridgeshire County Council,19-Oct-17,24436668-16218376,-2977.44,Decoy Farm,Care Establishment,4 - Operations - Providers services,LDP E Cambs Special Needs,Residential Independent Sector
Cambridgeshire County Council,19-Oct-17,24430223-16218474,-2977.44,Decoy Farm,Care Establishment,4 - Operations - Providers services,LDP E Cambs Special Needs,Residential Independent Sector
Cambridgeshire County Council,19-Oct-17,24430233-16218484,-2977.44,Decoy Farm,Care Establishment,4 - Operations - Providers services,LDP E Cambs Special Needs,Residential Independent Sector
Cambridgeshire County Council,19-Oct-17,24430275-16218523,-2977.44,Decoy Farm,Care Establishment,4 - Operations - Providers services,LDP E Cambs Special Needs,Residential Independent Sector
Cambridgeshire County Council,19-Oct-17,24436690-16218411,-2977.44,Decoy Farm,Care Establishment,4 - Operations - Providers services,LDP E Cambs Special Needs,Residential Independent Sector
Cambridgeshire County Council,19-Oct-17,24430194-16218447,-2977.44,Decoy Farm,Care Establishment,4 - Operations - Providers services,LDP E Cambs Special Needs,Residential Independent Sector
Cambridgeshire County Council,19-Oct-17,24430196-16218449,-2977.44,Decoy Farm,Care Establishment,4 - Operations - Providers services,LDP E Cambs Special Needs,Residential Independent Sector
Cambridgeshire County Council,19-Oct-17,24498502-16218749,-2977.44,Decoy Farm,Care Establishment,4 - Operations - Providers services,LDP E Cambs Special Needs,Residential Independent Sector
Cambridgeshire County Council,19-Oct-17,24498550-16218795,-2977.44,Decoy Farm,Care Establishment,4 - Operations - Providers services,LDP E Cambs Special Needs,Residential Independent Sector
Cambridgeshire County Council,19-Oct-17,24498577-16218821,-2977.44,Decoy Farm,Care Establishment,4 - Operations - Providers services,LDP E Cambs Special Needs,Residential Independent Sector
Cambridgeshire County Council,19-Oct-17,24498579-16218823,-2977.44,Decoy Farm,Care Establishment,4 - Operations - Providers services,LDP E Cambs Special Needs,Residential Independent Sector
Cambridgeshire County Council,19-Oct-17,24498529-16218776,-2977.44,Decoy Farm,Care Establishment,4 - Operations - Providers services,LDP E Cambs Special Needs,Residential Independent Sector
Cambridgeshire County Council,19-Oct-17,24430287-16218534,-2977.44,Decoy Farm,Care Establishment,4 - Operations - Providers services,LDP E Cambs Special Needs,Residential Independent Sector
Cambridgeshire County Council,19-Oct-17,24430298-16218545,-2977.44,Decoy Farm,Care Establishment,4 - Operations - Providers services,LDP E Cambs Special Needs,Residential Independent Sector
Cambridgeshire County Council,19-Oct-17,24438219-16218556,-2977.44,Decoy Farm,Care Establishment,4 - Operations - Providers services,LDP E Cambs Special Needs,Residential Independent Sector
Cambridgeshire County Council,19-Oct-17,24438232-16218569,-2977.44,Decoy Farm,Care Establishment,4 - Operations - Providers services,LDP E Cambs Special Needs,Residential Independent Sector
Cambridgeshire County Council,19-Oct-17,24438235-16218570,-2977.44,Decoy Farm,Care Establishment,4 - Operations - Providers services,LDP E Cambs Special Needs,Residential Independent Sector
Cambridgeshire County Council,19-Oct-17,24438259-16218593,-2977.44,Decoy Farm,Care Establishment,4 - Operations - Providers services,LDP E Cambs Special Needs,Residential Independent Sector
Cambridgeshire County Council,19-Oct-17,24438262-16218596,-2977.44,Decoy Farm,Care Establishment,4 - Operations - Providers services,LDP E Cambs Special Needs,Residential Independent Sector
Cambridgeshire County Council,19-Oct-17,24490681-16218612,-2977.44,Decoy Farm,Care Establishment,4 - Operations - Providers services,LDP E Cambs Special Needs,Residential Independent Sector
Cambridgeshire County Council,19-Oct-17,24495530-16218636,-2977.44,Decoy Farm,Care Establishment,4 - Operations - Providers services,LDP E Cambs Special Needs,Residential Independent Sector
Cambridgeshire County Council,19-Oct-17,24495536-16218642,-2977.44,Decoy Farm,Care Establishment,4 - Operations - Providers services,LDP E Cambs Special Needs,Residential Independent Sector
Cambridgeshire County Council,19-Oct-17,24495541-16218647,-2977.44,Decoy Farm,Care Establishment,4 - Operations - Providers services,LDP E Cambs Special Needs,Residential Independent Sector
Cambridgeshire County Council,19-Oct-17,24496703-16218713,-2977.44,Decoy Farm,Care Establishment,4 - Operations - Providers services,LDP E Cambs Special Needs,Residential Independent Sector
Cambridgeshire County Council,26-Oct-17,24578778-16257704,-2977.44,Decoy Farm,Care Establishment,4 - Operations - Providers services,LDP E Cambs Special Needs,Residential Independent Sector
Cambridgeshire County Council,26-Oct-17,24580807-16257782,-2977.44,Decoy Farm,Care Establishment,4 - Operations - Providers services,LDP E Cambs Special Needs,Residential Independent Sector
Cambridgeshire County Council,26-Oct-17,24580756-16257731,-2977.44,Decoy Farm,Care Establishment,4 - Operations - Providers services,LDP E Cambs Special Needs,Residential Independent Sector
Cambridgeshire County Council,26-Oct-17,24580766-16257741,-2977.44,Decoy Farm,Care Establishment,4 - Operations - Providers services,LDP E Cambs Special Needs,Residential Independent Sector
Cambridgeshire County Council,26-Oct-17,24580767-16257742,-2977.44,Decoy Farm,Care Establishment,4 - Operations - Providers services,LDP E Cambs Special Needs,Residential Independent Sector
Cambridgeshire County Council,26-Oct-17,24580772-16257747,-2977.44,Decoy Farm,Care Establishment,4 - Operations - Providers services,LDP E Cambs Special Needs,Residential Independent Sector
Cambridgeshire County Council,26-Oct-17,24574870-16257561,-2977.44,Decoy Farm,Care Establishment,4 - Operations - Providers services,LDP E Cambs Special Needs,Residential Independent Sector
Cambridgeshire County Council,26-Oct-17,24574899-16257590,-2977.44,Decoy Farm,Care Establishment,4 - Operations - Providers services,LDP E Cambs Special Needs,Residential Independent Sector
Cambridgeshire County Council,26-Oct-17,24574942-16257631,-2977.44,Decoy Farm,Care Establishment,4 - Operations - Providers services,LDP E Cambs Special Needs,Residential Independent Sector
Cambridgeshire County Council,26-Oct-17,24574951-16257640,-2977.44,Decoy Farm,Care Establishment,4 - Operations - Providers services,LDP E Cambs Special Needs,Residential Independent Sector
Cambridgeshire County Council,26-Oct-17,24574954-16257643,-2977.44,Decoy Farm,Care Establishment,4 - Operations - Providers services,LDP E Cambs Special Needs,Residential Independent Sector
Cambridgeshire County Council,26-Oct-17,24574955-16257644,-2977.44,Decoy Farm,Care Establishment,4 - Operations - Providers services,LDP E Cambs Special Needs,Residential Independent Sector
Cambridgeshire County Council,26-Oct-17,24576798-16257656,-2977.44,Decoy Farm,Care Establishment,4 - Operations - Providers services,LDP E Cambs Special Needs,Residential Independent Sector
Cambridgeshire County Council,05-Oct-17,24388058-16133193,-2977.44,Decoy Farm,Care Establishment,4 - Operations - Providers services,LDP E Cambs Special Needs,Residential Independent Sector
Cambridgeshire County Council,05-Oct-17,24388062-16133197,-2977.44,Decoy Farm,Care Establishment,4 - Operations - Providers services,LDP E Cambs Special Needs,Residential Independent Sector
Cambridgeshire County Council,05-Oct-17,24388037-16133175,-2977.44,Decoy Farm,Care Establishment,4 - Operations - Providers services,LDP E Cambs Special Needs,Residential Independent Sector
Cambridgeshire County Council,05-Oct-17,24388089-16133221,-2977.44,Decoy Farm,Care Establishment,4 - Operations - Providers services,LDP E Cambs Special Needs,Residential Independent Sector
Cambridgeshire County Council,05-Oct-17,24388098-16133230,-2977.44,Decoy Farm,Care Establishment,4 - Operations - Providers services,LDP E Cambs Special Needs,Residential Independent Sector
Cambridgeshire County Council,05-Oct-17,24388938-16133252,-2977.44,Decoy Farm,Care Establishment,4 - Operations - Providers services,LDP E Cambs Special Needs,Residential Independent Sector
Cambridgeshire County Council,05-Oct-17,24391095-16133272,-2977.44,Decoy Farm,Care Establishment,4 - Operations - Providers services,LDP E Cambs Special Needs,Residential Independent Sector
Cambridgeshire County Council,05-Oct-17,24391100-16133277,-2977.44,Decoy Farm,Care Establishment,4 - Operations - Providers services,LDP E Cambs Special Needs,Residential Independent Sector
Cambridgeshire County Council,05-Oct-17,24391104-16133281,-2977.44,Decoy Farm,Care Establishment,4 - Operations - Providers services,LDP E Cambs Special Needs,Residential Independent Sector
Cambridgeshire County Council,05-Oct-17,24391118-16133295,-2977.44,Decoy Farm,Care Establishment,4 - Operations - Providers services,LDP E Cambs Special Needs,Residential Independent Sector
Cambridgeshire County Council,05-Oct-17,24391129-16133305,-2977.44,Decoy Farm,Care Establishment,4 - Operations - Providers services,LDP E Cambs Special Needs,Residential Independent Sector
Cambridgeshire County Council,05-Oct-17,24391143-16133319,-2977.44,Decoy Farm,Care Establishment,4 - Operations - Providers services,LDP E Cambs Special Needs,Residential Independent Sector
Cambridgeshire County Council,05-Oct-17,24394936-16133337,-2977.44,Decoy Farm,Care Establishment,4 - Operations - Providers services,LDP E Cambs Special Needs,Residential Independent Sector
Cambridgeshire County Council,05-Oct-17,24394956-16133355,-2977.44,Decoy Farm,Care Establishment,4 - Operations - Providers services,LDP E Cambs Special Needs,Residential Independent Sector
Cambridgeshire County Council,05-Oct-17,24394958-16133357,-2977.44,Decoy Farm,Care Establishment,4 - Operations - Providers services,LDP E Cambs Special Needs,Residential Independent Sector
Cambridgeshire County Council,05-Oct-17,24394971-16133368,-2977.44,Decoy Farm,Care Establishment,4 - Operations - Providers services,LDP E Cambs Special Needs,Residential Independent Sector
Cambridgeshire County Council,05-Oct-17,24394987-16133383,-2977.44,Decoy Farm,Care Establishment,4 - Operations - Providers services,LDP E Cambs Special Needs,Residential Independent Sector
Cambridgeshire County Council,19-Oct-17,24429621-16218354,-2977.44,Decoy Farm,Care Establishment,4 - Operations - Providers services,LDP E Cambs Special Needs,Residential Independent Sector
Cambridgeshire County Council,19-Oct-17,24429631-16218363,-2977.44,Decoy Farm,Care Establishment,4 - Operations - Providers services,LDP E Cambs Special Needs,Residential Independent Sector
Cambridgeshire County Council,19-Oct-17,24436666-16218374,-2977.44,Decoy Farm,Care Establishment,4 - Operations - Providers services,LDP E Cambs Special Needs,Residential Independent Sector
Cambridgeshire County Council,19-Oct-17,24430260-16218508,-2977.44,Decoy Farm,Care Establishment,4 - Operations - Providers services,LDP E Cambs Special Needs,Residential Independent Sector
Cambridgeshire County Council,19-Oct-17,24430266-16218514,-2977.44,Decoy Farm,Care Establishment,4 - Operations - Providers services,LDP E Cambs Special Needs,Residential Independent Sector
Cambridgeshire County Council,19-Oct-17,24436687-16218408,-2977.44,Decoy Farm,Care Establishment,4 - Operations - Providers services,LDP E Cambs Special Needs,Residential Independent Sector
Cambridgeshire County Council,19-Oct-17,24436700-16218420,-2977.44,Decoy Farm,Care Establishment,4 - Operations - Providers services,LDP E Cambs Special Needs,Residential Independent Sector
Cambridgeshire County Council,19-Oct-17,24429637-16218434,-2977.44,Decoy Farm,Care Establishment,4 - Operations - Providers services,LDP E Cambs Special Needs,Residential Independent Sector
Cambridgeshire County Council,19-Oct-17,24496713-16218723,-2977.44,Decoy Farm,Care Establishment,4 - Operations - Providers services,LDP E Cambs Special Needs,Residential Independent Sector
Cambridgeshire County Council,19-Oct-17,24496719-16218729,-2977.44,Decoy Farm,Care Establishment,4 - Operations - Providers services,LDP E Cambs Special Needs,Residential Independent Sector
Cambridgeshire County Council,19-Oct-17,24498553-16218798,-2977.44,Decoy Farm,Care Establishment,4 - Operations - Providers services,LDP E Cambs Special Needs,Residential Independent Sector
Cambridgeshire County Council,19-Oct-17,24498565-16218809,-2977.44,Decoy Farm,Care Establishment,4 - Operations - Providers services,LDP E Cambs Special Needs,Residential Independent Sector
Cambridgeshire County Council,19-Oct-17,24438252-16218587,-2977.44,Decoy Farm,Care Establishment,4 - Operations - Providers services,LDP E Cambs Special Needs,Residential Independent Sector
Cambridgeshire County Council,19-Oct-17,24438260-16218594,-2977.44,Decoy Farm,Care Establishment,4 - Operations - Providers services,LDP E Cambs Special Needs,Residential Independent Sector
Cambridgeshire County Council,19-Oct-17,24490679-16218610,-2977.44,Decoy Farm,Care Establishment,4 - Operations - Providers services,LDP E Cambs Special Needs,Residential Independent Sector
Cambridgeshire County Council,19-Oct-17,24490696-16218627,-2977.44,Decoy Farm,Care Establishment,4 - Operations - Providers services,LDP E Cambs Special Needs,Residential Independent Sector
Cambridgeshire County Council,19-Oct-17,24496726-16218686,-2977.44,Decoy Farm,Care Establishment,4 - Operations - Providers services,LDP E Cambs Special Needs,Residential Independent Sector
Cambridgeshire County Council,26-Oct-17,24578773-16257699,-2977.44,Decoy Farm,Care Establishment,4 - Operations - Providers services,LDP E Cambs Special Needs,Residential Independent Sector
Cambridgeshire County Council,26-Oct-17,24578777-16257703,-2977.44,Decoy Farm,Care Establishment,4 - Operations - Providers services,LDP E Cambs Special Needs,Residential Independent Sector
Cambridgeshire County Council,26-Oct-17,24580788-16257763,-2977.44,Decoy Farm,Care Establishment,4 - Operations - Providers services,LDP E Cambs Special Needs,Residential Independent Sector
Cambridgeshire County Council,26-Oct-17,24580795-16257770,-2977.44,Decoy Farm,Care Establishment,4 - Operations - Providers services,LDP E Cambs Special Needs,Residential Independent Sector
Cambridgeshire County Council,26-Oct-17,24580805-16257780,-2977.44,Decoy Farm,Care Establishment,4 - Operations - Providers services,LDP E Cambs Special Needs,Residential Independent Sector
Cambridgeshire County Council,26-Oct-17,24580806-16257781,-2977.44,Decoy Farm,Care Establishment,4 - Operations - Providers services,LDP E Cambs Special Needs,Residential Independent Sector
Cambridgeshire County Council,26-Oct-17,24580811-16257786,-2977.44,Decoy Farm,Care Establishment,4 - Operations - Providers services,LDP E Cambs Special Needs,Residential Independent Sector
Cambridgeshire County Council,26-Oct-17,24580773-16257748,-2977.44,Decoy Farm,Care Establishment,4 - Operations - Providers services,LDP E Cambs Special Needs,Residential Independent Sector
Cambridgeshire County Council,26-Oct-17,24580777-16257752,-2977.44,Decoy Farm,Care Establishment,4 - Operations - Providers services,LDP E Cambs Special Needs,Residential Independent Sector
Cambridgeshire County Council,26-Oct-17,24574854-16257545,-2977.44,Decoy Farm,Care Establishment,4 - Operations - Providers services,LDP E Cambs Special Needs,Residential Independent Sector
Cambridgeshire County Council,26-Oct-17,24574876-16257567,-2977.44,Decoy Farm,Care Establishment,4 - Operations - Providers services,LDP E Cambs Special Needs,Residential Independent Sector
Cambridgeshire County Council,26-Oct-17,24574918-16257607,-2977.44,Decoy Farm,Care Establishment,4 - Operations - Providers services,LDP E Cambs Special Needs,Residential Independent Sector
Cambridgeshire County Council,26-Oct-17,24576813-16257671,-2977.44,Decoy Farm,Care Establishment,4 - Operations - Providers services,LDP E Cambs Special Needs,Residential Independent Sector
Cambridgeshire County Council,05-Oct-17,24388052-16133188,-2977.44,Decoy Farm,Care Establishment,4 - Operations - Providers services,LDP E Cambs Special Needs,Residential Independent Sector
Cambridgeshire County Council,05-Oct-17,24388031-16133169,-2977.44,Decoy Farm,Care Establishment,4 - Operations - Providers services,LDP E Cambs Special Needs,Residential Independent Sector
Cambridgeshire County Council,05-Oct-17,24391093-16133270,-2977.44,Decoy Farm,Care Establishment,4 - Operations - Providers services,LDP E Cambs Special Needs,Residential Independent Sector
Cambridgeshire County Council,05-Oct-17,24391099-16133276,-2977.44,Decoy Farm,Care Establishment,4 - Operations - Providers services,LDP E Cambs Special Needs,Residential Independent Sector
Cambridgeshire County Council,05-Oct-17,24391101-16133278,-2977.44,Decoy Farm,Care Establishment,4 - Operations - Providers services,LDP E Cambs Special Needs,Residential Independent Sector
Cambridgeshire County Council,05-Oct-17,24391102-16133279,-2977.44,Decoy Farm,Care Establishment,4 - Operations - Providers services,LDP E Cambs Special Needs,Residential Independent Sector
Cambridgeshire County Council,05-Oct-17,24391152-16133327,-2977.44,Decoy Farm,Care Establishment,4 - Operations - Providers services,LDP E Cambs Special Needs,Residential Independent Sector
Cambridgeshire County Council,05-Oct-17,24394933-16133334,-2977.44,Decoy Farm,Care Establishment,4 - Operations - Providers services,LDP E Cambs Special Needs,Residential Independent Sector
Cambridgeshire County Council,05-Oct-17,24394937-16133338,-2977.44,Decoy Farm,Care Establishment,4 - Operations - Providers services,LDP E Cambs Special Needs,Residential Independent Sector
Cambridgeshire County Council,05-Oct-17,24394941-16133341,-2977.44,Decoy Farm,Care Establishment,4 - Operations - Providers services,LDP E Cambs Special Needs,Residential Independent Sector
Cambridgeshire County Council,05-Oct-17,24394951-16133350,-2977.44,Decoy Farm,Care Establishment,4 - Operations - Providers services,LDP E Cambs Special Needs,Residential Independent Sector
Cambridgeshire County Council,05-Oct-17,24394960-16133358,-2977.44,Decoy Farm,Care Establishment,4 - Operations - Providers services,LDP E Cambs Special Needs,Residential Independent Sector
Cambridgeshire County Council,05-Oct-17,24394965-16133363,-2977.44,Decoy Farm,Care Establishment,4 - Operations - Providers services,LDP E Cambs Special Needs,Residential Independent Sector
Cambridgeshire County Council,05-Oct-17,24394989-16133385,-2977.44,Decoy Farm,Care Establishment,4 - Operations - Providers services,LDP E Cambs Special Needs,Residential Independent Sector
Cambridgeshire County Council,05-Oct-17,24395001-16133397,-2977.44,Decoy Farm,Care Establishment,4 - Operations - Providers services,LDP E Cambs Special Needs,Residential Independent Sector
Cambridgeshire County Council,19-Oct-17,24436659-16218367,-2977.44,Decoy Farm,Care Establishment,4 - Operations - Providers services,LDP E Cambs Special Needs,Residential Independent Sector
Cambridgeshire County Council,19-Oct-17,24436660-16218368,-2977.44,Decoy Farm,Care Establishment,4 - Operations - Providers services,LDP E Cambs Special Needs,Residential Independent Sector
Cambridgeshire County Council,19-Oct-17,24436669-16218377,-2977.44,Decoy Farm,Care Establishment,4 - Operations - Providers services,LDP E Cambs Special Needs,Residential Independent Sector
Cambridgeshire County Council,19-Oct-17,24430224-16218475,-2977.44,Decoy Farm,Care Establishment,4 - Operations - Providers services,LDP E Cambs Special Needs,Residential Independent Sector
Cambridgeshire County Council,19-Oct-17,24430225-16218476,-2977.44,Decoy Farm,Care Establishment,4 - Operations - Providers services,LDP E Cambs Special Needs,Residential Independent Sector
Cambridgeshire County Council,19-Oct-17,24430251-16218499,-2977.44,Decoy Farm,Care Establishment,4 - Operations - Providers services,LDP E Cambs Special Needs,Residential Independent Sector
Cambridgeshire County Council,19-Oct-17,24430253-16218501,-2977.44,Decoy Farm,Care Establishment,4 - Operations - Providers services,LDP E Cambs Special Needs,Residential Independent Sector
Cambridgeshire County Council,19-Oct-17,24430267-16218515,-2977.44,Decoy Farm,Care Establishment,4 - Operations - Providers services,LDP E Cambs Special Needs,Residential Independent Sector
Cambridgeshire County Council,19-Oct-17,24430277-16218525,-2977.44,Decoy Farm,Care Establishment,4 - Operations - Providers services,LDP E Cambs Special Needs,Residential Independent Sector
Cambridgeshire County Council,19-Oct-17,24438204-16218381,-2977.44,Decoy Farm,Care Establishment,4 - Operations - Providers services,LDP E Cambs Special Needs,Residential Independent Sector
Cambridgeshire County Council,19-Oct-17,24438206-16218383,-2977.44,Decoy Farm,Care Establishment,4 - Operations - Providers services,LDP E Cambs Special Needs,Residential Independent Sector
Cambridgeshire County Council,19-Oct-17,24436672-16218397,-2977.44,Decoy Farm,Care Establishment,4 - Operations - Providers services,LDP E Cambs Special Needs,Residential Independent Sector
Cambridgeshire County Council,19-Oct-17,24436688-16218409,-2977.44,Decoy Farm,Care Establishment,4 - Operations - Providers services,LDP E Cambs Special Needs,Residential Independent Sector
Cambridgeshire County Council,19-Oct-17,24436692-16218413,-2977.44,Decoy Farm,Care Establishment,4 - Operations - Providers services,LDP E Cambs Special Needs,Residential Independent Sector
Cambridgeshire County Council,19-Oct-17,24436694-16218414,-2977.44,Decoy Farm,Care Establishment,4 - Operations - Providers services,LDP E Cambs Special Needs,Residential Independent Sector
Cambridgeshire County Council,19-Oct-17,24436695-16218415,-2977.44,Decoy Farm,Care Establishment,4 - Operations - Providers services,LDP E Cambs Special Needs,Residential Independent Sector
Cambridgeshire County Council,19-Oct-17,24436699-16218419,-2977.44,Decoy Farm,Care Establishment,4 - Operations - Providers services,LDP E Cambs Special Needs,Residential Independent Sector
Cambridgeshire County Council,19-Oct-17,24438196-16218424,-2977.44,Decoy Farm,Care Establishment,4 - Operations - Providers services,LDP E Cambs Special Needs,Residential Independent Sector
Cambridgeshire County Council,19-Oct-17,24429649-16218446,-2977.44,Decoy Farm,Care Establishment,4 - Operations - Providers services,LDP E Cambs Special Needs,Residential Independent Sector
Cambridgeshire County Council,19-Oct-17,24430198-16218451,-2977.44,Decoy Farm,Care Establishment,4 - Operations - Providers services,LDP E Cambs Special Needs,Residential Independent Sector
Cambridgeshire County Council,19-Oct-17,24430208-16218460,-2977.44,Decoy Farm,Care Establishment,4 - Operations - Providers services,LDP E Cambs Special Needs,Residential Independent Sector
Cambridgeshire County Council,19-Oct-17,24430211-16218463,-2977.44,Decoy Farm,Care Establishment,4 - Operations - Providers services,LDP E Cambs Special Needs,Residential Independent Sector
Cambridgeshire County Council,19-Oct-17,24430216-16218468,-2977.44,Decoy Farm,Care Establishment,4 - Operations - Providers services,LDP E Cambs Special Needs,Residential Independent Sector
Cambridgeshire County Council,19-Oct-17,24496711-16218721,-2977.44,Decoy Farm,Care Establishment,4 - Operations - Providers services,LDP E Cambs Special Needs,Residential Independent Sector
Cambridgeshire County Council,19-Oct-17,24496718-16218728,-2977.44,Decoy Farm,Care Establishment,4 - Operations - Providers services,LDP E Cambs Special Needs,Residential Independent Sector
Cambridgeshire County Council,19-Oct-17,24498496-16218743,-2977.44,Decoy Farm,Care Establishment,4 - Operations - Providers services,LDP E Cambs Special Needs,Residential Independent Sector
Cambridgeshire County Council,19-Oct-17,24498539-16218786,-2977.44,Decoy Farm,Care Establishment,4 - Operations - Providers services,LDP E Cambs Special Needs,Residential Independent Sector
Cambridgeshire County Council,19-Oct-17,24498545-16218791,-2977.44,Decoy Farm,Care Establishment,4 - Operations - Providers services,LDP E Cambs Special Needs,Residential Independent Sector
Cambridgeshire County Council,19-Oct-17,24498511-16218758,-2977.44,Decoy Farm,Care Establishment,4 - Operations - Providers services,LDP E Cambs Special Needs,Residential Independent Sector
Cambridgeshire County Council,19-Oct-17,24498521-16218768,-2977.44,Decoy Farm,Care Establishment,4 - Operations - Providers services,LDP E Cambs Special Needs,Residential Independent Sector
Cambridgeshire County Council,19-Oct-17,24430294-16218541,-2977.44,Decoy Farm,Care Establishment,4 - Operations - Providers services,LDP E Cambs Special Needs,Residential Independent Sector
Cambridgeshire County Council,19-Oct-17,24430297-16218544,-2977.44,Decoy Farm,Care Establishment,4 - Operations - Providers services,LDP E Cambs Special Needs,Residential Independent Sector
Cambridgeshire County Council,19-Oct-17,24438224-16218561,-2977.44,Decoy Farm,Care Establishment,4 - Operations - Providers services,LDP E Cambs Special Needs,Residential Independent Sector
Cambridgeshire County Council,19-Oct-17,24438225-16218562,-2977.44,Decoy Farm,Care Establishment,4 - Operations - Providers services,LDP E Cambs Special Needs,Residential Independent Sector
Cambridgeshire County Council,19-Oct-17,24438265-16218599,-2977.44,Decoy Farm,Care Establishment,4 - Operations - Providers services,LDP E Cambs Special Needs,Residential Independent Sector
Cambridgeshire County Council,19-Oct-17,24490673-16218604,-2977.44,Decoy Farm,Care Establishment,4 - Operations - Providers services,LDP E Cambs Special Needs,Residential Independent Sector
Cambridgeshire County Council,19-Oct-17,24490677-16218608,-2977.44,Decoy Farm,Care Establishment,4 - Operations - Providers services,LDP E Cambs Special Needs,Residential Independent Sector
Cambridgeshire County Council,19-Oct-17,24490683-16218614,-2977.44,Decoy Farm,Care Establishment,4 - Operations - Providers services,LDP E Cambs Special Needs,Residential Independent Sector
Cambridgeshire County Council,19-Oct-17,24495545-16218651,-2977.44,Decoy Farm,Care Establishment,4 - Operations - Providers services,LDP E Cambs Special Needs,Residential Independent Sector
Cambridgeshire County Council,19-Oct-17,24496682-16218676,-2977.44,Decoy Farm,Care Establishment,4 - Operations - Providers services,LDP E Cambs Special Needs,Residential Independent Sector
Cambridgeshire County Council,19-Oct-17,24496723-16218683,-2977.44,Decoy Farm,Care Establishment,4 - Operations - Providers services,LDP E Cambs Special Needs,Residential Independent Sector
Cambridgeshire County Council,19-Oct-17,24496724-16218684,-2977.44,Decoy Farm,Care Establishment,4 - Operations - Providers services,LDP E Cambs Special Needs,Residential Independent Sector
Cambridgeshire County Council,19-Oct-17,24496691-16218702,-2977.44,Decoy Farm,Care Establishment,4 - Operations - Providers services,LDP E Cambs Special Needs,Residential Independent Sector
Cambridgeshire County Council,26-Oct-17,24580751-16257726,-2977.44,Decoy Farm,Care Establishment,4 - Operations - Providers services,LDP E Cambs Special Needs,Residential Independent Sector
Cambridgeshire County Council,26-Oct-17,24580786-16257761,-2977.44,Decoy Farm,Care Establishment,4 - Operations - Providers services,LDP E Cambs Special Needs,Residential Independent Sector
Cambridgeshire County Council,26-Oct-17,24580755-16257730,-2977.44,Decoy Farm,Care Establishment,4 - Operations - Providers services,LDP E Cambs Special Needs,Residential Independent Sector
Cambridgeshire County Council,26-Oct-17,24580782-16257757,-2977.44,Decoy Farm,Care Establishment,4 - Operations - Providers services,LDP E Cambs Special Needs,Residential Independent Sector
Cambridgeshire County Council,26-Oct-17,24574849-16257540,-2977.44,Decoy Farm,Care Establishment,4 - Operations - Providers services,LDP E Cambs Special Needs,Residential Independent Sector
Cambridgeshire County Council,26-Oct-17,24574861-16257552,-2977.44,Decoy Farm,Care Establishment,4 - Operations - Providers services,LDP E Cambs Special Needs,Residential Independent Sector
Cambridgeshire County Council,26-Oct-17,24574862-16257553,-2977.44,Decoy Farm,Care Establishment,4 - Operations - Providers services,LDP E Cambs Special Needs,Residential Independent Sector
Cambridgeshire County Council,26-Oct-17,24574889-16257580,-2977.44,Decoy Farm,Care Establishment,4 - Operations - Providers services,LDP E Cambs Special Needs,Residential Independent Sector
Cambridgeshire County Council,26-Oct-17,24574898-16257589,-2977.44,Decoy Farm,Care Establishment,4 - Operations - Providers services,LDP E Cambs Special Needs,Residential Independent Sector
Cambridgeshire County Council,26-Oct-17,24574921-16257610,-2977.44,Decoy Farm,Care Establishment,4 - Operations - Providers services,LDP E Cambs Special Needs,Residential Independent Sector
Cambridgeshire County Council,26-Oct-17,24574925-16257614,-2977.44,Decoy Farm,Care Establishment,4 - Operations - Providers services,LDP E Cambs Special Needs,Residential Independent Sector
Cambridgeshire County Council,26-Oct-17,24574932-16257621,-2977.44,Decoy Farm,Care Establishment,4 - Operations - Providers services,LDP E Cambs Special Needs,Residential Independent Sector
Cambridgeshire County Council,26-Oct-17,24576801-16257659,-2977.44,Decoy Farm,Care Establishment,4 - Operations - Providers services,LDP E Cambs Special Needs,Residential Independent Sector
Cambridgeshire County Council,26-Oct-17,24576807-16257665,-2977.44,Decoy Farm,Care Establishment,4 - Operations - Providers services,LDP E Cambs Special Needs,Residential Independent Sector
Cambridgeshire County Council,26-Oct-17,24576811-16257669,-2977.44,Decoy Farm,Care Establishment,4 - Operations - Providers services,LDP E Cambs Special Needs,Residential Independent Sector
Cambridgeshire County Council,26-Oct-17,24576828-16257685,-2977.44,Decoy Farm,Care Establishment,4 - Operations - Providers services,LDP E Cambs Special Needs,Residential Independent Sector
Cambridgeshire County Council,05-Oct-17,24388080-16133212,-2977.44,Decoy Farm,Care Establishment,4 - Operations - Providers services,LDP E Cambs Special Needs,Residential Independent Sector
Cambridgeshire County Council,05-Oct-17,24388023-16133162,-2977.44,Decoy Farm,Care Establishment,4 - Operations - Providers services,LDP E Cambs Special Needs,Residential Independent Sector
Cambridgeshire County Council,05-Oct-17,24388024-16133163,-2977.44,Decoy Farm,Care Establishment,4 - Operations - Providers services,LDP E Cambs Special Needs,Residential Independent Sector
Cambridgeshire County Council,05-Oct-17,24388095-16133227,-2977.44,Decoy Farm,Care Establishment,4 - Operations - Providers services,LDP E Cambs Special Needs,Residential Independent Sector
Cambridgeshire County Council,05-Oct-17,24388105-16133237,-2977.44,Decoy Farm,Care Establishment,4 - Operations - Providers services,LDP E Cambs Special Needs,Residential Independent Sector
Cambridgeshire County Council,05-Oct-17,24388110-16133241,-2977.44,Decoy Farm,Care Establishment,4 - Operations - Providers services,LDP E Cambs Special Needs,Residential Independent Sector
Cambridgeshire County Council,05-Oct-17,24388942-16133256,-2977.44,Decoy Farm,Care Establishment,4 - Operations - Providers services,LDP E Cambs Special Needs,Residential Independent Sector
Cambridgeshire County Council,05-Oct-17,24388944-16133257,-2977.44,Decoy Farm,Care Establishment,4 - Operations - Providers services,LDP E Cambs Special Needs,Residential Independent Sector
Cambridgeshire County Council,05-Oct-17,24388946-16133259,-2977.44,Decoy Farm,Care Establishment,4 - Operations - Providers services,LDP E Cambs Special Needs,Residential Independent Sector
Cambridgeshire County Council,05-Oct-17,24391092-16133269,-2977.44,Decoy Farm,Care Establishment,4 - Operations - Providers services,LDP E Cambs Special Needs,Residential Independent Sector
Cambridgeshire County Council,05-Oct-17,24394939-16133339,-2977.44,Decoy Farm,Care Establishment,4 - Operations - Providers services,LDP E Cambs Special Needs,Residential Independent Sector
Cambridgeshire County Council,05-Oct-17,24394988-16133384,-2977.44,Decoy Farm,Care Establishment,4 - Operations - Providers services,LDP E Cambs Special Needs,Residential Independent Sector
Cambridgeshire County Council,19-Oct-17,24429620-16218353,-2977.44,Decoy Farm,Care Establishment,4 - Operations - Providers services,LDP E Cambs Special Needs,Residential Independent Sector
Cambridgeshire County Council,19-Oct-17,24436663-16218371,-2977.44,Decoy Farm,Care Establishment,4 - Operations - Providers services,LDP E Cambs Special Needs,Residential Independent Sector
Cambridgeshire County Council,19-Oct-17,24430220-16218472,-2977.44,Decoy Farm,Care Establishment,4 - Operations - Providers services,LDP E Cambs Special Needs,Residential Independent Sector
Cambridgeshire County Council,19-Oct-17,24430227-16218478,-2977.44,Decoy Farm,Care Establishment,4 - Operations - Providers services,LDP E Cambs Special Needs,Residential Independent Sector
Cambridgeshire County Council,19-Oct-17,24430230-16218481,-2977.44,Decoy Farm,Care Establishment,4 - Operations - Providers services,LDP E Cambs Special Needs,Residential Independent Sector
Cambridgeshire County Council,19-Oct-17,24430244-16218493,-2977.44,Decoy Farm,Care Establishment,4 - Operations - Providers services,LDP E Cambs Special Needs,Residential Independent Sector
Cambridgeshire County Council,19-Oct-17,24436686-16218407,-2977.44,Decoy Farm,Care Establishment,4 - Operations - Providers services,LDP E Cambs Special Needs,Residential Independent Sector
Cambridgeshire County Council,19-Oct-17,24429634-16218431,-2977.44,Decoy Farm,Care Establishment,4 - Operations - Providers services,LDP E Cambs Special Needs,Residential Independent Sector
Cambridgeshire County Council,19-Oct-17,24498557-16218801,-2977.44,Decoy Farm,Care Establishment,4 - Operations - Providers services,LDP E Cambs Special Needs,Residential Independent Sector
Cambridgeshire County Council,19-Oct-17,24498558-16218802,-2977.44,Decoy Farm,Care Establishment,4 - Operations - Providers services,LDP E Cambs Special Needs,Residential Independent Sector
Cambridgeshire County Council,19-Oct-17,24498586-16218830,-2977.44,Decoy Farm,Care Establishment,4 - Operations - Providers services,LDP E Cambs Special Needs,Residential Independent Sector
Cambridgeshire County Council,19-Oct-17,24498614-16218858,-2977.44,Decoy Farm,Care Establishment,4 - Operations - Providers services,LDP E Cambs Special Needs,Residential Independent Sector
Cambridgeshire County Council,19-Oct-17,24498506-16218753,-2977.44,Decoy Farm,Care Establishment,4 - Operations - Providers services,LDP E Cambs Special Needs,Residential Independent Sector
Cambridgeshire County Council,19-Oct-17,24498527-16218774,-2977.44,Decoy Farm,Care Establishment,4 - Operations - Providers services,LDP E Cambs Special Needs,Residential Independent Sector
Cambridgeshire County Council,19-Oct-17,24498534-16218781,-2977.44,Decoy Farm,Care Establishment,4 - Operations - Providers services,LDP E Cambs Special Needs,Residential Independent Sector
Cambridgeshire County Council,19-Oct-17,24430292-16218539,-2977.44,Decoy Farm,Care Establishment,4 - Operations - Providers services,LDP E Cambs Special Needs,Residential Independent Sector
Cambridgeshire County Council,19-Oct-17,24430296-16218543,-2977.44,Decoy Farm,Care Establishment,4 - Operations - Providers services,LDP E Cambs Special Needs,Residential Independent Sector
Cambridgeshire County Council,19-Oct-17,24430300-16218547,-2977.44,Decoy Farm,Care Establishment,4 - Operations - Providers services,LDP E Cambs Special Needs,Residential Independent Sector
Cambridgeshire County Council,19-Oct-17,24438226-16218563,-2977.44,Decoy Farm,Care Establishment,4 - Operations - Providers services,LDP E Cambs Special Needs,Residential Independent Sector
Cambridgeshire County Council,19-Oct-17,24438228-16218565,-2977.44,Decoy Farm,Care Establishment,4 - Operations - Providers services,LDP E Cambs Special Needs,Residential Independent Sector
Cambridgeshire County Council,19-Oct-17,24490672-16218603,-2977.44,Decoy Farm,Care Establishment,4 - Operations - Providers services,LDP E Cambs Special Needs,Residential Independent Sector
Cambridgeshire County Council,19-Oct-17,24490686-16218617,-2977.44,Decoy Farm,Care Establishment,4 - Operations - Providers services,LDP E Cambs Special Needs,Residential Independent Sector
Cambridgeshire County Council,19-Oct-17,24490688-16218619,-2977.44,Decoy Farm,Care Establishment,4 - Operations - Providers services,LDP E Cambs Special Needs,Residential Independent Sector
Cambridgeshire County Council,19-Oct-17,24490693-16218624,-2977.44,Decoy Farm,Care Establishment,4 - Operations - Providers services,LDP E Cambs Special Needs,Residential Independent Sector
Cambridgeshire County Council,19-Oct-17,24495538-16218644,-2977.44,Decoy Farm,Care Establishment,4 - Operations - Providers services,LDP E Cambs Special Needs,Residential Independent Sector
Cambridgeshire County Council,19-Oct-17,24495544-16218650,-2977.44,Decoy Farm,Care Establishment,4 - Operations - Providers services,LDP E Cambs Special Needs,Residential Independent Sector
Cambridgeshire County Council,19-Oct-17,24495556-16218662,-2977.44,Decoy Farm,Care Establishment,4 - Operations - Providers services,LDP E Cambs Special Needs,Residential Independent Sector
Cambridgeshire County Council,19-Oct-17,24496730-16218690,-2977.44,Decoy Farm,Care Establishment,4 - Operations - Providers services,LDP E Cambs Special Needs,Residential Independent Sector
Cambridgeshire County Council,19-Oct-17,24496737-16218697,-2977.44,Decoy Farm,Care Establishment,4 - Operations - Providers services,LDP E Cambs Special Needs,Residential Independent Sector
Cambridgeshire County Council,19-Oct-17,24496700-16218711,-2977.44,Decoy Farm,Care Establishment,4 - Operations - Providers services,LDP E Cambs Special Needs,Residential Independent Sector
Cambridgeshire County Council,19-Oct-17,24496708-16218718,-2977.44,Decoy Farm,Care Establishment,4 - Operations - Providers services,LDP E Cambs Special Needs,Residential Independent Sector
Cambridgeshire County Council,26-Oct-17,24580785-16257760,-2977.44,Decoy Farm,Care Establishment,4 - Operations - Providers services,LDP E Cambs Special Needs,Residential Independent Sector
Cambridgeshire County Council,26-Oct-17,24580791-16257766,-2977.44,Decoy Farm,Care Establishment,4 - Operations - Providers services,LDP E Cambs Special Needs,Residential Independent Sector
Cambridgeshire County Council,26-Oct-17,24580794-16257769,-2977.44,Decoy Farm,Care Establishment,4 - Operations - Providers services,LDP E Cambs Special Needs,Residential Independent Sector
Cambridgeshire County Council,26-Oct-17,24580822-16257797,-2977.44,Decoy Farm,Care Establishment,4 - Operations - Providers services,LDP E Cambs Special Needs,Residential Independent Sector
Cambridgeshire County Council,26-Oct-17,24580758-16257733,-2977.44,Decoy Farm,Care Establishment,4 - Operations - Providers services,LDP E Cambs Special Needs,Residential Independent Sector
Cambridgeshire County Council,26-Oct-17,24580783-16257758,-2977.44,Decoy Farm,Care Establishment,4 - Operations - Providers services,LDP E Cambs Special Needs,Residential Independent Sector
Cambridgeshire County Council,26-Oct-17,24574865-16257556,-2977.44,Decoy Farm,Care Establishment,4 - Operations - Providers services,LDP E Cambs Special Needs,Residential Independent Sector
Cambridgeshire County Council,26-Oct-17,24574875-16257566,-2977.44,Decoy Farm,Care Establishment,4 - Operations - Providers services,LDP E Cambs Special Needs,Residential Independent Sector
Cambridgeshire County Council,26-Oct-17,24574886-16257577,-2977.44,Decoy Farm,Care Establishment,4 - Operations - Providers services,LDP E Cambs Special Needs,Residential Independent Sector
Cambridgeshire County Council,26-Oct-17,24574923-16257612,-2977.44,Decoy Farm,Care Establishment,4 - Operations - Providers services,LDP E Cambs Special Needs,Residential Independent Sector
Cambridgeshire County Council,26-Oct-17,24574930-16257619,-2977.44,Decoy Farm,Care Establishment,4 - Operations - Providers services,LDP E Cambs Special Needs,Residential Independent Sector
Cambridgeshire County Council,26-Oct-17,24574949-16257638,-2977.44,Decoy Farm,Care Establishment,4 - Operations - Providers services,LDP E Cambs Special Needs,Residential Independent Sector
Cambridgeshire County Council,26-Oct-17,24576830-16257654,-2977.44,Decoy Farm,Care Establishment,4 - Operations - Providers services,LDP E Cambs Special Needs,Residential Independent Sector
Cambridgeshire County Council,26-Oct-17,24576812-16257670,-2977.44,Decoy Farm,Care Establishment,4 - Operations - Providers services,LDP E Cambs Special Needs,Residential Independent Sector
Cambridgeshire County Council,05-Oct-17,24388101-16133233,-2977.44,Decoy Farm,Care Establishment,4 - Operations - Providers services,LDP E Cambs Special Needs,Residential Independent Sector
Cambridgeshire County Council,05-Oct-17,24388107-16133239,-2977.44,Decoy Farm,Care Establishment,4 - Operations - Providers services,LDP E Cambs Special Needs,Residential Independent Sector
Cambridgeshire County Council,05-Oct-17,24391136-16133312,-2977.44,Decoy Farm,Care Establishment,4 - Operations - Providers services,LDP E Cambs Special Needs,Residential Independent Sector
Cambridgeshire County Council,05-Oct-17,24391144-16133320,-2977.44,Decoy Farm,Care Establishment,4 - Operations - Providers services,LDP E Cambs Special Needs,Residential Independent Sector
Cambridgeshire County Council,05-Oct-17,24394968-16133365,-2977.44,Decoy Farm,Care Establishment,4 - Operations - Providers services,LDP E Cambs Special Needs,Residential Independent Sector
Cambridgeshire County Council,05-Oct-17,24394969-16133366,-2977.44,Decoy Farm,Care Establishment,4 - Operations - Providers services,LDP E Cambs Special Needs,Residential Independent Sector
Cambridgeshire County Council,05-Oct-17,24394972-16133369,-2977.44,Decoy Farm,Care Establishment,4 - Operations - Providers services,LDP E Cambs Special Needs,Residential Independent Sector
Cambridgeshire County Council,05-Oct-17,24394991-16133387,-2977.44,Decoy Farm,Care Establishment,4 - Operations - Providers services,LDP E Cambs Special Needs,Residential Independent Sector
Cambridgeshire County Council,05-Oct-17,24394992-16133388,-2977.44,Decoy Farm,Care Establishment,4 - Operations - Providers services,LDP E Cambs Special Needs,Residential Independent Sector
Cambridgeshire County Council,05-Oct-17,24395004-16133400,-2977.44,Decoy Farm,Care Establishment,4 - Operations - Providers services,LDP E Cambs Special Needs,Residential Independent Sector
Cambridgeshire County Council,19-Oct-17,24429616-16218349,-2977.44,Decoy Farm,Care Establishment,4 - Operations - Providers services,LDP E Cambs Special Needs,Residential Independent Sector
Cambridgeshire County Council,19-Oct-17,24429617-16218350,-2977.44,Decoy Farm,Care Establishment,4 - Operations - Providers services,LDP E Cambs Special Needs,Residential Independent Sector
Cambridgeshire County Council,19-Oct-17,24429628-16218360,-2977.44,Decoy Farm,Care Establishment,4 - Operations - Providers services,LDP E Cambs Special Needs,Residential Independent Sector
Cambridgeshire County Council,19-Oct-17,24430228-16218479,-2977.44,Decoy Farm,Care Establishment,4 - Operations - Providers services,LDP E Cambs Special Needs,Residential Independent Sector
Cambridgeshire County Council,19-Oct-17,24436674-16218399,-2977.44,Decoy Farm,Care Establishment,4 - Operations - Providers services,LDP E Cambs Special Needs,Residential Independent Sector
Cambridgeshire County Council,19-Oct-17,24436685-16218406,-2977.44,Decoy Farm,Care Establishment,4 - Operations - Providers services,LDP E Cambs Special Needs,Residential Independent Sector
Cambridgeshire County Council,19-Oct-17,24436696-16218416,-2977.44,Decoy Farm,Care Establishment,4 - Operations - Providers services,LDP E Cambs Special Needs,Residential Independent Sector
Cambridgeshire County Council,19-Oct-17,24430200-16218453,-2977.44,Decoy Farm,Care Establishment,4 - Operations - Providers services,LDP E Cambs Special Needs,Residential Independent Sector
Cambridgeshire County Council,19-Oct-17,24496742-16218734,-2977.44,Decoy Farm,Care Establishment,4 - Operations - Providers services,LDP E Cambs Special Needs,Residential Independent Sector
Cambridgeshire County Council,19-Oct-17,24498538-16218785,-2977.44,Decoy Farm,Care Establishment,4 - Operations - Providers services,LDP E Cambs Special Needs,Residential Independent Sector
Cambridgeshire County Council,19-Oct-17,24498548-16218794,-2977.44,Decoy Farm,Care Establishment,4 - Operations - Providers services,LDP E Cambs Special Needs,Residential Independent Sector
Cambridgeshire County Council,19-Oct-17,24498556-16218800,-2977.44,Decoy Farm,Care Establishment,4 - Operations - Providers services,LDP E Cambs Special Needs,Residential Independent Sector
Cambridgeshire County Council,19-Oct-17,24498560-16218804,-2977.44,Decoy Farm,Care Establishment,4 - Operations - Providers services,LDP E Cambs Special Needs,Residential Independent Sector
Cambridgeshire County Council,19-Oct-17,24498572-16218816,-2977.44,Decoy Farm,Care Establishment,4 - Operations - Providers services,LDP E Cambs Special Needs,Residential Independent Sector
Cambridgeshire County Council,19-Oct-17,24498573-16218817,-2977.44,Decoy Farm,Care Establishment,4 - Operations - Providers services,LDP E Cambs Special Needs,Residential Independent Sector
Cambridgeshire County Council,19-Oct-17,24498581-16218825,-2977.44,Decoy Farm,Care Establishment,4 - Operations - Providers services,LDP E Cambs Special Needs,Residential Independent Sector
Cambridgeshire County Council,19-Oct-17,24498592-16218836,-2977.44,Decoy Farm,Care Establishment,4 - Operations - Providers services,LDP E Cambs Special Needs,Residential Independent Sector
Cambridgeshire County Council,19-Oct-17,24498597-16218841,-2977.44,Decoy Farm,Care Establishment,4 - Operations - Providers services,LDP E Cambs Special Needs,Residential Independent Sector
Cambridgeshire County Council,19-Oct-17,24498603-16218847,-2977.44,Decoy Farm,Care Establishment,4 - Operations - Providers services,LDP E Cambs Special Needs,Residential Independent Sector
Cambridgeshire County Council,19-Oct-17,24498519-16218766,-2977.44,Decoy Farm,Care Establishment,4 - Operations - Providers services,LDP E Cambs Special Needs,Residential Independent Sector
Cambridgeshire County Council,19-Oct-17,24430301-16218548,-2977.44,Decoy Farm,Care Establishment,4 - Operations - Providers services,LDP E Cambs Special Needs,Residential Independent Sector
Cambridgeshire County Council,19-Oct-17,24448578-16218555,-2977.44,Decoy Farm,Care Establishment,4 - Operations - Providers services,LDP E Cambs Special Needs,Residential Independent Sector
Cambridgeshire County Council,19-Oct-17,24438238-16218573,-2977.44,Decoy Farm,Care Establishment,4 - Operations - Providers services,LDP E Cambs Special Needs,Residential Independent Sector
Cambridgeshire County Council,19-Oct-17,24490674-16218605,-2977.44,Decoy Farm,Care Establishment,4 - Operations - Providers services,LDP E Cambs Special Needs,Residential Independent Sector
Cambridgeshire County Council,19-Oct-17,24490680-16218611,-2977.44,Decoy Farm,Care Establishment,4 - Operations - Providers services,LDP E Cambs Special Needs,Residential Independent Sector
Cambridgeshire County Council,19-Oct-17,24490689-16218620,-2977.44,Decoy Farm,Care Establishment,4 - Operations - Providers services,LDP E Cambs Special Needs,Residential Independent Sector
Cambridgeshire County Council,19-Oct-17,24490695-16218626,-2977.44,Decoy Farm,Care Establishment,4 - Operations - Providers services,LDP E Cambs Special Needs,Residential Independent Sector
Cambridgeshire County Council,19-Oct-17,24490699-16218630,-2977.44,Decoy Farm,Care Establishment,4 - Operations - Providers services,LDP E Cambs Special Needs,Residential Independent Sector
Cambridgeshire County Council,19-Oct-17,24495527-16218633,-2977.44,Decoy Farm,Care Establishment,4 - Operations - Providers services,LDP E Cambs Special Needs,Residential Independent Sector
Cambridgeshire County Council,19-Oct-17,24495540-16218646,-2977.44,Decoy Farm,Care Establishment,4 - Operations - Providers services,LDP E Cambs Special Needs,Residential Independent Sector
Cambridgeshire County Council,19-Oct-17,24495546-16218652,-2977.44,Decoy Farm,Care Establishment,4 - Operations - Providers services,LDP E Cambs Special Needs,Residential Independent Sector
Cambridgeshire County Council,19-Oct-17,24495550-16218656,-2977.44,Decoy Farm,Care Establishment,4 - Operations - Providers services,LDP E Cambs Special Needs,Residential Independent Sector
Cambridgeshire County Council,19-Oct-17,24495558-16218664,-2977.44,Decoy Farm,Care Establishment,4 - Operations - Providers services,LDP E Cambs Special Needs,Residential Independent Sector
Cambridgeshire County Council,19-Oct-17,24496727-16218687,-2977.44,Decoy Farm,Care Establishment,4 - Operations - Providers services,LDP E Cambs Special Needs,Residential Independent Sector
Cambridgeshire County Council,19-Oct-17,24496733-16218693,-2977.44,Decoy Farm,Care Establishment,4 - Operations - Providers services,LDP E Cambs Special Needs,Residential Independent Sector
Cambridgeshire County Council,19-Oct-17,24496692-16218703,-2977.44,Decoy Farm,Care Establishment,4 - Operations - Providers services,LDP E Cambs Special Needs,Residential Independent Sector
Cambridgeshire County Council,19-Oct-17,24496697-16218708,-2977.44,Decoy Farm,Care Establishment,4 - Operations - Providers services,LDP E Cambs Special Needs,Residential Independent Sector
Cambridgeshire County Council,19-Oct-17,24496709-16218719,-2977.44,Decoy Farm,Care Establishment,4 - Operations - Providers services,LDP E Cambs Special Needs,Residential Independent Sector
Cambridgeshire County Council,26-Oct-17,24578784-16257710,-2977.44,Decoy Farm,Care Establishment,4 - Operations - Providers services,LDP E Cambs Special Needs,Residential Independent Sector
Cambridgeshire County Council,26-Oct-17,24578790-16257716,-2977.44,Decoy Farm,Care Establishment,4 - Operations - Providers services,LDP E Cambs Special Needs,Residential Independent Sector
Cambridgeshire County Council,26-Oct-17,24578796-16257722,-2977.44,Decoy Farm,Care Establishment,4 - Operations - Providers services,LDP E Cambs Special Needs,Residential Independent Sector
Cambridgeshire County Council,26-Oct-17,24578799-16257725,-2977.44,Decoy Farm,Care Establishment,4 - Operations - Providers services,LDP E Cambs Special Needs,Residential Independent Sector
Cambridgeshire County Council,26-Oct-17,24580803-16257778,-2977.44,Decoy Farm,Care Establishment,4 - Operations - Providers services,LDP E Cambs Special Needs,Residential Independent Sector
Cambridgeshire County Council,26-Oct-17,24580808-16257783,-2977.44,Decoy Farm,Care Establishment,4 - Operations - Providers services,LDP E Cambs Special Needs,Residential Independent Sector
Cambridgeshire County Council,26-Oct-17,24580818-16257793,-2977.44,Decoy Farm,Care Establishment,4 - Operations - Providers services,LDP E Cambs Special Needs,Residential Independent Sector
Cambridgeshire County Council,26-Oct-17,24580760-16257735,-2977.44,Decoy Farm,Care Establishment,4 - Operations - Providers services,LDP E Cambs Special Needs,Residential Independent Sector
Cambridgeshire County Council,26-Oct-17,24580775-16257750,-2977.44,Decoy Farm,Care Establishment,4 - Operations - Providers services,LDP E Cambs Special Needs,Residential Independent Sector
Cambridgeshire County Council,26-Oct-17,24574855-16257546,-2977.44,Decoy Farm,Care Establishment,4 - Operations - Providers services,LDP E Cambs Special Needs,Residential Independent Sector
Cambridgeshire County Council,26-Oct-17,24574859-16257550,-2977.44,Decoy Farm,Care Establishment,4 - Operations - Providers services,LDP E Cambs Special Needs,Residential Independent Sector
Cambridgeshire County Council,26-Oct-17,24574884-16257575,-2977.44,Decoy Farm,Care Establishment,4 - Operations - Providers services,LDP E Cambs Special Needs,Residential Independent Sector
Cambridgeshire County Council,26-Oct-17,24574910-16257599,-2977.44,Decoy Farm,Care Establishment,4 - Operations - Providers services,LDP E Cambs Special Needs,Residential Independent Sector
Cambridgeshire County Council,26-Oct-17,24574919-16257608,-2977.44,Decoy Farm,Care Establishment,4 - Operations - Providers services,LDP E Cambs Special Needs,Residential Independent Sector
Cambridgeshire County Council,26-Oct-17,24574922-16257611,-2977.44,Decoy Farm,Care Establishment,4 - Operations - Providers services,LDP E Cambs Special Needs,Residential Independent Sector
Cambridgeshire County Council,26-Oct-17,24574934-16257623,-2977.44,Decoy Farm,Care Establishment,4 - Operations - Providers services,LDP E Cambs Special Needs,Residential Independent Sector
Cambridgeshire County Council,26-Oct-17,24574960-16257649,-2977.44,Decoy Farm,Care Establishment,4 - Operations - Providers services,LDP E Cambs Special Needs,Residential Independent Sector
Cambridgeshire County Council,26-Oct-17,24576799-16257657,-2977.44,Decoy Farm,Care Establishment,4 - Operations - Providers services,LDP E Cambs Special Needs,Residential Independent Sector
Cambridgeshire County Council,26-Oct-17,24576818-16257675,-2977.44,Decoy Farm,Care Establishment,4 - Operations - Providers services,LDP E Cambs Special Needs,Residential Independent Sector
Cambridgeshire County Council,05-Oct-17,21496653-16137105,-2950.37,Automotive Leasing Limited,Trade Supplier,LGSS,LGSS Property Trading Recharges,Leased Vehicle Costs
Cambridgeshire County Council,26-Oct-17,24576824-16257681,-2552.09,Decoy Farm,Care Establishment,4 - Operations - Providers services,LDP E Cambs Special Needs,Residential Independent Sector
Cambridgeshire County Council,19-Oct-17,24430304-16218551,-2552.09,Decoy Farm,Care Establishment,4 - Operations - Providers services,LDP E Cambs Special Needs,Residential Independent Sector
Cambridgeshire County Council,05-Oct-17,24391134-16133310,-2552.09,Decoy Farm,Care Establishment,4 - Operations - Providers services,LDP E Cambs Special Needs,Residential Independent Sector
Cambridgeshire County Council,26-Oct-17,24574883-16257574,-2552.09,Decoy Farm,Care Establishment,4 - Operations - Providers services,LDP E Cambs Special Needs,Residential Independent Sector
Cambridgeshire County Council,05-Oct-17,24388116-16133246,-2552.09,Decoy Farm,Care Establishment,4 - Operations - Providers services,LDP E Cambs Special Needs,Residential Independent Sector
Cambridgeshire County Council,19-Oct-17,24496710-16218720,-2552.09,Decoy Farm,Care Establishment,4 - Operations - Providers services,LDP E Cambs Special Needs,Residential Independent Sector
Cambridgeshire County Council,19-Oct-17,24496735-16218695,-2552.09,Decoy Farm,Care Establishment,4 - Operations - Providers services,LDP E Cambs Special Needs,Residential Independent Sector
Cambridgeshire County Council,19-Oct-17,24436677-16218401,-2552.09,Decoy Farm,Care Establishment,4 - Operations - Providers services,LDP E Cambs Special Needs,Residential Independent Sector
Cambridgeshire County Council,27-Oct-17,24582820-16267588,-2507,Nexus Fostering Ltd,Care Establishment,S&C,Placements - Social Care,Agency Placements - In Cambs
Cambridgeshire County Council,05-Oct-17,23348469-16137102,-2448.31,Automotive Leasing Limited,Trade Supplier,LGSS,LGSS Property Trading Recharges,Leased Vehicle Costs
Cambridgeshire County Council,06-Oct-17,23608515-16149582,-2418,Swanton House,Care Establishment,4 - Commissioning - Mental Health & Supporting People,Cambridge Mental Health team,Nursing Independent Sector
Cambridgeshire County Council,26-Oct-17,24499935-16260478,-2408.7,Thera East Anglia,Care Establishment,4 - Operations - Providers services,LDP E Cambs Special Needs,Supported Living
Cambridgeshire County Council,26-Oct-17,24499933-16260476,-2408.7,Thera East Anglia,Care Establishment,4 - Operations - Providers services,LDP E Cambs Special Needs,Supported Living
Cambridgeshire County Council,12-Oct-17,24422154-16183446,-2375,Dko Wheatley,Soletrader,LGSS Managed,County Farms,Trees / landscaping materials
Cambridgeshire County Council,05-Oct-17,24385549-16137199,-2357.16,Unique Care Homes,Care Establishment,S&C,Placements - Social Care,Agency Placements - In Cambs
Cambridgeshire County Council,12-Oct-17,24358340-16190008,-2337.29,Dimensions (Uk) Ltd,Care Establishment,4 - Operations - Providers services,LDP Cambs City - Special Needs,Supported Living
Cambridgeshire County Council,12-Oct-17,24395393-16190030,-2337.29,Dimensions (Uk) Ltd,Care Establishment,4 - Operations - Providers services,LDP Cambs City - Special Needs,Supported Living
Cambridgeshire County Council,12-Oct-17,24395395-16190032,-2337.29,Dimensions (Uk) Ltd,Care Establishment,4 - Operations - Providers services,LDP South Cambs - Special Needs,Supported Living
Cambridgeshire County Council,12-Oct-17,24426271-16190043,-2337.29,Dimensions (Uk) Ltd,Care Establishment,4 - Operations - Providers services,LDP South Cambs - Special Needs,Supported Living
Cambridgeshire County Council,12-Oct-17,24426274-16190045,-2337.29,Dimensions (Uk) Ltd,Care Establishment,4 - Operations - Providers services,LDP Cambs City - Special Needs,Supported Living
Cambridgeshire County Council,12-Oct-17,24358342-16190010,-2337.29,Dimensions (Uk) Ltd,Care Establishment,4 - Operations - Providers services,LDP South Cambs - Special Needs,Supported Living
Cambridgeshire County Council,12-Oct-17,24395398-16190035,-2337.29,Dimensions (Uk) Ltd,Care Establishment,4 - Operations - Providers services,LDP Cambs City - Special Needs,Supported Living
Cambridgeshire County Council,12-Oct-17,24426276-16190047,-2337.29,Dimensions (Uk) Ltd,Care Establishment,4 - Operations - Providers services,LDP South Cambs - Special Needs,Supported Living
Cambridgeshire County Council,12-Oct-17,24426290-16190059,-2337.29,Dimensions (Uk) Ltd,Care Establishment,4 - Operations - Providers services,LDP Cambs City - Special Needs,Supported Living
Cambridgeshire County Council,12-Oct-17,24426288-16190058,-2337.29,Dimensions (Uk) Ltd,Care Establishment,4 - Operations - Providers services,LDP Cambs City - Special Needs,Supported Living
Cambridgeshire County Council,12-Oct-17,24358338-16190006,-2337.29,Dimensions (Uk) Ltd,Care Establishment,4 - Operations - Providers services,LDP South Cambs - Special Needs,Supported Living
Cambridgeshire County Council,12-Oct-17,24358345-16190013,-2337.29,Dimensions (Uk) Ltd,Care Establishment,4 - Operations - Providers services,LDP Cambs City - Special Needs,Supported Living
Cambridgeshire County Council,12-Oct-17,24395392-16190029,-2337.29,Dimensions (Uk) Ltd,Care Establishment,4 - Operations - Providers services,LDP Cambs City - Special Needs,Supported Living
Cambridgeshire County Council,12-Oct-17,24395387-16190024,-2337.29,Dimensions (Uk) Ltd,Care Establishment,4 - Operations - Providers services,LDP South Cambs - Special Needs,Supported Living
Cambridgeshire County Council,12-Oct-17,24395397-16190034,-2337.29,Dimensions (Uk) Ltd,Care Establishment,4 - Operations - Providers services,LDP Cambs City - Special Needs,Supported Living
Cambridgeshire County Council,12-Oct-17,24426265-16190038,-2337.29,Dimensions (Uk) Ltd,Care Establishment,4 - Operations - Providers services,LDP South Cambs - Special Needs,Supported Living
Cambridgeshire County Council,12-Oct-17,24358341-16190009,-2337.29,Dimensions (Uk) Ltd,Care Establishment,4 - Operations - Providers services,LDP Cambs City - Special Needs,Supported Living
Cambridgeshire County Council,12-Oct-17,24358348-16190016,-2337.29,Dimensions (Uk) Ltd,Care Establishment,4 - Operations - Providers services,LDP Cambs City - Special Needs,Supported Living
Cambridgeshire County Council,12-Oct-17,24358349-16190017,-2337.29,Dimensions (Uk) Ltd,Care Establishment,4 - Operations - Providers services,LDP South Cambs - Special Needs,Supported Living
Cambridgeshire County Council,12-Oct-17,24395385-16190022,-2337.29,Dimensions (Uk) Ltd,Care Establishment,4 - Operations - Providers services,LDP South Cambs - Special Needs,Supported Living
Cambridgeshire County Council,12-Oct-17,24358350-16190018,-2337.29,Dimensions (Uk) Ltd,Care Establishment,4 - Operations - Providers services,LDP Cambs City - Special Needs,Supported Living
Cambridgeshire County Council,12-Oct-17,24395388-16190025,-2337.29,Dimensions (Uk) Ltd,Care Establishment,4 - Operations - Providers services,LDP South Cambs - Special Needs,Supported Living
Cambridgeshire County Council,12-Oct-17,24426266-16190039,-2337.29,Dimensions (Uk) Ltd,Care Establishment,4 - Operations - Providers services,LDP South Cambs - Special Needs,Supported Living
Cambridgeshire County Council,12-Oct-17,24426285-16190055,-2337.29,Dimensions (Uk) Ltd,Care Establishment,4 - Operations - Providers services,LDP Cambs City - Special Needs,Supported Living
Cambridgeshire County Council,05-Oct-17,24385548-16137198,-2200,Unique Care Homes,Care Establishment,S&C,Placements - Social Care,Agency Placements - In Cambs
Cambridgeshire County Council,12-Oct-17,24426613-16184954,-2185.37,Turning Point Services Ltd,Care Establishment,2 - Operations - Learning Disability,LDP Fenland Locality - Care,Day and Domicillary Care Independent Sector
Cambridgeshire County Council,12-Oct-17,24426587-16184928,-2185.37,Turning Point Services Ltd,Care Establishment,2 - Operations - Learning Disability,LDP Fenland Locality - Care,Day and Domicillary Care Independent Sector
Cambridgeshire County Council,12-Oct-17,24426644-16184985,-2185.37,Turning Point Services Ltd,Care Establishment,4 - Operations - Providers services,LDP Fens - Special Needs,Day and Domicillary Care Independent Sector
Cambridgeshire County Council,12-Oct-17,24433721-16185019,-2185.37,Turning Point Services Ltd,Care Establishment,2 - Operations - Learning Disability,LDP Fenland Locality - Care,Day and Domicillary Care Independent Sector
Cambridgeshire County Council,12-Oct-17,24433722-16185020,-2185.37,Turning Point Services Ltd,Care Establishment,2 - Operations - Learning Disability,LDP Fenland Locality - Care,Day and Domicillary Care Independent Sector
Cambridgeshire County Council,12-Oct-17,24433732-16185030,-2185.37,Turning Point Services Ltd,Care Establishment,2 - Operations - Learning Disability,LDP Fenland Locality - Care,Day and Domicillary Care Independent Sector
Cambridgeshire County Council,12-Oct-17,24433733-16185031,-2185.37,Turning Point Services Ltd,Care Establishment,2 - Operations - Learning Disability,LDP Fenland Locality - Care,Day and Domicillary Care Independent Sector
Cambridgeshire County Council,12-Oct-17,24433736-16185034,-2185.37,Turning Point Services Ltd,Care Establishment,2 - Operations - Learning Disability,LDP Fenland Locality - Care,Day and Domicillary Care Independent Sector
Cambridgeshire County Council,12-Oct-17,24442068-16185046,-2185.37,Turning Point Services Ltd,Care Establishment,2 - Operations - Learning Disability,LDP Fenland Locality - Care,Day and Domicillary Care Independent Sector
Cambridgeshire County Council,12-Oct-17,24426617-16184958,-2185.37,Turning Point Services Ltd,Care Establishment,2 - Operations - Learning Disability,LDP Fenland Locality - Care,Day and Domicillary Care Independent Sector
Cambridgeshire County Council,12-Oct-17,24426636-16184977,-2185.37,Turning Point Services Ltd,Care Establishment,2 - Operations - Learning Disability,LDP Fenland Locality - Care,Day and Domicillary Care Independent Sector
Cambridgeshire County Council,12-Oct-17,24428186-16185006,-2185.37,Turning Point Services Ltd,Care Establishment,2 - Operations - Learning Disability,LDP Fenland Locality - Care,Day and Domicillary Care Independent Sector
Cambridgeshire County Council,12-Oct-17,24433724-16185022,-2185.37,Turning Point Services Ltd,Care Establishment,2 - Operations - Learning Disability,LDP Fenland Locality - Care,Day and Domicillary Care Independent Sector
Cambridgeshire County Council,12-Oct-17,24433741-16185039,-2185.37,Turning Point Services Ltd,Care Establishment,2 - Operations - Learning Disability,LDP Fenland Locality - Care,Day and Domicillary Care Independent Sector
Cambridgeshire County Council,12-Oct-17,24442071-16185049,-2185.37,Turning Point Services Ltd,Care Establishment,2 - Operations - Learning Disability,LDP Fenland Locality - Care,Day and Domicillary Care Independent Sector
Cambridgeshire County Council,12-Oct-17,24442090-16185068,-2185.37,Turning Point Services Ltd,Care Establishment,2 - Operations - Learning Disability,LDP Fenland Locality - Care,Day and Domicillary Care Independent Sector
Cambridgeshire County Council,12-Oct-17,24426596-16184937,-2185.37,Turning Point Services Ltd,Care Establishment,2 - Operations - Learning Disability,LDP Fenland Locality - Care,Day and Domicillary Care Independent Sector
Cambridgeshire County Council,12-Oct-17,24426598-16184939,-2185.37,Turning Point Services Ltd,Care Establishment,2 - Operations - Learning Disability,LDP Fenland Locality - Care,Day and Domicillary Care Independent Sector
Cambridgeshire County Council,12-Oct-17,24426615-16184956,-2185.37,Turning Point Services Ltd,Care Establishment,2 - Operations - Learning Disability,LDP Fenland Locality - Care,Day and Domicillary Care Independent Sector
Cambridgeshire County Council,12-Oct-17,24426576-16184917,-2185.37,Turning Point Services Ltd,Care Establishment,2 - Operations - Learning Disability,LDP Fenland Locality - Care,Day and Domicillary Care Independent Sector
Cambridgeshire County Council,12-Oct-17,24426634-16184975,-2185.37,Turning Point Services Ltd,Care Establishment,2 - Operations - Learning Disability,LDP Fenland Locality - Care,Day and Domicillary Care Independent Sector
Cambridgeshire County Council,12-Oct-17,24426574-16184999,-2185.37,Turning Point Services Ltd,Care Establishment,2 - Operations - Learning Disability,LDP Fenland Locality - Care,Day and Domicillary Care Independent Sector
Cambridgeshire County Council,12-Oct-17,24428190-16185010,-2185.37,Turning Point Services Ltd,Care Establishment,2 - Operations - Learning Disability,LDP Fenland Locality - Care,Day and Domicillary Care Independent Sector
Cambridgeshire County Council,12-Oct-17,24433729-16185027,-2185.37,Turning Point Services Ltd,Care Establishment,2 - Operations - Learning Disability,LDP Fenland Locality - Care,Day and Domicillary Care Independent Sector
Cambridgeshire County Council,12-Oct-17,24433730-16185028,-2185.37,Turning Point Services Ltd,Care Establishment,2 - Operations - Learning Disability,LDP Fenland Locality - Care,Day and Domicillary Care Independent Sector
Cambridgeshire County Council,12-Oct-17,24442095-16185073,-2185.37,Turning Point Services Ltd,Care Establishment,2 - Operations - Learning Disability,LDP Fenland Locality - Care,Day and Domicillary Care Independent Sector
Cambridgeshire County Council,12-Oct-17,24426592-16184933,-2185.37,Turning Point Services Ltd,Care Establishment,2 - Operations - Learning Disability,LDP Fenland Locality - Care,Day and Domicillary Care Independent Sector
Cambridgeshire County Council,12-Oct-17,24426597-16184938,-2185.37,Turning Point Services Ltd,Care Establishment,2 - Operations - Learning Disability,LDP Fenland Locality - Care,Day and Domicillary Care Independent Sector
Cambridgeshire County Council,12-Oct-17,24426608-16184949,-2185.37,Turning Point Services Ltd,Care Establishment,2 - Operations - Learning Disability,LDP Fenland Locality - Care,Day and Domicillary Care Independent Sector
Cambridgeshire County Council,12-Oct-17,24426618-16184959,-2185.37,Turning Point Services Ltd,Care Establishment,2 - Operations - Learning Disability,LDP Fenland Locality - Care,Day and Domicillary Care Independent Sector
Cambridgeshire County Council,12-Oct-17,24426621-16184962,-2185.37,Turning Point Services Ltd,Care Establishment,2 - Operations - Learning Disability,LDP Fenland Locality - Care,Day and Domicillary Care Independent Sector
Cambridgeshire County Council,12-Oct-17,24433719-16185017,-2185.37,Turning Point Services Ltd,Care Establishment,2 - Operations - Learning Disability,LDP Fenland Locality - Care,Day and Domicillary Care Independent Sector
Cambridgeshire County Council,12-Oct-17,24433728-16185026,-2185.37,Turning Point Services Ltd,Care Establishment,2 - Operations - Learning Disability,LDP Fenland Locality - Care,Day and Domicillary Care Independent Sector
Cambridgeshire County Council,12-Oct-17,24442093-16185071,-2185.37,Turning Point Services Ltd,Care Establishment,2 - Operations - Learning Disability,LDP Fenland Locality - Care,Day and Domicillary Care Independent Sector
Cambridgeshire County Council,12-Oct-17,24442094-16185072,-2185.37,Turning Point Services Ltd,Care Establishment,2 - Operations - Learning Disability,LDP Fenland Locality - Care,Day and Domicillary Care Independent Sector
Cambridgeshire County Council,12-Oct-17,24426577-16184918,-2185.37,Turning Point Services Ltd,Care Establishment,2 - Operations - Learning Disability,LDP Fenland Locality - Care,Day and Domicillary Care Independent Sector
Cambridgeshire County Council,12-Oct-17,24426586-16184927,-2185.37,Turning Point Services Ltd,Care Establishment,2 - Operations - Learning Disability,LDP Fenland Locality - Care,Day and Domicillary Care Independent Sector
Cambridgeshire County Council,12-Oct-17,24426623-16184964,-2185.37,Turning Point Services Ltd,Care Establishment,4 - Operations - Providers services,LDP Fens - Special Needs,Day and Domicillary Care Independent Sector
Cambridgeshire County Council,12-Oct-17,24426625-16184966,-2185.37,Turning Point Services Ltd,Care Establishment,2 - Operations - Learning Disability,LDP Fenland Locality - Care,Day and Domicillary Care Independent Sector
Cambridgeshire County Council,12-Oct-17,24428183-16185003,-2185.37,Turning Point Services Ltd,Care Establishment,4 - Operations - Providers services,LDP Fens - Special Needs,Day and Domicillary Care Independent Sector
Cambridgeshire County Council,12-Oct-17,24433735-16185033,-2185.37,Turning Point Services Ltd,Care Establishment,2 - Operations - Learning Disability,LDP Fenland Locality - Care,Day and Domicillary Care Independent Sector
Cambridgeshire County Council,12-Oct-17,24433742-16185040,-2185.37,Turning Point Services Ltd,Care Establishment,4 - Operations - Providers services,LDP Fens - Special Needs,Day and Domicillary Care Independent Sector
Cambridgeshire County Council,12-Oct-17,24442081-16185059,-2185.37,Turning Point Services Ltd,Care Establishment,2 - Operations - Learning Disability,LDP Fenland Locality - Care,Day and Domicillary Care Independent Sector
Cambridgeshire County Council,12-Oct-17,24442083-16185061,-2185.37,Turning Point Services Ltd,Care Establishment,2 - Operations - Learning Disability,LDP Fenland Locality - Care,Day and Domicillary Care Independent Sector
Cambridgeshire County Council,12-Oct-17,24426622-16184963,-2185.37,Turning Point Services Ltd,Care Establishment,2 - Operations - Learning Disability,LDP Fenland Locality - Care,Day and Domicillary Care Independent Sector
Cambridgeshire County Council,12-Oct-17,24426626-16184967,-2185.37,Turning Point Services Ltd,Care Establishment,2 - Operations - Learning Disability,LDP Fenland Locality - Care,Day and Domicillary Care Independent Sector
Cambridgeshire County Council,12-Oct-17,24426643-16184984,-2185.37,Turning Point Services Ltd,Care Establishment,2 - Operations - Learning Disability,LDP Fenland Locality - Care,Day and Domicillary Care Independent Sector
Cambridgeshire County Council,12-Oct-17,24433723-16185021,-2185.37,Turning Point Services Ltd,Care Establishment,2 - Operations - Learning Disability,LDP Fenland Locality - Care,Day and Domicillary Care Independent Sector
Cambridgeshire County Council,12-Oct-17,24433725-16185023,-2185.37,Turning Point Services Ltd,Care Establishment,4 - Operations - Providers services,LDP Fens - Special Needs,Day and Domicillary Care Independent Sector
Cambridgeshire County Council,12-Oct-17,24433727-16185025,-2185.37,Turning Point Services Ltd,Care Establishment,2 - Operations - Learning Disability,LDP Fenland Locality - Care,Day and Domicillary Care Independent Sector
Cambridgeshire County Council,12-Oct-17,24433734-16185032,-2185.37,Turning Point Services Ltd,Care Establishment,2 - Operations - Learning Disability,LDP Fenland Locality - Care,Day and Domicillary Care Independent Sector
Cambridgeshire County Council,12-Oct-17,24433737-16185035,-2185.37,Turning Point Services Ltd,Care Establishment,2 - Operations - Learning Disability,LDP Fenland Locality - Care,Day and Domicillary Care Independent Sector
Cambridgeshire County Council,12-Oct-17,24442084-16185062,-2185.37,Turning Point Services Ltd,Care Establishment,2 - Operations - Learning Disability,LDP Fenland Locality - Care,Day and Domicillary Care Independent Sector
Cambridgeshire County Council,12-Oct-17,24426588-16184929,-2185.37,Turning Point Services Ltd,Care Establishment,2 - Operations - Learning Disability,LDP Fenland Locality - Care,Day and Domicillary Care Independent Sector
Cambridgeshire County Council,12-Oct-17,24426590-16184931,-2185.37,Turning Point Services Ltd,Care Establishment,2 - Operations - Learning Disability,LDP Fenland Locality - Care,Day and Domicillary Care Independent Sector
Cambridgeshire County Council,12-Oct-17,24426606-16184947,-2185.37,Turning Point Services Ltd,Care Establishment,2 - Operations - Learning Disability,LDP Fenland Locality - Care,Day and Domicillary Care Independent Sector
Cambridgeshire County Council,12-Oct-17,24426610-16184951,-2185.37,Turning Point Services Ltd,Care Establishment,2 - Operations - Learning Disability,LDP Fenland Locality - Care,Day and Domicillary Care Independent Sector
Cambridgeshire County Council,12-Oct-17,24426616-16184957,-2185.37,Turning Point Services Ltd,Care Establishment,2 - Operations - Learning Disability,LDP Fenland Locality - Care,Day and Domicillary Care Independent Sector
Cambridgeshire County Council,12-Oct-17,24426624-16184965,-2185.37,Turning Point Services Ltd,Care Establishment,4 - Operations - Providers services,LDP Fens - Special Needs,Day and Domicillary Care Independent Sector
Cambridgeshire County Council,12-Oct-17,24426639-16184980,-2185.37,Turning Point Services Ltd,Care Establishment,2 - Operations - Learning Disability,LDP Fenland Locality - Care,Day and Domicillary Care Independent Sector
Cambridgeshire County Council,12-Oct-17,24426567-16184992,-2185.37,Turning Point Services Ltd,Care Establishment,2 - Operations - Learning Disability,LDP Fenland Locality - Care,Day and Domicillary Care Independent Sector
Cambridgeshire County Council,12-Oct-17,24433720-16185018,-2185.37,Turning Point Services Ltd,Care Establishment,2 - Operations - Learning Disability,LDP Fenland Locality - Care,Day and Domicillary Care Independent Sector
Cambridgeshire County Council,12-Oct-17,24433740-16185038,-2185.37,Turning Point Services Ltd,Care Establishment,2 - Operations - Learning Disability,LDP Fenland Locality - Care,Day and Domicillary Care Independent Sector
Cambridgeshire County Council,12-Oct-17,24442065-16185043,-2185.37,Turning Point Services Ltd,Care Establishment,2 - Operations - Learning Disability,LDP Fenland Locality - Care,Day and Domicillary Care Independent Sector
Cambridgeshire County Council,12-Oct-17,24442075-16185053,-2185.37,Turning Point Services Ltd,Care Establishment,2 - Operations - Learning Disability,LDP Fenland Locality - Care,Day and Domicillary Care Independent Sector
Cambridgeshire County Council,12-Oct-17,24426601-16184942,-2185.37,Turning Point Services Ltd,Care Establishment,2 - Operations - Learning Disability,LDP Fenland Locality - Care,Day and Domicillary Care Independent Sector
Cambridgeshire County Council,12-Oct-17,24426607-16184948,-2185.37,Turning Point Services Ltd,Care Establishment,2 - Operations - Learning Disability,LDP Fenland Locality - Care,Day and Domicillary Care Independent Sector
Cambridgeshire County Council,12-Oct-17,24426580-16184921,-2185.37,Turning Point Services Ltd,Care Establishment,2 - Operations - Learning Disability,LDP Fenland Locality - Care,Day and Domicillary Care Independent Sector
Cambridgeshire County Council,12-Oct-17,24426635-16184976,-2185.37,Turning Point Services Ltd,Care Establishment,2 - Operations - Learning Disability,LDP Fenland Locality - Care,Day and Domicillary Care Independent Sector
Cambridgeshire County Council,12-Oct-17,24426640-16184981,-2185.37,Turning Point Services Ltd,Care Establishment,2 - Operations - Learning Disability,LDP Fenland Locality - Care,Day and Domicillary Care Independent Sector
Cambridgeshire County Council,12-Oct-17,24426570-16184995,-2185.37,Turning Point Services Ltd,Care Establishment,2 - Operations - Learning Disability,LDP Fenland Locality - Care,Day and Domicillary Care Independent Sector
Cambridgeshire County Council,12-Oct-17,24428182-16185002,-2185.37,Turning Point Services Ltd,Care Establishment,4 - Operations - Providers services,LDP Fens - Special Needs,Day and Domicillary Care Independent Sector
Cambridgeshire County Council,12-Oct-17,24442064-16185042,-2185.37,Turning Point Services Ltd,Care Establishment,2 - Operations - Learning Disability,LDP Fenland Locality - Care,Day and Domicillary Care Independent Sector
Cambridgeshire County Council,12-Oct-17,24442086-16185064,-2185.37,Turning Point Services Ltd,Care Establishment,4 - Operations - Providers services,LDP Fens - Special Needs,Day and Domicillary Care Independent Sector
Cambridgeshire County Council,19-Oct-17,24430299-16218546,-2126.74,Decoy Farm,Care Establishment,4 - Operations - Providers services,LDP E Cambs Special Needs,Residential Independent Sector
Cambridgeshire County Council,19-Oct-17,24495559-16218665,-2126.74,Decoy Farm,Care Establishment,4 - Operations - Providers services,LDP E Cambs Special Needs,Residential Independent Sector
Cambridgeshire County Council,26-Oct-17,24576806-16257664,-2126.74,Decoy Farm,Care Establishment,4 - Operations - Providers services,LDP E Cambs Special Needs,Residential Independent Sector
Cambridgeshire County Council,05-Oct-17,24388937-16133251,-2126.74,Decoy Farm,Care Establishment,4 - Operations - Providers services,LDP E Cambs Special Needs,Residential Independent Sector
Cambridgeshire County Council,13-Oct-17,24233927-16197484,-1973.51,J & P Meats Ltd T/A Days Of Buckden,Trade Supplier,Control Accounts,Uncleared bank items,Bank Overdraft Expenditure / Payments
Cambridgeshire County Council,19-Oct-17,24490729-16226940,-1886.1,Redacted Personal Data,Individual,2 - Operations - Learning Disability,LDP Hunts special needs,Direct Payments - Social Services
Cambridgeshire County Council,19-Oct-17,24490754-16226948,-1886.1,Redacted Personal Data,Individual,2 - Operations - Learning Disability,LDP Hunts special needs,Direct Payments - Social Services
Cambridgeshire County Council,19-Oct-17,24490712-16226938,-1886.1,Redacted Personal Data,Individual,2 - Operations - Learning Disability,LDP Hunts special needs,Direct Payments - Social Services
Cambridgeshire County Council,19-Oct-17,24490751-16226946,-1886.1,Redacted Personal Data,Individual,2 - Operations - Learning Disability,LDP Hunts special needs,Direct Payments - Social Services
Cambridgeshire County Council,19-Oct-17,24490709-16226937,-1886.1,Redacted Personal Data,Individual,2 - Operations - Learning Disability,LDP Hunts special needs,Direct Payments - Social Services
Cambridgeshire County Council,06-Oct-17,23644037-16149586,-1877.71,Swanton House,Care Establishment,4 - Commissioning - Mental Health & Supporting People,Cambridge Mental Health team,Nursing Independent Sector
Cambridgeshire County Council,12-Oct-17,24426620-16184961,-1873.17,Turning Point Services Ltd,Care Establishment,2 - Operations - Learning Disability,LDP Fenland Locality - Care,Day and Domicillary Care Independent Sector
Cambridgeshire County Council,12-Oct-17,24442066-16185044,-1873.17,Turning Point Services Ltd,Care Establishment,2 - Operations - Learning Disability,LDP Fenland Locality - Care,Day and Domicillary Care Independent Sector
Cambridgeshire County Council,18-Oct-17,22875053-16215498,-1791.79,Nexus Fostering Ltd,Care Establishment,S&C,Placements - Social Care,Agency Placements - Out County
Cambridgeshire County Council,05-Oct-17,21897264-16137106,-1789.26,Automotive Leasing Limited,Trade Supplier,S&C,Catering - Hospitality Budgets,Leased Vehicle Costs
Cambridgeshire County Council,12-Oct-17,24395212-16177871,-1711.36,Affinity Trust,Care Establishment,4 - Operations - Providers services,LDP Fens - Special Needs,Supported Living
Cambridgeshire County Council,12-Oct-17,24362797-16177832,-1711.36,Affinity Trust,Care Establishment,4 - Operations - Providers services,LDP Fens - Special Needs,Supported Living
Cambridgeshire County Council,12-Oct-17,24390231-16177849,-1711.36,Affinity Trust,Care Establishment,4 - Operations - Providers services,LDP Fens - Special Needs,Supported Living
Cambridgeshire County Council,12-Oct-17,24390235-16177853,-1711.36,Affinity Trust,Care Establishment,4 - Operations - Providers services,LDP Fens - Special Needs,Supported Living
Cambridgeshire County Council,12-Oct-17,24425757-16177902,-1711.36,Affinity Trust,Care Establishment,4 - Operations - Providers services,LDP Fens - Special Needs,Supported Living
Cambridgeshire County Council,12-Oct-17,24425767-16177912,-1711.36,Affinity Trust,Care Establishment,2 - Operations - Learning Disability,LDP Fenland Locality - Care,Supported Living
Cambridgeshire County Council,12-Oct-17,24390244-16177861,-1711.36,Affinity Trust,Care Establishment,4 - Operations - Providers services,LDP Fens - Special Needs,Supported Living
Cambridgeshire County Council,12-Oct-17,24395210-16177869,-1711.36,Affinity Trust,Care Establishment,2 - Operations - Learning Disability,LDP Fenland Locality - Care,Supported Living
Cambridgeshire County Council,12-Oct-17,24362783-16177818,-1711.36,Affinity Trust,Care Establishment,2 - Operations - Learning Disability,LDP Fenland Locality - Care,Supported Living
Cambridgeshire County Council,12-Oct-17,24425748-16177893,-1711.36,Affinity Trust,Care Establishment,4 - Operations - Providers services,LDP Fens - Special Needs,Supported Living
Cambridgeshire County Council,12-Oct-17,24425752-16177897,-1711.36,Affinity Trust,Care Establishment,2 - Operations - Learning Disability,LDP Fenland Locality - Care,Supported Living
Cambridgeshire County Council,12-Oct-17,24425763-16177908,-1711.36,Affinity Trust,Care Establishment,4 - Operations - Providers services,LDP Fens - Special Needs,Supported Living
Cambridgeshire County Council,12-Oct-17,24362791-16177826,-1711.36,Affinity Trust,Care Establishment,4 - Operations - Providers services,LDP Fens - Special Needs,Supported Living
Cambridgeshire County Council,12-Oct-17,24362794-16177829,-1711.36,Affinity Trust,Care Establishment,4 - Operations - Providers services,LDP Fens - Special Needs,Supported Living
Cambridgeshire County Council,12-Oct-17,24425746-16177891,-1711.36,Affinity Trust,Care Establishment,4 - Operations - Providers services,LDP Fens - Special Needs,Supported Living
Cambridgeshire County Council,12-Oct-17,24425747-16177892,-1711.36,Affinity Trust,Care Establishment,4 - Operations - Providers services,LDP Fens - Special Needs,Supported Living
Cambridgeshire County Council,12-Oct-17,24425749-16177894,-1711.36,Affinity Trust,Care Establishment,2 - Operations - Learning Disability,LDP Fenland Locality - Care,Supported Living
Cambridgeshire County Council,12-Oct-17,24425760-16177905,-1711.36,Affinity Trust,Care Establishment,4 - Operations - Providers services,LDP Fens - Special Needs,Supported Living
Cambridgeshire County Council,12-Oct-17,24425762-16177907,-1711.36,Affinity Trust,Care Establishment,2 - Operations - Learning Disability,LDP Fenland Locality - Care,Supported Living
Cambridgeshire County Council,12-Oct-17,24395214-16177873,-1711.36,Affinity Trust,Care Establishment,2 - Operations - Learning Disability,LDP Fenland Locality - Care,Supported Living
Cambridgeshire County Council,12-Oct-17,24395216-16177875,-1711.36,Affinity Trust,Care Establishment,2 - Operations - Learning Disability,LDP Fenland Locality - Care,Supported Living
Cambridgeshire County Council,12-Oct-17,24395218-16177877,-1711.36,Affinity Trust,Care Establishment,4 - Operations - Providers services,LDP Fens - Special Needs,Supported Living
Cambridgeshire County Council,12-Oct-17,24395223-16177880,-1711.36,Affinity Trust,Care Establishment,4 - Operations - Providers services,LDP Fens - Special Needs,Supported Living
Cambridgeshire County Council,12-Oct-17,24425743-16177888,-1711.36,Affinity Trust,Care Establishment,2 - Operations - Learning Disability,LDP Fenland Locality - Care,Supported Living
Cambridgeshire County Council,12-Oct-17,24362781-16177816,-1711.36,Affinity Trust,Care Establishment,2 - Operations - Learning Disability,LDP Fenland Locality - Care,Supported Living
Cambridgeshire County Council,12-Oct-17,24362764-16177833,-1711.36,Affinity Trust,Care Establishment,4 - Operations - Providers services,LDP Fens - Special Needs,Supported Living
Cambridgeshire County Council,12-Oct-17,24362772-16177841,-1711.36,Affinity Trust,Care Establishment,4 - Operations - Providers services,LDP Fens - Special Needs,Supported Living
Cambridgeshire County Council,12-Oct-17,24390230-16177848,-1711.36,Affinity Trust,Care Establishment,2 - Operations - Learning Disability,LDP Fenland Locality - Care,Supported Living
Cambridgeshire County Council,12-Oct-17,24390234-16177852,-1711.36,Affinity Trust,Care Establishment,2 - Operations - Learning Disability,LDP Fenland Locality - Care,Supported Living
Cambridgeshire County Council,12-Oct-17,24390237-16177855,-1711.36,Affinity Trust,Care Establishment,4 - Operations - Providers services,LDP Fens - Special Needs,Supported Living
Cambridgeshire County Council,12-Oct-17,24390246-16177863,-1711.36,Affinity Trust,Care Establishment,2 - Operations - Learning Disability,LDP Fenland Locality - Care,Supported Living
Cambridgeshire County Council,12-Oct-17,24395219-16177878,-1711.36,Affinity Trust,Care Establishment,4 - Operations - Providers services,LDP Fens - Special Needs,Supported Living
Cambridgeshire County Council,12-Oct-17,24425742-16177887,-1711.36,Affinity Trust,Care Establishment,2 - Operations - Learning Disability,LDP Fenland Locality - Care,Supported Living
Cambridgeshire County Council,12-Oct-17,24362784-16177819,-1711.36,Affinity Trust,Care Establishment,4 - Operations - Providers services,LDP Fens - Special Needs,Supported Living
Cambridgeshire County Council,12-Oct-17,24362787-16177822,-1711.36,Affinity Trust,Care Establishment,4 - Operations - Providers services,LDP Fens - Special Needs,Supported Living
Cambridgeshire County Council,12-Oct-17,24390233-16177851,-1711.36,Affinity Trust,Care Establishment,2 - Operations - Learning Disability,LDP Fenland Locality - Care,Supported Living
Cambridgeshire County Council,12-Oct-17,24425753-16177898,-1711.36,Affinity Trust,Care Establishment,2 - Operations - Learning Disability,LDP Fenland Locality - Care,Supported Living
Cambridgeshire County Council,12-Oct-17,24425756-16177901,-1711.36,Affinity Trust,Care Establishment,4 - Operations - Providers services,LDP Fens - Special Needs,Supported Living
Cambridgeshire County Council,12-Oct-17,24362796-16177831,-1711.36,Affinity Trust,Care Establishment,2 - Operations - Learning Disability,LDP Fenland Locality - Care,Supported Living
Cambridgeshire County Council,12-Oct-17,24390240-16177857,-1711.36,Affinity Trust,Care Establishment,2 - Operations - Learning Disability,LDP Fenland Locality - Care,Supported Living
Cambridgeshire County Council,12-Oct-17,24425766-16177911,-1711.36,Affinity Trust,Care Establishment,2 - Operations - Learning Disability,LDP Fenland Locality - Care,Supported Living
Cambridgeshire County Council,12-Oct-17,24362782-16177817,-1711.36,Affinity Trust,Care Establishment,4 - Operations - Providers services,LDP Fens - Special Needs,Supported Living
Cambridgeshire County Council,12-Oct-17,24362785-16177820,-1711.36,Affinity Trust,Care Establishment,4 - Operations - Providers services,LDP Fens - Special Needs,Supported Living
Cambridgeshire County Council,12-Oct-17,24362795-16177830,-1711.36,Affinity Trust,Care Establishment,4 - Operations - Providers services,LDP Fens - Special Needs,Supported Living
Cambridgeshire County Council,12-Oct-17,24362770-16177839,-1711.36,Affinity Trust,Care Establishment,4 - Operations - Providers services,LDP Fens - Special Needs,Supported Living
Cambridgeshire County Council,12-Oct-17,24362775-16177844,-1711.36,Affinity Trust,Care Establishment,2 - Operations - Learning Disability,LDP Fenland Locality - Care,Supported Living
Cambridgeshire County Council,12-Oct-17,24362777-16177846,-1711.36,Affinity Trust,Care Establishment,2 - Operations - Learning Disability,LDP Fenland Locality - Care,Supported Living
Cambridgeshire County Council,12-Oct-17,24425755-16177900,-1711.36,Affinity Trust,Care Establishment,2 - Operations - Learning Disability,LDP Fenland Locality - Care,Supported Living
Cambridgeshire County Council,19-Oct-17,24496221-16227012,-1699.5,Consultus Care And Nursing,Care Establishment,2 - Operations - Learning Disability,LDP Hunts special needs,Short Term Other
Cambridgeshire County Council,13-Oct-17,24234000-16197558,-1665.26,Softcat Ltd,Trade Supplier,Control Accounts,Uncleared bank items,Bank Overdraft Expenditure / Payments
Cambridgeshire County Council,05-Oct-17,24324231-16136383,-1622.34,Thera East Anglia,Care Establishment,2 - Operations - Learning Disability,LDP South Cambs Locality - Care,Supported Living
Cambridgeshire County Council,05-Oct-17,24324233-16136384,-1622.34,Thera East Anglia,Care Establishment,2 - Operations - Learning Disability,LDP South Cambs Locality - Care,Supported Living
Cambridgeshire County Council,05-Oct-17,24324246-16136392,-1622.34,Thera East Anglia,Care Establishment,2 - Operations - Learning Disability,LDP South Cambs Locality - Care,Supported Living
Cambridgeshire County Council,05-Oct-17,24324238-16136387,-1622.34,Thera East Anglia,Care Establishment,2 - Operations - Learning Disability,LDP South Cambs Locality - Care,Supported Living
Cambridgeshire County Council,05-Oct-17,24324241-16136390,-1622.34,Thera East Anglia,Care Establishment,2 - Operations - Learning Disability,LDP South Cambs Locality - Care,Supported Living
Cambridgeshire County Council,05-Oct-17,24324235-16136385,-1622.34,Thera East Anglia,Care Establishment,2 - Operations - Learning Disability,LDP South Cambs Locality - Care,Supported Living
Cambridgeshire County Council,12-Oct-17,24421244-16183444,-1610,Dko Wheatley,Soletrader,LGSS Managed,County Farms,Trees / landscaping materials
Cambridgeshire County Council,05-Oct-17,23490876-16137599,-1596,Redacted Personal Data,Individual,4 - Operations - Providers services,LDP E Cambs Locality - Care,Direct Payments - Social Services
Cambridgeshire County Council,05-Oct-17,23851373-16137640,-1596,Redacted Personal Data,Individual,4 - Operations - Providers services,LDP E Cambs Special Needs,Direct Payments - Social Services
Cambridgeshire County Council,05-Oct-17,24104207-16137679,-1596,Redacted Personal Data,Individual,4 - Operations - Providers services,LDP E Cambs Special Needs,Direct Payments - Social Services
Cambridgeshire County Council,05-Oct-17,24119951-16137686,-1596,Redacted Personal Data,Individual,4 - Operations - Providers services,LDP E Cambs Locality - Care,Direct Payments - Social Services
Cambridgeshire County Council,05-Oct-17,23339557-16137569,-1596,Redacted Personal Data,Individual,4 - Operations - Providers services,LDP E Cambs Special Needs,Direct Payments - Social Services
Cambridgeshire County Council,05-Oct-17,23490875-16137598,-1596,Redacted Personal Data,Individual,4 - Operations - Providers services,LDP E Cambs Special Needs,Direct Payments - Social Services
Cambridgeshire County Council,05-Oct-17,23631947-16137615,-1596,Redacted Personal Data,Individual,4 - Operations - Providers services,LDP E Cambs Special Needs,Direct Payments - Social Services
Cambridgeshire County Council,05-Oct-17,24030573-16137671,-1596,Redacted Personal Data,Individual,4 - Operations - Providers services,LDP E Cambs Locality - Care,Direct Payments - Social Services
Cambridgeshire County Council,05-Oct-17,24322426-16137708,-1596,Redacted Personal Data,Individual,4 - Operations - Providers services,LDP E Cambs Locality - Care,Direct Payments - Social Services
Cambridgeshire County Council,05-Oct-17,24322428-16137709,-1596,Redacted Personal Data,Individual,4 - Operations - Providers services,LDP E Cambs Special Needs,Direct Payments - Social Services
Cambridgeshire County Council,05-Oct-17,24322433-16137710,-1596,Redacted Personal Data,Individual,4 - Operations - Providers services,LDP E Cambs Locality - Care,Direct Payments - Social Services
Cambridgeshire County Council,05-Oct-17,24391973-16137724,-1596,Redacted Personal Data,Individual,4 - Operations - Providers services,LDP E Cambs Special Needs,Direct Payments - Social Services
Cambridgeshire County Council,05-Oct-17,24391977-16137727,-1596,Redacted Personal Data,Individual,4 - Operations - Providers services,LDP E Cambs Special Needs,Direct Payments - Social Services
Cambridgeshire County Council,05-Oct-17,23374833-16137576,-1596,Redacted Personal Data,Individual,4 - Operations - Providers services,LDP E Cambs Special Needs,Direct Payments - Social Services
Cambridgeshire County Council,05-Oct-17,23725367-16137623,-1596,Redacted Personal Data,Individual,4 - Operations - Providers services,LDP E Cambs Locality - Care,Direct Payments - Social Services
Cambridgeshire County Council,05-Oct-17,23896714-16137647,-1596,Redacted Personal Data,Individual,4 - Operations - Providers services,LDP E Cambs Locality - Care,Direct Payments - Social Services
Cambridgeshire County Council,05-Oct-17,23971298-16137660,-1596,Redacted Personal Data,Individual,4 - Operations - Providers services,LDP E Cambs Locality - Care,Direct Payments - Social Services
Cambridgeshire County Council,05-Oct-17,24119954-16137689,-1596,Redacted Personal Data,Individual,4 - Operations - Providers services,LDP E Cambs Special Needs,Direct Payments - Social Services
Cambridgeshire County Council,05-Oct-17,23490878-16137601,-1596,Redacted Personal Data,Individual,4 - Operations - Providers services,LDP E Cambs Special Needs,Direct Payments - Social Services
Cambridgeshire County Council,05-Oct-17,23631946-16137614,-1596,Redacted Personal Data,Individual,4 - Operations - Providers services,LDP E Cambs Special Needs,Direct Payments - Social Services
Cambridgeshire County Council,05-Oct-17,23725370-16137625,-1596,Redacted Personal Data,Individual,4 - Operations - Providers services,LDP E Cambs Locality - Care,Direct Payments - Social Services
Cambridgeshire County Council,05-Oct-17,23803434-16137632,-1596,Redacted Personal Data,Individual,4 - Operations - Providers services,LDP E Cambs Special Needs,Direct Payments - Social Services
Cambridgeshire County Council,05-Oct-17,23851358-16137637,-1596,Redacted Personal Data,Individual,4 - Operations - Providers services,LDP E Cambs Locality - Care,Direct Payments - Social Services
Cambridgeshire County Council,05-Oct-17,23896713-16137646,-1596,Redacted Personal Data,Individual,4 - Operations - Providers services,LDP E Cambs Locality - Care,Direct Payments - Social Services
Cambridgeshire County Council,05-Oct-17,24104222-16137682,-1596,Redacted Personal Data,Individual,4 - Operations - Providers services,LDP E Cambs Locality - Care,Direct Payments - Social Services
Cambridgeshire County Council,05-Oct-17,24369039-16137722,-1596,Redacted Personal Data,Individual,4 - Operations - Providers services,LDP E Cambs Special Needs,Direct Payments - Social Services
Cambridgeshire County Council,05-Oct-17,24391975-16137726,-1596,Redacted Personal Data,Individual,4 - Operations - Providers services,LDP E Cambs Special Needs,Direct Payments - Social Services
Cambridgeshire County Council,05-Oct-17,23374813-16137573,-1596,Redacted Personal Data,Individual,4 - Operations - Providers services,LDP E Cambs Special Needs,Direct Payments - Social Services
Cambridgeshire County Council,05-Oct-17,23418393-16137585,-1596,Redacted Personal Data,Individual,4 - Operations - Providers services,LDP E Cambs Locality - Care,Direct Payments - Social Services
Cambridgeshire County Council,05-Oct-17,23575475-16137603,-1596,Redacted Personal Data,Individual,4 - Operations - Providers services,LDP E Cambs Special Needs,Direct Payments - Social Services
Cambridgeshire County Council,05-Oct-17,23971302-16137664,-1596,Redacted Personal Data,Individual,4 - Operations - Providers services,LDP E Cambs Special Needs,Direct Payments - Social Services
Cambridgeshire County Council,05-Oct-17,24239594-16137695,-1596,Redacted Personal Data,Individual,4 - Operations - Providers services,LDP E Cambs Special Needs,Direct Payments - Social Services
Cambridgeshire County Council,05-Oct-17,24239598-16137698,-1596,Redacted Personal Data,Individual,4 - Operations - Providers services,LDP E Cambs Locality - Care,Direct Payments - Social Services
Cambridgeshire County Council,05-Oct-17,24369033-16137716,-1596,Redacted Personal Data,Individual,4 - Operations - Providers services,LDP E Cambs Locality - Care,Direct Payments - Social Services
Cambridgeshire County Council,05-Oct-17,23339552-16137564,-1596,Redacted Personal Data,Individual,4 - Operations - Providers services,LDP E Cambs Locality - Care,Direct Payments - Social Services
Cambridgeshire County Council,05-Oct-17,23453398-16137589,-1596,Redacted Personal Data,Individual,4 - Operations - Providers services,LDP E Cambs Locality - Care,Direct Payments - Social Services
Cambridgeshire County Council,05-Oct-17,23575477-16137604,-1596,Redacted Personal Data,Individual,4 - Operations - Providers services,LDP E Cambs Locality - Care,Direct Payments - Social Services
Cambridgeshire County Council,05-Oct-17,23631943-16137612,-1596,Redacted Personal Data,Individual,4 - Operations - Providers services,LDP E Cambs Locality - Care,Direct Payments - Social Services
Cambridgeshire County Council,05-Oct-17,23803433-16137631,-1596,Redacted Personal Data,Individual,4 - Operations - Providers services,LDP E Cambs Locality - Care,Direct Payments - Social Services
Cambridgeshire County Council,05-Oct-17,23941285-16137657,-1596,Redacted Personal Data,Individual,4 - Operations - Providers services,LDP E Cambs Locality - Care,Direct Payments - Social Services
Cambridgeshire County Council,05-Oct-17,23941286-16137658,-1596,Redacted Personal Data,Individual,4 - Operations - Providers services,LDP E Cambs Special Needs,Direct Payments - Social Services
Cambridgeshire County Council,05-Oct-17,23971299-16137661,-1596,Redacted Personal Data,Individual,4 - Operations - Providers services,LDP E Cambs Locality - Care,Direct Payments - Social Services
Cambridgeshire County Council,05-Oct-17,24030576-16137673,-1596,Redacted Personal Data,Individual,4 - Operations - Providers services,LDP E Cambs Locality - Care,Direct Payments - Social Services
Cambridgeshire County Council,05-Oct-17,24030580-16137674,-1596,Redacted Personal Data,Individual,4 - Operations - Providers services,LDP E Cambs Special Needs,Direct Payments - Social Services
Cambridgeshire County Council,05-Oct-17,24104202-16137676,-1596,Redacted Personal Data,Individual,4 - Operations - Providers services,LDP E Cambs Special Needs,Direct Payments - Social Services
Cambridgeshire County Council,05-Oct-17,24369038-16137721,-1596,Redacted Personal Data,Individual,4 - Operations - Providers services,LDP E Cambs Special Needs,Direct Payments - Social Services
Cambridgeshire County Council,05-Oct-17,23418388-16137582,-1596,Redacted Personal Data,Individual,4 - Operations - Providers services,LDP E Cambs Locality - Care,Direct Payments - Social Services
Cambridgeshire County Council,05-Oct-17,23453402-16137592,-1596,Redacted Personal Data,Individual,4 - Operations - Providers services,LDP E Cambs Locality - Care,Direct Payments - Social Services
Cambridgeshire County Council,05-Oct-17,23453404-16137593,-1596,Redacted Personal Data,Individual,4 - Operations - Providers services,LDP E Cambs Locality - Care,Direct Payments - Social Services
Cambridgeshire County Council,05-Oct-17,23725362-16137620,-1596,Redacted Personal Data,Individual,4 - Operations - Providers services,LDP E Cambs Special Needs,Direct Payments - Social Services
Cambridgeshire County Council,05-Oct-17,23851386-16137642,-1596,Redacted Personal Data,Individual,4 - Operations - Providers services,LDP E Cambs Special Needs,Direct Payments - Social Services
Cambridgeshire County Council,05-Oct-17,23896708-16137643,-1596,Redacted Personal Data,Individual,4 - Operations - Providers services,LDP E Cambs Locality - Care,Direct Payments - Social Services
Cambridgeshire County Council,05-Oct-17,24119955-16137690,-1596,Redacted Personal Data,Individual,4 - Operations - Providers services,LDP E Cambs Special Needs,Direct Payments - Social Services
Cambridgeshire County Council,05-Oct-17,24207302-16137700,-1596,Redacted Personal Data,Individual,4 - Operations - Providers services,LDP E Cambs Special Needs,Direct Payments - Social Services
Cambridgeshire County Council,05-Oct-17,24207977-16137704,-1596,Redacted Personal Data,Individual,4 - Operations - Providers services,LDP E Cambs Special Needs,Direct Payments - Social Services
Cambridgeshire County Council,05-Oct-17,23339555-16137567,-1596,Redacted Personal Data,Individual,4 - Operations - Providers services,LDP E Cambs Special Needs,Direct Payments - Social Services
Cambridgeshire County Council,05-Oct-17,23374836-16137577,-1596,Redacted Personal Data,Individual,4 - Operations - Providers services,LDP E Cambs Special Needs,Direct Payments - Social Services
Cambridgeshire County Council,05-Oct-17,23575478-16137605,-1596,Redacted Personal Data,Individual,4 - Operations - Providers services,LDP E Cambs Special Needs,Direct Payments - Social Services
Cambridgeshire County Council,05-Oct-17,23803432-16137630,-1596,Redacted Personal Data,Individual,4 - Operations - Providers services,LDP E Cambs Special Needs,Direct Payments - Social Services
Cambridgeshire County Council,05-Oct-17,23941281-16137653,-1596,Redacted Personal Data,Individual,4 - Operations - Providers services,LDP E Cambs Locality - Care,Direct Payments - Social Services
Cambridgeshire County Council,05-Oct-17,24239595-16137696,-1596,Redacted Personal Data,Individual,4 - Operations - Providers services,LDP E Cambs Special Needs,Direct Payments - Social Services
Cambridgeshire County Council,05-Oct-17,24207976-16137703,-1596,Redacted Personal Data,Individual,4 - Operations - Providers services,LDP E Cambs Special Needs,Direct Payments - Social Services
Cambridgeshire County Council,05-Oct-17,23418389-16137583,-1596,Redacted Personal Data,Individual,4 - Operations - Providers services,LDP E Cambs Locality - Care,Direct Payments - Social Services
Cambridgeshire County Council,19-Oct-17,24495181-16220644,-1555.5,Woodlands Care Centre,Care Establishment,2 - Operations - Learning Disability,Countywide PD Service - Care,Nursing Independent Sector
Cambridgeshire County Council,19-Oct-17,24495187-16220646,-1555.5,Woodlands Care Centre,Care Establishment,2 - Operations - Learning Disability,Countywide PD Service - Care,Nursing Independent Sector
Cambridgeshire County Council,19-Oct-17,24495201-16220653,-1555.5,Woodlands Care Centre,Care Establishment,2 - Operations - Learning Disability,Countywide PD Service - Care,Nursing Independent Sector
Cambridgeshire County Council,19-Oct-17,24495205-16220656,-1555.5,Woodlands Care Centre,Care Establishment,2 - Operations - Learning Disability,Countywide PD Service - Care,Nursing Independent Sector
Cambridgeshire County Council,19-Oct-17,24495179-16220642,-1555.5,Woodlands Care Centre,Care Establishment,2 - Operations - Learning Disability,Countywide PD Service - Care,Nursing Independent Sector
Cambridgeshire County Council,19-Oct-17,24495193-16220648,-1555.5,Woodlands Care Centre,Care Establishment,2 - Operations - Learning Disability,Countywide PD Service - Care,Nursing Independent Sector
Cambridgeshire County Council,19-Oct-17,24495198-16220651,-1555.5,Woodlands Care Centre,Care Establishment,2 - Operations - Learning Disability,Countywide PD Service - Care,Nursing Independent Sector
Cambridgeshire County Council,19-Oct-17,24495185-16220645,-1555.5,Woodlands Care Centre,Care Establishment,2 - Operations - Learning Disability,Countywide PD Service - Care,Nursing Independent Sector
Cambridgeshire County Council,19-Oct-17,24495203-16220654,-1555.5,Woodlands Care Centre,Care Establishment,2 - Operations - Learning Disability,Countywide PD Service - Care,Nursing Independent Sector
Cambridgeshire County Council,19-Oct-17,24495180-16220643,-1555.5,Woodlands Care Centre,Care Establishment,2 - Operations - Learning Disability,Countywide PD Service - Care,Nursing Independent Sector
Cambridgeshire County Council,19-Oct-17,24495188-16220647,-1555.5,Woodlands Care Centre,Care Establishment,2 - Operations - Learning Disability,Countywide PD Service - Care,Nursing Independent Sector
Cambridgeshire County Council,19-Oct-17,24495199-16220652,-1555.5,Woodlands Care Centre,Care Establishment,2 - Operations - Learning Disability,Countywide PD Service - Care,Nursing Independent Sector
Cambridgeshire County Council,19-Oct-17,24495204-16220655,-1555.5,Woodlands Care Centre,Care Establishment,2 - Operations - Learning Disability,Countywide PD Service - Care,Nursing Independent Sector
Cambridgeshire County Council,19-Oct-17,24495177-16220641,-1555.5,Woodlands Care Centre,Care Establishment,2 - Operations - Learning Disability,Countywide PD Service - Care,Nursing Independent Sector
Cambridgeshire County Council,19-Oct-17,24495197-16220650,-1555.5,Woodlands Care Centre,Care Establishment,2 - Operations - Learning Disability,Countywide PD Service - Care,Nursing Independent Sector
Cambridgeshire County Council,19-Oct-17,24495206-16220657,-1555.5,Woodlands Care Centre,Care Establishment,2 - Operations - Learning Disability,Countywide PD Service - Care,Nursing Independent Sector
Cambridgeshire County Council,12-Oct-17,24447324-16189763,-1526.71,Voyage (Lichfield),Care Establishment,4 - Operations - Providers services,LDP City Locality - Care,Supported Living
Cambridgeshire County Council,12-Oct-17,24447283-16189773,-1526.71,Voyage (Lichfield),Care Establishment,4 - Operations - Providers services,LDP City Locality - Care,Supported Living
Cambridgeshire County Council,12-Oct-17,24447296-16189783,-1526.71,Voyage (Lichfield),Care Establishment,4 - Operations - Providers services,LDP City Locality - Care,Supported Living
Cambridgeshire County Council,12-Oct-17,24447312-16189799,-1526.71,Voyage (Lichfield),Care Establishment,4 - Operations - Providers services,LDP City Locality - Care,Supported Living
Cambridgeshire County Council,12-Oct-17,24447290-16189779,-1526.71,Voyage (Lichfield),Care Establishment,4 - Operations - Providers services,LDP City Locality - Care,Supported Living
Cambridgeshire County Council,12-Oct-17,24447299-16189786,-1526.71,Voyage (Lichfield),Care Establishment,4 - Operations - Providers services,LDP City Locality - Care,Supported Living
Cambridgeshire County Council,12-Oct-17,24449148-16189818,-1526.71,Voyage (Lichfield),Care Establishment,4 - Operations - Providers services,LDP City Locality - Care,Supported Living
Cambridgeshire County Council,12-Oct-17,24447277-16189767,-1526.71,Voyage (Lichfield),Care Establishment,4 - Operations - Providers services,LDP City Locality - Care,Supported Living
Cambridgeshire County Council,12-Oct-17,24447302-16189789,-1526.71,Voyage (Lichfield),Care Establishment,4 - Operations - Providers services,LDP City Locality - Care,Supported Living
Cambridgeshire County Council,12-Oct-17,24449147-16189817,-1526.71,Voyage (Lichfield),Care Establishment,4 - Operations - Providers services,LDP City Locality - Care,Supported Living
Cambridgeshire County Council,12-Oct-17,24447327-16189766,-1526.71,Voyage (Lichfield),Care Establishment,4 - Operations - Providers services,LDP City Locality - Care,Supported Living
Cambridgeshire County Council,12-Oct-17,24447292-16189780,-1526.71,Voyage (Lichfield),Care Establishment,4 - Operations - Providers services,LDP City Locality - Care,Supported Living
Cambridgeshire County Council,12-Oct-17,24447303-16189790,-1526.71,Voyage (Lichfield),Care Establishment,4 - Operations - Providers services,LDP City Locality - Care,Supported Living
Cambridgeshire County Council,12-Oct-17,24447306-16189793,-1526.71,Voyage (Lichfield),Care Establishment,4 - Operations - Providers services,LDP City Locality - Care,Supported Living
Cambridgeshire County Council,12-Oct-17,24447314-16189801,-1526.71,Voyage (Lichfield),Care Establishment,4 - Operations - Providers services,LDP City Locality - Care,Supported Living
Cambridgeshire County Council,12-Oct-17,24447301-16189788,-1526.71,Voyage (Lichfield),Care Establishment,4 - Operations - Providers services,LDP City Locality - Care,Supported Living
Cambridgeshire County Council,12-Oct-17,24447310-16189797,-1526.71,Voyage (Lichfield),Care Establishment,4 - Operations - Providers services,LDP City Locality - Care,Supported Living
Cambridgeshire County Council,12-Oct-17,24447320-16189807,-1526.71,Voyage (Lichfield),Care Establishment,4 - Operations - Providers services,LDP City Locality - Care,Supported Living
Cambridgeshire County Council,12-Oct-17,24447323-16189762,-1526.71,Voyage (Lichfield),Care Establishment,4 - Operations - Providers services,LDP City Locality - Care,Supported Living
Cambridgeshire County Council,12-Oct-17,24447325-16189764,-1526.71,Voyage (Lichfield),Care Establishment,4 - Operations - Providers services,LDP City Locality - Care,Supported Living
Cambridgeshire County Council,12-Oct-17,24447319-16189806,-1526.71,Voyage (Lichfield),Care Establishment,4 - Operations - Providers services,LDP City Locality - Care,Supported Living
Cambridgeshire County Council,12-Oct-17,24449146-16189816,-1526.71,Voyage (Lichfield),Care Establishment,4 - Operations - Providers services,LDP City Locality - Care,Supported Living
Cambridgeshire County Council,12-Oct-17,24318040-16174325,-1526.7,Voyage,Care Establishment,4 - Operations - Providers services,LDP City Locality - Care,Supported Living
Cambridgeshire County Council,12-Oct-17,24320002-16174463,-1526.7,Voyage,Care Establishment,4 - Operations - Providers services,LDP City Locality - Care,Supported Living
Cambridgeshire County Council,10-Oct-17,23428575-16152472,-1525.16,Fostering Solutions Ltd,Care Establishment,S&C,Placements - Social Care,Agency Placements - In Cambs
Cambridgeshire County Council,31-Oct-17,24500362-16276560,-1500,Decker Bus,Trade Supplier,S&C,H to S Transport - Primary,Home to School - Contract
Cambridgeshire County Council,12-Oct-17,23287478-16173561,-1477.33,Swan House Nursing & Residential Home,Care Establishment,2 - Commissioning - Older people Pool,OP Blocks - Short-term Care Placements,Short Term Other
Cambridgeshire County Council,05-Oct-17,22316635-16135730,-1464,Manor House Residential And Nursing,Care Establishment,2 - Commissioning - Older people Pool,Older People Mental Health City & South,Residential Independent Sector
Cambridgeshire County Council,12-Oct-17,24444520-16175106,-1408.46,Voyage,Care Establishment,2 - Operations - Learning Disability,LDP South Cambs Locality - Care,Supported Living
Cambridgeshire County Council,12-Oct-17,24444513-16175099,-1408.46,Voyage,Care Establishment,2 - Operations - Learning Disability,LDP South Cambs Locality - Care,Supported Living
Cambridgeshire County Council,12-Oct-17,24444517-16175103,-1408.46,Voyage,Care Establishment,2 - Operations - Learning Disability,LDP South Cambs Locality - Care,Supported Living
Cambridgeshire County Council,06-Oct-17,24396950-16149534,-1377.26,Xerox (Uk) Ltd,Trade Supplier,LGSS,3rd Party Contracts,Computer hardware - maintenance
Cambridgeshire County Council,12-Oct-17,24300439-16174174,-1369.29,Voyage,Care Establishment,2 - Operations - Learning Disability,LDP South Cambs Locality - Care,Supported Living
Cambridgeshire County Council,12-Oct-17,24300448-16174183,-1369.29,Voyage,Care Establishment,2 - Operations - Learning Disability,LDP South Cambs Locality - Care,Supported Living
Cambridgeshire County Council,12-Oct-17,24300458-16174193,-1369.29,Voyage,Care Establishment,2 - Operations - Learning Disability,LDP South Cambs Locality - Care,Supported Living
Cambridgeshire County Council,12-Oct-17,24300487-16174222,-1369.29,Voyage,Care Establishment,2 - Operations - Learning Disability,LDP South Cambs Locality - Care,Supported Living
Cambridgeshire County Council,12-Oct-17,24300538-16174318,-1369.29,Voyage,Care Establishment,2 - Operations - Learning Disability,LDP South Cambs Locality - Care,Supported Living
Cambridgeshire County Council,12-Oct-17,24318316-16174469,-1369.29,Voyage,Care Establishment,2 - Operations - Learning Disability,LDP South Cambs Locality - Care,Supported Living
Cambridgeshire County Council,12-Oct-17,24318330-16174482,-1369.29,Voyage,Care Establishment,2 - Operations - Learning Disability,LDP South Cambs Locality - Care,Supported Living
Cambridgeshire County Council,12-Oct-17,24318347-16174497,-1369.29,Voyage,Care Establishment,2 - Operations - Learning Disability,LDP South Cambs Locality - Care,Supported Living
Cambridgeshire County Council,12-Oct-17,24300427-16174162,-1369.29,Voyage,Care Establishment,2 - Operations - Learning Disability,LDP South Cambs Locality - Care,Supported Living
Cambridgeshire County Council,12-Oct-17,24300463-16174198,-1369.29,Voyage,Care Establishment,2 - Operations - Learning Disability,LDP South Cambs Locality - Care,Supported Living
Cambridgeshire County Council,12-Oct-17,24300495-16174229,-1369.29,Voyage,Care Establishment,2 - Operations - Learning Disability,LDP South Cambs Locality - Care,Supported Living
Cambridgeshire County Council,12-Oct-17,24300520-16174300,-1369.29,Voyage,Care Establishment,2 - Operations - Learning Disability,LDP South Cambs Locality - Care,Supported Living
Cambridgeshire County Council,12-Oct-17,24300530-16174310,-1369.29,Voyage,Care Establishment,2 - Operations - Learning Disability,LDP South Cambs Locality - Care,Supported Living
Cambridgeshire County Council,12-Oct-17,24300544-16174323,-1369.29,Voyage,Care Establishment,2 - Operations - Learning Disability,LDP South Cambs Locality - Care,Supported Living
Cambridgeshire County Council,12-Oct-17,24318252-16174344,-1369.29,Voyage,Care Establishment,2 - Operations - Learning Disability,LDP South Cambs Locality - Care,Supported Living
Cambridgeshire County Council,12-Oct-17,24318256-16174348,-1369.29,Voyage,Care Establishment,2 - Operations - Learning Disability,LDP South Cambs Locality - Care,Supported Living
Cambridgeshire County Council,12-Oct-17,24318309-16174399,-1369.29,Voyage,Care Establishment,2 - Operations - Learning Disability,LDP South Cambs Locality - Care,Supported Living
Cambridgeshire County Council,12-Oct-17,24318372-16174411,-1369.29,Voyage,Care Establishment,2 - Operations - Learning Disability,LDP South Cambs Locality - Care,Supported Living
Cambridgeshire County Council,12-Oct-17,24318334-16174486,-1369.29,Voyage,Care Establishment,2 - Operations - Learning Disability,LDP South Cambs Locality - Care,Supported Living
Cambridgeshire County Council,12-Oct-17,24318364-16174513,-1369.29,Voyage,Care Establishment,2 - Operations - Learning Disability,LDP South Cambs Locality - Care,Supported Living
Cambridgeshire County Council,12-Oct-17,24300428-16174163,-1369.29,Voyage,Care Establishment,2 - Operations - Learning Disability,LDP South Cambs Locality - Care,Supported Living
Cambridgeshire County Council,12-Oct-17,24300453-16174188,-1369.29,Voyage,Care Establishment,2 - Operations - Learning Disability,LDP South Cambs Locality - Care,Supported Living
Cambridgeshire County Council,12-Oct-17,24300493-16174227,-1369.29,Voyage,Care Establishment,2 - Operations - Learning Disability,LDP South Cambs Locality - Care,Supported Living
Cambridgeshire County Council,12-Oct-17,24300508-16174290,-1369.29,Voyage,Care Establishment,2 - Operations - Learning Disability,LDP South Cambs Locality - Care,Supported Living
Cambridgeshire County Council,12-Oct-17,24300529-16174309,-1369.29,Voyage,Care Establishment,2 - Operations - Learning Disability,LDP South Cambs Locality - Care,Supported Living
Cambridgeshire County Council,12-Oct-17,24300536-16174316,-1369.29,Voyage,Care Establishment,2 - Operations - Learning Disability,LDP South Cambs Locality - Care,Supported Living
Cambridgeshire County Council,12-Oct-17,24324616-16174619,-1369.29,Voyage,Care Establishment,2 - Operations - Learning Disability,LDP South Cambs Locality - Care,Supported Living
Cambridgeshire County Council,12-Oct-17,24324618-16174621,-1369.29,Voyage,Care Establishment,2 - Operations - Learning Disability,LDP South Cambs Locality - Care,Supported Living
Cambridgeshire County Council,12-Oct-17,24300425-16174160,-1369.29,Voyage,Care Establishment,2 - Operations - Learning Disability,LDP South Cambs Locality - Care,Supported Living
Cambridgeshire County Council,12-Oct-17,24300430-16174165,-1369.29,Voyage,Care Establishment,2 - Operations - Learning Disability,LDP South Cambs Locality - Care,Supported Living
Cambridgeshire County Council,12-Oct-17,24300489-16174223,-1369.29,Voyage,Care Establishment,2 - Operations - Learning Disability,LDP South Cambs Locality - Care,Supported Living
Cambridgeshire County Council,12-Oct-17,24300491-16174225,-1369.29,Voyage,Care Establishment,2 - Operations - Learning Disability,LDP South Cambs Locality - Care,Supported Living
Cambridgeshire County Council,12-Oct-17,24318270-16174362,-1369.29,Voyage,Care Establishment,2 - Operations - Learning Disability,LDP South Cambs Locality - Care,Supported Living
Cambridgeshire County Council,12-Oct-17,24318274-16174366,-1369.29,Voyage,Care Establishment,2 - Operations - Learning Disability,LDP South Cambs Locality - Care,Supported Living
Cambridgeshire County Council,12-Oct-17,24318286-16174378,-1369.29,Voyage,Care Establishment,2 - Operations - Learning Disability,LDP South Cambs Locality - Care,Supported Living
Cambridgeshire County Council,12-Oct-17,24318296-16174387,-1369.29,Voyage,Care Establishment,2 - Operations - Learning Disability,LDP South Cambs Locality - Care,Supported Living
Cambridgeshire County Council,12-Oct-17,24318300-16174391,-1369.29,Voyage,Care Establishment,2 - Operations - Learning Disability,LDP South Cambs Locality - Care,Supported Living
Cambridgeshire County Council,12-Oct-17,24318304-16174394,-1369.29,Voyage,Care Establishment,2 - Operations - Learning Disability,LDP South Cambs Locality - Care,Supported Living
Cambridgeshire County Council,12-Oct-17,24318310-16174400,-1369.29,Voyage,Care Establishment,2 - Operations - Learning Disability,LDP South Cambs Locality - Care,Supported Living
Cambridgeshire County Council,12-Oct-17,24318373-16174412,-1369.29,Voyage,Care Establishment,2 - Operations - Learning Disability,LDP South Cambs Locality - Care,Supported Living
Cambridgeshire County Council,12-Oct-17,24318318-16174471,-1369.29,Voyage,Care Establishment,2 - Operations - Learning Disability,LDP South Cambs Locality - Care,Supported Living
Cambridgeshire County Council,12-Oct-17,24318321-16174474,-1369.29,Voyage,Care Establishment,2 - Operations - Learning Disability,LDP South Cambs Locality - Care,Supported Living
Cambridgeshire County Council,12-Oct-17,24318353-16174502,-1369.29,Voyage,Care Establishment,2 - Operations - Learning Disability,LDP South Cambs Locality - Care,Supported Living
Cambridgeshire County Council,12-Oct-17,24326464-16174676,-1369.29,Voyage,Care Establishment,2 - Operations - Learning Disability,LDP South Cambs Locality - Care,Supported Living
Cambridgeshire County Council,12-Oct-17,24300431-16174166,-1369.29,Voyage,Care Establishment,2 - Operations - Learning Disability,LDP South Cambs Locality - Care,Supported Living
Cambridgeshire County Council,12-Oct-17,24300433-16174168,-1369.29,Voyage,Care Establishment,2 - Operations - Learning Disability,LDP South Cambs Locality - Care,Supported Living
Cambridgeshire County Council,12-Oct-17,24300472-16174207,-1369.29,Voyage,Care Establishment,2 - Operations - Learning Disability,LDP South Cambs Locality - Care,Supported Living
Cambridgeshire County Council,12-Oct-17,24300481-16174216,-1369.29,Voyage,Care Establishment,2 - Operations - Learning Disability,LDP South Cambs Locality - Care,Supported Living
Cambridgeshire County Council,12-Oct-17,24300502-16174286,-1369.29,Voyage,Care Establishment,2 - Operations - Learning Disability,LDP South Cambs Locality - Care,Supported Living
Cambridgeshire County Council,12-Oct-17,24300522-16174302,-1369.29,Voyage,Care Establishment,2 - Operations - Learning Disability,LDP South Cambs Locality - Care,Supported Living
Cambridgeshire County Council,12-Oct-17,24318267-16174359,-1369.29,Voyage,Care Establishment,2 - Operations - Learning Disability,LDP South Cambs Locality - Care,Supported Living
Cambridgeshire County Council,12-Oct-17,24318277-16174369,-1369.29,Voyage,Care Establishment,2 - Operations - Learning Disability,LDP South Cambs Locality - Care,Supported Living
Cambridgeshire County Council,12-Oct-17,24318289-16174381,-1369.29,Voyage,Care Establishment,2 - Operations - Learning Disability,LDP South Cambs Locality - Care,Supported Living
Cambridgeshire County Council,12-Oct-17,24318305-16174395,-1369.29,Voyage,Care Establishment,2 - Operations - Learning Disability,LDP South Cambs Locality - Care,Supported Living
Cambridgeshire County Council,12-Oct-17,24318312-16174465,-1369.29,Voyage,Care Establishment,2 - Operations - Learning Disability,LDP South Cambs Locality - Care,Supported Living
Cambridgeshire County Council,12-Oct-17,24318333-16174485,-1369.29,Voyage,Care Establishment,2 - Operations - Learning Disability,LDP South Cambs Locality - Care,Supported Living
Cambridgeshire County Council,12-Oct-17,24318343-16174493,-1369.29,Voyage,Care Establishment,2 - Operations - Learning Disability,LDP South Cambs Locality - Care,Supported Living
Cambridgeshire County Council,12-Oct-17,24318348-16174498,-1369.29,Voyage,Care Establishment,2 - Operations - Learning Disability,LDP South Cambs Locality - Care,Supported Living
Cambridgeshire County Council,12-Oct-17,24324624-16174627,-1369.29,Voyage,Care Establishment,2 - Operations - Learning Disability,LDP South Cambs Locality - Care,Supported Living
Cambridgeshire County Council,12-Oct-17,24326463-16174675,-1369.29,Voyage,Care Establishment,2 - Operations - Learning Disability,LDP South Cambs Locality - Care,Supported Living
Cambridgeshire County Council,12-Oct-17,24300434-16174169,-1369.29,Voyage,Care Establishment,2 - Operations - Learning Disability,LDP South Cambs Locality - Care,Supported Living
Cambridgeshire County Council,12-Oct-17,24300454-16174189,-1369.29,Voyage,Care Establishment,2 - Operations - Learning Disability,LDP South Cambs Locality - Care,Supported Living
Cambridgeshire County Council,12-Oct-17,24300473-16174208,-1369.29,Voyage,Care Establishment,2 - Operations - Learning Disability,LDP South Cambs Locality - Care,Supported Living
Cambridgeshire County Council,12-Oct-17,24300518-16174298,-1369.29,Voyage,Care Establishment,2 - Operations - Learning Disability,LDP South Cambs Locality - Care,Supported Living
Cambridgeshire County Council,12-Oct-17,24318250-16174342,-1369.29,Voyage,Care Establishment,2 - Operations - Learning Disability,LDP South Cambs Locality - Care,Supported Living
Cambridgeshire County Council,12-Oct-17,24318284-16174376,-1369.29,Voyage,Care Establishment,2 - Operations - Learning Disability,LDP South Cambs Locality - Care,Supported Living
Cambridgeshire County Council,12-Oct-17,24318337-16174487,-1369.29,Voyage,Care Establishment,2 - Operations - Learning Disability,LDP South Cambs Locality - Care,Supported Living
Cambridgeshire County Council,12-Oct-17,24318352-16174501,-1369.29,Voyage,Care Establishment,2 - Operations - Learning Disability,LDP South Cambs Locality - Care,Supported Living
Cambridgeshire County Council,12-Oct-17,24318355-16174504,-1369.29,Voyage,Care Establishment,2 - Operations - Learning Disability,LDP South Cambs Locality - Care,Supported Living
Cambridgeshire County Council,12-Oct-17,24318357-16174506,-1369.29,Voyage,Care Establishment,2 - Operations - Learning Disability,LDP South Cambs Locality - Care,Supported Living
Cambridgeshire County Council,12-Oct-17,24300456-16174191,-1369.29,Voyage,Care Establishment,2 - Operations - Learning Disability,LDP South Cambs Locality - Care,Supported Living
Cambridgeshire County Council,12-Oct-17,24300498-16174232,-1369.29,Voyage,Care Establishment,2 - Operations - Learning Disability,LDP South Cambs Locality - Care,Supported Living
Cambridgeshire County Council,12-Oct-17,24300515-16174297,-1369.29,Voyage,Care Establishment,2 - Operations - Learning Disability,LDP South Cambs Locality - Care,Supported Living
Cambridgeshire County Council,12-Oct-17,24300539-16174319,-1369.29,Voyage,Care Establishment,2 - Operations - Learning Disability,LDP South Cambs Locality - Care,Supported Living
Cambridgeshire County Council,12-Oct-17,24318259-16174351,-1369.29,Voyage,Care Establishment,2 - Operations - Learning Disability,LDP South Cambs Locality - Care,Supported Living
Cambridgeshire County Council,12-Oct-17,24318288-16174380,-1369.29,Voyage,Care Establishment,2 - Operations - Learning Disability,LDP South Cambs Locality - Care,Supported Living
Cambridgeshire County Council,12-Oct-17,24318329-16174481,-1369.29,Voyage,Care Establishment,2 - Operations - Learning Disability,LDP South Cambs Locality - Care,Supported Living
Cambridgeshire County Council,12-Oct-17,24324622-16174625,-1369.29,Voyage,Care Establishment,2 - Operations - Learning Disability,LDP South Cambs Locality - Care,Supported Living
Cambridgeshire County Council,12-Oct-17,24300450-16174185,-1369.29,Voyage,Care Establishment,2 - Operations - Learning Disability,LDP South Cambs Locality - Care,Supported Living
Cambridgeshire County Council,12-Oct-17,24300460-16174195,-1369.29,Voyage,Care Establishment,2 - Operations - Learning Disability,LDP South Cambs Locality - Care,Supported Living
Cambridgeshire County Council,12-Oct-17,24300464-16174199,-1369.29,Voyage,Care Establishment,2 - Operations - Learning Disability,LDP South Cambs Locality - Care,Supported Living
Cambridgeshire County Council,12-Oct-17,24300465-16174200,-1369.29,Voyage,Care Establishment,2 - Operations - Learning Disability,LDP South Cambs Locality - Care,Supported Living
Cambridgeshire County Council,12-Oct-17,24300474-16174209,-1369.29,Voyage,Care Establishment,2 - Operations - Learning Disability,LDP South Cambs Locality - Care,Supported Living
Cambridgeshire County Council,12-Oct-17,24300482-16174217,-1369.29,Voyage,Care Establishment,2 - Operations - Learning Disability,LDP South Cambs Locality - Care,Supported Living
Cambridgeshire County Council,12-Oct-17,24318260-16174352,-1369.29,Voyage,Care Establishment,2 - Operations - Learning Disability,LDP South Cambs Locality - Care,Supported Living
Cambridgeshire County Council,12-Oct-17,24318264-16174356,-1369.29,Voyage,Care Establishment,2 - Operations - Learning Disability,LDP South Cambs Locality - Care,Supported Living
Cambridgeshire County Council,12-Oct-17,24324626-16174629,-1369.29,Voyage,Care Establishment,2 - Operations - Learning Disability,LDP South Cambs Locality - Care,Supported Living
Cambridgeshire County Council,12-Oct-17,24328217-16174683,-1357.59,Voyage,Care Establishment,2 - Operations - Learning Disability,LDP South Cambs Locality - Care,Supported Living
Cambridgeshire County Council,12-Oct-17,24328218-16174684,-1357.59,Voyage,Care Establishment,2 - Operations - Learning Disability,LDP South Cambs Locality - Care,Supported Living
Cambridgeshire County Council,19-Oct-17,24364002-16221764,-1328.44,Care Management Group (64-66 Carlton),Care Establishment,4 - Operations - Providers services,LDP E Cambs Special Needs,Residential Independent Sector
Cambridgeshire County Council,19-Oct-17,24363983-16221775,-1328.44,Care Management Group (64-66 Carlton),Care Establishment,4 - Operations - Providers services,LDP E Cambs Special Needs,Residential Independent Sector
Cambridgeshire County Council,19-Oct-17,24366636-16221966,-1328.44,Care Management Group (64-66 Carlton),Care Establishment,4 - Operations - Providers services,LDP E Cambs Special Needs,Residential Independent Sector
Cambridgeshire County Council,19-Oct-17,24366643-16221973,-1328.44,Care Management Group (64-66 Carlton),Care Establishment,4 - Operations - Providers services,LDP E Cambs Special Needs,Residential Independent Sector
Cambridgeshire County Council,19-Oct-17,24366648-16221978,-1328.44,Care Management Group (64-66 Carlton),Care Establishment,4 - Operations - Providers services,LDP E Cambs Special Needs,Residential Independent Sector
Cambridgeshire County Council,19-Oct-17,24387477-16222015,-1328.44,Care Management Group (64-66 Carlton),Care Establishment,4 - Operations - Providers services,LDP E Cambs Special Needs,Residential Independent Sector
Cambridgeshire County Council,19-Oct-17,24387437-16222038,-1328.44,Care Management Group (64-66 Carlton),Care Establishment,4 - Operations - Providers services,LDP E Cambs Special Needs,Residential Independent Sector
Cambridgeshire County Council,19-Oct-17,24387438-16222039,-1328.44,Care Management Group (64-66 Carlton),Care Establishment,4 - Operations - Providers services,LDP E Cambs Special Needs,Residential Independent Sector
Cambridgeshire County Council,19-Oct-17,24387442-16222043,-1328.44,Care Management Group (64-66 Carlton),Care Establishment,4 - Operations - Providers services,LDP E Cambs Special Needs,Residential Independent Sector
Cambridgeshire County Council,19-Oct-17,24387450-16222051,-1328.44,Care Management Group (64-66 Carlton),Care Establishment,4 - Operations - Providers services,LDP E Cambs Special Needs,Residential Independent Sector
Cambridgeshire County Council,19-Oct-17,24387456-16222057,-1328.44,Care Management Group (64-66 Carlton),Care Establishment,4 - Operations - Providers services,LDP E Cambs Special Needs,Residential Independent Sector
Cambridgeshire County Council,19-Oct-17,24390688-16222074,-1328.44,Care Management Group (64-66 Carlton),Care Establishment,4 - Operations - Providers services,LDP E Cambs Special Needs,Residential Independent Sector
Cambridgeshire County Council,19-Oct-17,24393820-16222203,-1328.44,Care Management Group (64-66 Carlton),Care Establishment,4 - Operations - Providers services,LDP E Cambs Special Needs,Residential Independent Sector
Cambridgeshire County Council,19-Oct-17,24393824-16222207,-1328.44,Care Management Group (64-66 Carlton),Care Establishment,4 - Operations - Providers services,LDP E Cambs Special Needs,Residential Independent Sector
Cambridgeshire County Council,19-Oct-17,24393830-16222213,-1328.44,Care Management Group (64-66 Carlton),Care Establishment,4 - Operations - Providers services,LDP E Cambs Special Needs,Residential Independent Sector
Cambridgeshire County Council,19-Oct-17,24393837-16222220,-1328.44,Care Management Group (64-66 Carlton),Care Establishment,4 - Operations - Providers services,LDP E Cambs Special Needs,Residential Independent Sector
Cambridgeshire County Council,19-Oct-17,24390710-16222096,-1328.44,Care Management Group (64-66 Carlton),Care Establishment,4 - Operations - Providers services,LDP E Cambs Special Needs,Residential Independent Sector
Cambridgeshire County Council,19-Oct-17,24390735-16222121,-1328.44,Care Management Group (64-66 Carlton),Care Establishment,4 - Operations - Providers services,LDP E Cambs Special Needs,Residential Independent Sector
Cambridgeshire County Council,19-Oct-17,24390747-16222133,-1328.44,Care Management Group (64-66 Carlton),Care Establishment,4 - Operations - Providers services,LDP E Cambs Special Needs,Residential Independent Sector
Cambridgeshire County Council,19-Oct-17,24366664-16221994,-1328.44,Care Management Group (64-66 Carlton),Care Establishment,4 - Operations - Providers services,LDP E Cambs Special Needs,Residential Independent Sector
Cambridgeshire County Council,19-Oct-17,24387462-16222000,-1328.44,Care Management Group (64-66 Carlton),Care Establishment,4 - Operations - Providers services,LDP E Cambs Special Needs,Residential Independent Sector
Cambridgeshire County Council,19-Oct-17,24364015-16221796,-1328.44,Care Management Group (64-66 Carlton),Care Establishment,4 - Operations - Providers services,LDP E Cambs Special Needs,Residential Independent Sector
Cambridgeshire County Council,19-Oct-17,24364572-16221810,-1328.44,Care Management Group (64-66 Carlton),Care Establishment,4 - Operations - Providers services,LDP E Cambs Special Needs,Residential Independent Sector
Cambridgeshire County Council,19-Oct-17,24364589-16221827,-1328.44,Care Management Group (64-66 Carlton),Care Establishment,4 - Operations - Providers services,LDP E Cambs Special Needs,Residential Independent Sector
Cambridgeshire County Council,19-Oct-17,24364626-16221864,-1328.44,Care Management Group (64-66 Carlton),Care Establishment,4 - Operations - Providers services,LDP E Cambs Special Needs,Residential Independent Sector
Cambridgeshire County Council,19-Oct-17,24364627-16221865,-1328.44,Care Management Group (64-66 Carlton),Care Establishment,4 - Operations - Providers services,LDP E Cambs Special Needs,Residential Independent Sector
Cambridgeshire County Council,19-Oct-17,24364638-16221876,-1328.44,Care Management Group (64-66 Carlton),Care Establishment,4 - Operations - Providers services,LDP E Cambs Special Needs,Residential Independent Sector
Cambridgeshire County Council,19-Oct-17,24366567-16221897,-1328.44,Care Management Group (64-66 Carlton),Care Establishment,4 - Operations - Providers services,LDP E Cambs Special Needs,Residential Independent Sector
Cambridgeshire County Council,19-Oct-17,24366568-16221898,-1328.44,Care Management Group (64-66 Carlton),Care Establishment,4 - Operations - Providers services,LDP E Cambs Special Needs,Residential Independent Sector
Cambridgeshire County Council,19-Oct-17,24366573-16221903,-1328.44,Care Management Group (64-66 Carlton),Care Establishment,4 - Operations - Providers services,LDP E Cambs Special Needs,Residential Independent Sector
Cambridgeshire County Council,19-Oct-17,24366574-16221904,-1328.44,Care Management Group (64-66 Carlton),Care Establishment,4 - Operations - Providers services,LDP E Cambs Special Needs,Residential Independent Sector
Cambridgeshire County Council,19-Oct-17,24366591-16221921,-1328.44,Care Management Group (64-66 Carlton),Care Establishment,4 - Operations - Providers services,LDP E Cambs Special Needs,Residential Independent Sector
Cambridgeshire County Council,19-Oct-17,24366600-16221930,-1328.44,Care Management Group (64-66 Carlton),Care Establishment,4 - Operations - Providers services,LDP E Cambs Special Needs,Residential Independent Sector
Cambridgeshire County Council,19-Oct-17,24438892-16222413,-1328.44,Care Management Group (64-66 Carlton),Care Establishment,4 - Operations - Providers services,LDP E Cambs Special Needs,Residential Independent Sector
Cambridgeshire County Council,19-Oct-17,24449827-16222469,-1328.44,Care Management Group (64-66 Carlton),Care Establishment,4 - Operations - Providers services,LDP E Cambs Special Needs,Residential Independent Sector
Cambridgeshire County Council,19-Oct-17,24449838-16222480,-1328.44,Care Management Group (64-66 Carlton),Care Establishment,4 - Operations - Providers services,LDP E Cambs Special Needs,Residential Independent Sector
Cambridgeshire County Council,19-Oct-17,24449858-16222500,-1328.44,Care Management Group (64-66 Carlton),Care Establishment,4 - Operations - Providers services,LDP E Cambs Special Needs,Residential Independent Sector
Cambridgeshire County Council,19-Oct-17,24495837-16222655,-1328.44,Care Management Group (64-66 Carlton),Care Establishment,4 - Operations - Providers services,LDP E Cambs Special Needs,Residential Independent Sector
Cambridgeshire County Council,19-Oct-17,24492990-16222564,-1328.44,Care Management Group (64-66 Carlton),Care Establishment,4 - Operations - Providers services,LDP E Cambs Special Needs,Residential Independent Sector
Cambridgeshire County Council,19-Oct-17,24492992-16222566,-1328.44,Care Management Group (64-66 Carlton),Care Establishment,4 - Operations - Providers services,LDP E Cambs Special Needs,Residential Independent Sector
Cambridgeshire County Council,19-Oct-17,24492937-16222610,-1328.44,Care Management Group (64-66 Carlton),Care Establishment,4 - Operations - Providers services,LDP E Cambs Special Needs,Residential Independent Sector
Cambridgeshire County Council,19-Oct-17,24492948-16222621,-1328.44,Care Management Group (64-66 Carlton),Care Establishment,4 - Operations - Providers services,LDP E Cambs Special Needs,Residential Independent Sector
Cambridgeshire County Council,19-Oct-17,24449789-16222431,-1328.44,Care Management Group (64-66 Carlton),Care Establishment,4 - Operations - Providers services,LDP E Cambs Special Needs,Residential Independent Sector
Cambridgeshire County Council,19-Oct-17,24449793-16222435,-1328.44,Care Management Group (64-66 Carlton),Care Establishment,4 - Operations - Providers services,LDP E Cambs Special Needs,Residential Independent Sector
Cambridgeshire County Council,19-Oct-17,24449801-16222443,-1328.44,Care Management Group (64-66 Carlton),Care Establishment,4 - Operations - Providers services,LDP E Cambs Special Needs,Residential Independent Sector
Cambridgeshire County Council,19-Oct-17,24449803-16222445,-1328.44,Care Management Group (64-66 Carlton),Care Establishment,4 - Operations - Providers services,LDP E Cambs Special Needs,Residential Independent Sector
Cambridgeshire County Council,19-Oct-17,24393869-16222251,-1328.44,Care Management Group (64-66 Carlton),Care Establishment,4 - Operations - Providers services,LDP E Cambs Special Needs,Residential Independent Sector
Cambridgeshire County Council,19-Oct-17,24444815-16222268,-1328.44,Care Management Group (64-66 Carlton),Care Establishment,4 - Operations - Providers services,LDP E Cambs Special Needs,Residential Independent Sector
Cambridgeshire County Council,19-Oct-17,24449773-16222276,-1328.44,Care Management Group (64-66 Carlton),Care Establishment,4 - Operations - Providers services,LDP E Cambs Special Needs,Residential Independent Sector
Cambridgeshire County Council,19-Oct-17,24449753-16222296,-1328.44,Care Management Group (64-66 Carlton),Care Establishment,4 - Operations - Providers services,LDP E Cambs Special Needs,Residential Independent Sector
Cambridgeshire County Council,19-Oct-17,24438799-16222320,-1328.44,Care Management Group (64-66 Carlton),Care Establishment,4 - Operations - Providers services,LDP E Cambs Special Needs,Residential Independent Sector
Cambridgeshire County Council,19-Oct-17,24438829-16222350,-1328.44,Care Management Group (64-66 Carlton),Care Establishment,4 - Operations - Providers services,LDP E Cambs Special Needs,Residential Independent Sector
Cambridgeshire County Council,19-Oct-17,24438848-16222369,-1328.44,Care Management Group (64-66 Carlton),Care Establishment,4 - Operations - Providers services,LDP E Cambs Special Needs,Residential Independent Sector
Cambridgeshire County Council,19-Oct-17,24438852-16222373,-1328.44,Care Management Group (64-66 Carlton),Care Establishment,4 - Operations - Providers services,LDP E Cambs Special Needs,Residential Independent Sector
Cambridgeshire County Council,19-Oct-17,24438876-16222397,-1328.44,Care Management Group (64-66 Carlton),Care Establishment,4 - Operations - Providers services,LDP E Cambs Special Needs,Residential Independent Sector
Cambridgeshire County Council,19-Oct-17,24495874-16222692,-1328.44,Care Management Group (64-66 Carlton),Care Establishment,4 - Operations - Providers services,LDP E Cambs Special Needs,Residential Independent Sector
Cambridgeshire County Council,19-Oct-17,24495877-16222695,-1328.44,Care Management Group (64-66 Carlton),Care Establishment,4 - Operations - Providers services,LDP E Cambs Special Needs,Residential Independent Sector
Cambridgeshire County Council,19-Oct-17,24495889-16222707,-1328.44,Care Management Group (64-66 Carlton),Care Establishment,4 - Operations - Providers services,LDP E Cambs Special Needs,Residential Independent Sector
Cambridgeshire County Council,19-Oct-17,24495895-16222713,-1328.44,Care Management Group (64-66 Carlton),Care Establishment,4 - Operations - Providers services,LDP E Cambs Special Needs,Residential Independent Sector
Cambridgeshire County Council,19-Oct-17,24495898-16222715,-1328.44,Care Management Group (64-66 Carlton),Care Establishment,4 - Operations - Providers services,LDP E Cambs Special Needs,Residential Independent Sector
Cambridgeshire County Council,19-Oct-17,24495900-16222717,-1328.44,Care Management Group (64-66 Carlton),Care Establishment,4 - Operations - Providers services,LDP E Cambs Special Needs,Residential Independent Sector
Cambridgeshire County Council,19-Oct-17,24495914-16222729,-1328.44,Care Management Group (64-66 Carlton),Care Establishment,4 - Operations - Providers services,LDP E Cambs Special Needs,Residential Independent Sector
Cambridgeshire County Council,19-Oct-17,24495930-16222745,-1328.44,Care Management Group (64-66 Carlton),Care Establishment,4 - Operations - Providers services,LDP E Cambs Special Needs,Residential Independent Sector
Cambridgeshire County Council,19-Oct-17,24495946-16222761,-1328.44,Care Management Group (64-66 Carlton),Care Establishment,4 - Operations - Providers services,LDP E Cambs Special Needs,Residential Independent Sector
Cambridgeshire County Council,19-Oct-17,24495963-16222778,-1328.44,Care Management Group (64-66 Carlton),Care Establishment,4 - Operations - Providers services,LDP E Cambs Special Needs,Residential Independent Sector
Cambridgeshire County Council,19-Oct-17,24498895-16222797,-1328.44,Care Management Group (64-66 Carlton),Care Establishment,4 - Operations - Providers services,LDP E Cambs Special Needs,Residential Independent Sector
Cambridgeshire County Council,19-Oct-17,24366635-16221965,-1328.44,Care Management Group (64-66 Carlton),Care Establishment,4 - Operations - Providers services,LDP E Cambs Special Needs,Residential Independent Sector
Cambridgeshire County Council,19-Oct-17,24387470-16222008,-1328.44,Care Management Group (64-66 Carlton),Care Establishment,4 - Operations - Providers services,LDP E Cambs Special Needs,Residential Independent Sector
Cambridgeshire County Council,19-Oct-17,24368560-16222027,-1328.44,Care Management Group (64-66 Carlton),Care Establishment,4 - Operations - Providers services,LDP E Cambs Special Needs,Residential Independent Sector
Cambridgeshire County Council,19-Oct-17,24387449-16222050,-1328.44,Care Management Group (64-66 Carlton),Care Establishment,4 - Operations - Providers services,LDP E Cambs Special Needs,Residential Independent Sector
Cambridgeshire County Council,19-Oct-17,24390681-16222067,-1328.44,Care Management Group (64-66 Carlton),Care Establishment,4 - Operations - Providers services,LDP E Cambs Special Needs,Residential Independent Sector
Cambridgeshire County Council,19-Oct-17,24393803-16222186,-1328.44,Care Management Group (64-66 Carlton),Care Establishment,4 - Operations - Providers services,LDP E Cambs Special Needs,Residential Independent Sector
Cambridgeshire County Council,19-Oct-17,24393810-16222193,-1328.44,Care Management Group (64-66 Carlton),Care Establishment,4 - Operations - Providers services,LDP E Cambs Special Needs,Residential Independent Sector
Cambridgeshire County Council,19-Oct-17,24390722-16222108,-1328.44,Care Management Group (64-66 Carlton),Care Establishment,4 - Operations - Providers services,LDP E Cambs Special Needs,Residential Independent Sector
Cambridgeshire County Council,19-Oct-17,24390750-16222136,-1328.44,Care Management Group (64-66 Carlton),Care Establishment,4 - Operations - Providers services,LDP E Cambs Special Needs,Residential Independent Sector
Cambridgeshire County Council,19-Oct-17,24390773-16222159,-1328.44,Care Management Group (64-66 Carlton),Care Establishment,4 - Operations - Providers services,LDP E Cambs Special Needs,Residential Independent Sector
Cambridgeshire County Council,19-Oct-17,24366660-16221990,-1328.44,Care Management Group (64-66 Carlton),Care Establishment,4 - Operations - Providers services,LDP E Cambs Special Needs,Residential Independent Sector
Cambridgeshire County Council,19-Oct-17,24364008-16221789,-1328.44,Care Management Group (64-66 Carlton),Care Establishment,4 - Operations - Providers services,LDP E Cambs Special Needs,Residential Independent Sector
Cambridgeshire County Council,19-Oct-17,24364016-16221797,-1328.44,Care Management Group (64-66 Carlton),Care Establishment,4 - Operations - Providers services,LDP E Cambs Special Needs,Residential Independent Sector
Cambridgeshire County Council,19-Oct-17,24364574-16221812,-1328.44,Care Management Group (64-66 Carlton),Care Establishment,4 - Operations - Providers services,LDP E Cambs Special Needs,Residential Independent Sector
Cambridgeshire County Council,19-Oct-17,24364586-16221824,-1328.44,Care Management Group (64-66 Carlton),Care Establishment,4 - Operations - Providers services,LDP E Cambs Special Needs,Residential Independent Sector
Cambridgeshire County Council,19-Oct-17,24364597-16221835,-1328.44,Care Management Group (64-66 Carlton),Care Establishment,4 - Operations - Providers services,LDP E Cambs Special Needs,Residential Independent Sector
Cambridgeshire County Council,19-Oct-17,24364598-16221836,-1328.44,Care Management Group (64-66 Carlton),Care Establishment,4 - Operations - Providers services,LDP E Cambs Special Needs,Residential Independent Sector
Cambridgeshire County Council,19-Oct-17,24364613-16221851,-1328.44,Care Management Group (64-66 Carlton),Care Establishment,4 - Operations - Providers services,LDP E Cambs Special Needs,Residential Independent Sector
Cambridgeshire County Council,19-Oct-17,24364629-16221867,-1328.44,Care Management Group (64-66 Carlton),Care Establishment,4 - Operations - Providers services,LDP E Cambs Special Needs,Residential Independent Sector
Cambridgeshire County Council,19-Oct-17,24366566-16221896,-1328.44,Care Management Group (64-66 Carlton),Care Establishment,4 - Operations - Providers services,LDP E Cambs Special Needs,Residential Independent Sector
Cambridgeshire County Council,19-Oct-17,24366580-16221910,-1328.44,Care Management Group (64-66 Carlton),Care Establishment,4 - Operations - Providers services,LDP E Cambs Special Needs,Residential Independent Sector
Cambridgeshire County Council,19-Oct-17,24366586-16221916,-1328.44,Care Management Group (64-66 Carlton),Care Establishment,4 - Operations - Providers services,LDP E Cambs Special Needs,Residential Independent Sector
Cambridgeshire County Council,19-Oct-17,24366588-16221918,-1328.44,Care Management Group (64-66 Carlton),Care Establishment,4 - Operations - Providers services,LDP E Cambs Special Needs,Residential Independent Sector
Cambridgeshire County Council,19-Oct-17,24366614-16221944,-1328.44,Care Management Group (64-66 Carlton),Care Establishment,4 - Operations - Providers services,LDP E Cambs Special Needs,Residential Independent Sector
Cambridgeshire County Council,19-Oct-17,24366617-16221947,-1328.44,Care Management Group (64-66 Carlton),Care Establishment,4 - Operations - Providers services,LDP E Cambs Special Needs,Residential Independent Sector
Cambridgeshire County Council,19-Oct-17,24438898-16222419,-1328.44,Care Management Group (64-66 Carlton),Care Establishment,4 - Operations - Providers services,LDP E Cambs Special Needs,Residential Independent Sector
Cambridgeshire County Council,19-Oct-17,24449848-16222490,-1328.44,Care Management Group (64-66 Carlton),Care Establishment,4 - Operations - Providers services,LDP E Cambs Special Needs,Residential Independent Sector
Cambridgeshire County Council,19-Oct-17,24492953-16222626,-1328.44,Care Management Group (64-66 Carlton),Care Establishment,4 - Operations - Providers services,LDP E Cambs Special Needs,Residential Independent Sector
Cambridgeshire County Council,19-Oct-17,24495833-16222651,-1328.44,Care Management Group (64-66 Carlton),Care Establishment,4 - Operations - Providers services,LDP E Cambs Special Needs,Residential Independent Sector
Cambridgeshire County Council,19-Oct-17,24495853-16222671,-1328.44,Care Management Group (64-66 Carlton),Care Establishment,4 - Operations - Providers services,LDP E Cambs Special Needs,Residential Independent Sector
Cambridgeshire County Council,19-Oct-17,24492996-16222570,-1328.44,Care Management Group (64-66 Carlton),Care Establishment,4 - Operations - Providers services,LDP E Cambs Special Needs,Residential Independent Sector
Cambridgeshire County Council,19-Oct-17,24492926-16222599,-1328.44,Care Management Group (64-66 Carlton),Care Establishment,4 - Operations - Providers services,LDP E Cambs Special Needs,Residential Independent Sector
